Authority,Department,Spending Area,Expense Type,Posting Date,Reference,Amount,Supplier
OXFORDSHIRE CC,CHILDREN'S & EDUCATION,NTS UASC AGENCY,OTHER TRANSPORT ARRANGEMENTS,28/02/2024,000011413911757,91.50,WWW.THEKEY.CO.UK
OXFORDSHIRE CC,CORPORATE CORE,"MARKETING, COMMUNICATIONS & ENGAGEMENT",SUBSCRIPTIONS,28/02/2024,000011413911925,175.74,POWTOON LTD
OXFORDSHIRE CC,CHILDREN'S & EDUCATION,HOUSE PROJECT,CATERING PROVISIONS,28/02/2024,000011413910957,44.00,SAINSBURY'S S/MKT
OXFORDSHIRE CC,CHILDREN'S & EDUCATION,"	FPT CITY",EDUCATIONAL AND VOCATIONAL TRAINING ,28/02/2024,000011413910999,142.80,SJA SUPPLIES TRAINING
OXFORDSHIRE CC,CHILDREN'S & EDUCATION,THAME E&A HOME,CATERING PROVISIONS,28/02/2024,000011413909541,3.75,SAINSBURYS S/MKTS
OXFORDSHIRE CC,PUBLIC HEALTH,PUBLIC HEALTH GENERAL,OTHER EXPENSES,28/02/2024,000011413909481,4.79,SQ  GROUP CARDS
OXFORDSHIRE CC,CHILDREN'S & EDUCATION,"	OCCG GRANT",CATERING,28/02/2024,000011413909337,13.62,MCDONALDS
OXFORDSHIRE CC,ENTERPRISEVC,,CAR LEASING - PRIVATE RENTALS,28/02/2024,000011413910907,114.43,ENTERPRISE RENT-A-CAR
OXFORDSHIRE CC,CHILDREN'S & EDUCATION,UASC 16&17,OTHER EXPENSES,28/02/2024,000011413911069,83.98,SPORTS DIRECT
OXFORDSHIRE CC,ENVIRONMENT AND PLACE,ROW MAINT,CONTRACT CLEANING,28/02/2024,000011413909637,42.79,OXON FASTENING SYSTEMS
OXFORDSHIRE CC,CHILDREN'S & EDUCATION,PAUSE PROGRAMME,CATERING,28/02/2024,000011413909627,3.95,CAFFE NERO OXFORD GLOU
OXFORDSHIRE CC,CHILDREN'S & EDUCATION,UASC 16&17,TELEPHONE - EQUIPMENT,28/02/2024,000011413909339,99.99,WWW.ARGOS.CO.UK
OXFORDSHIRE CC,CHILDREN'S & EDUCATION,FSP NON-STAFFING - CENTRAL,CATERING PROVISIONS,28/02/2024,000011413911461,257.98,AMAZON  204-4859242-26
OXFORDSHIRE CC,CHILDREN'S & EDUCATION,DIDCOT MOVE-ON HOME,MATERIALS,28/02/2024,000011413909653,25.50,WWW.ARGOS.CO.UK
OXFORDSHIRE CC,ENTERPRISEVC,,CAR LEASING - PRIVATE RENTALS,28/02/2024,000011413910915,48.31,ENTERPRISE RENT-A-CAR
OXFORDSHIRE CC,CHILDREN'S & EDUCATION,40 THE MOORS,MATERIALS,28/02/2024,000011413911543,29.99,ARGOS KIDLINGTON INSID
OXFORDSHIRE CC,CHILDREN'S & EDUCATION,EYNSHAM,CATERING PROVISIONS,28/02/2024,000011413911571,91.90,TESCO STORES 2008
OXFORDSHIRE CC,ENTERPRISEVC,,CAR LEASING - PRIVATE RENTALS,28/02/2024,000011413910927,174.84,ENTERPRISE RENT-A-CAR
OXFORDSHIRE CC,CHILDREN'S & EDUCATION,"	LEAVING CARE NORTH",CATERING PROVISIONS,28/02/2024,000011413911027,15.00,ASDA STORES LTD
OXFORDSHIRE CC,CHILDREN'S & EDUCATION,"	OCCG GRANT",DOMESTIC SUPPLIES,28/02/2024,000011413911075,47.50,ASDA GEORGE COM LEEDS
OXFORDSHIRE CC,ENTERPRISEVC,,CAR LEASING - PRIVATE RENTALS,28/02/2024,000011413910935,98.26,ENTERPRISE RENT-A-CAR
OXFORDSHIRE CC,CHILDREN'S & EDUCATION,NTS UASC AGENCY,DOMESTIC SUPPLIES,28/02/2024,000011413911087,17.99,AMZNMKTPLACE
OXFORDSHIRE CC,CHILDREN'S & EDUCATION,HOUSE PROJECT,MATERIALS,28/02/2024,000011413911951,2.50,JOHN LEWIS
OXFORDSHIRE CC,ADULTS,CSS WANTAGE,CATERING PROVISIONS,28/02/2024,000011413912259,32.70,SAINSBURYS S/MKTS
OXFORDSHIRE CC,ADULTS,CSS WANTAGE,MATERIALS,28/02/2024,000011413910173,6.49,AMZNMKTPLACE
OXFORDSHIRE CC,ADULTS,CSS - OXFORD,MATERIALS,28/02/2024,000011413909135,28.79,PETS AT HOME LTD
OXFORDSHIRE CC,CUSTOMER AND CULTURE,THAME LIBRARY,"NEWSPAPERS, PERIODICALS AND PUBLICATIONS",28/02/2024,000011413910707,5.80,SAINSBURYS S/MKTS
OXFORDSHIRE CC,CHILDREN'S & EDUCATION,DIDCOT MOVE-ON HOME,CATERING PROVISIONS,28/02/2024,000011413909661,14.47,SAINSBURY'S DIDCOT
OXFORDSHIRE CC,CUSTOMER AND CULTURE,UNION STREET FFS,OTHER PREMISES RELATED COSTS,28/02/2024,000011413909733,6.00,TESCO STORES 2990
OXFORDSHIRE CC,CHILDREN'S & EDUCATION,HOUSE PROJECT,MATERIALS,28/02/2024,000011413911957,55.95,FREEMANSFLOWERS
OXFORDSHIRE CC,ADULTS,CSS WITNEY,CATERING PROVISIONS,28/02/2024,000011413910143,5.38,AMAZON  204-8878453-63
OXFORDSHIRE CC,CHILDREN'S & EDUCATION,OTFC TEAM,CATERING,28/02/2024,000011413911271,10.40,BUBBLE CITEA READING
OXFORDSHIRE CC,CUSTOMER AND CULTURE,HENLEY LIBRARY,"NEWSPAPERS, PERIODICALS AND PUBLICATIONS",28/02/2024,000011413911417,85.82,BRIGHTONS NEWSAGEN
OXFORDSHIRE CC,CHILDREN'S & EDUCATION,NRPF & HOMELESSNESS,HIRE OF ACCOMMODATION AND FACILITIES,28/02/2024,000011413909457,120.51,TRAVELODGE
OXFORDSHIRE CC,RESOURCES,ICT OPERATIONS & MAI,PURCHASE OF IT EQUIPMENT,28/02/2024,000011413911239,108.94,AMAZON  026-3593209-32
OXFORDSHIRE CC,CHILDREN'S & EDUCATION,FAMILY SOLUTIONS PLUS NON-STAFF - NORTH,TELEPHONE - EQUIPMENT,28/02/2024,000011413911315,10.00,GIFFGAFF
OXFORDSHIRE CC,CHILDREN'S & EDUCATION,STRATEGY INNOVATION STAFFING,"SUPPLIES, STATIONERY AND MATERIALS",28/02/2024,000011413911425,708.00,JOB FAIRS LTD
OXFORDSHIRE CC,CHILDREN'S & EDUCATION,OTFC TEAM,CATERING,28/02/2024,000011413911259,40.15,NANDOS.CO.UK
OXFORDSHIRE CC,CHILDREN'S & EDUCATION,"	MALTFIELD HOUSE",CATERING PROVISIONS,28/02/2024,000011413909431,6.73,SAINSBURYS S/MKTS
OXFORDSHIRE CC,RESOURCES,ICT OPERATIONS & MAI,PURCHASE OF IT EQUIPMENT,28/02/2024,000011413911219,9.95,AMAZON  206-6164063-39
OXFORDSHIRE CC,CHILDREN'S & EDUCATION,OTFC TEAM,OTHER TRANSPORT ARRANGEMENTS,28/02/2024,000011413911263,8.00,APCOA -READING STATION
OXFORDSHIRE CC,CUSTOMER AND CULTURE,WALLINGFORD LIBRARY,CATERING PROVISIONS,28/02/2024,000011413911119,1.55,WAITROSE 675
OXFORDSHIRE CC,RESOURCES,ICT OPERATIONS & MAI,PURCHASE OF IT EQUIPMENT,28/02/2024,000011413911227,55.48,AMAZON  026-3663825-35
OXFORDSHIRE CC,CHILDREN'S & EDUCATION,THAME E&A HOME,CATERING,28/02/2024,000011413909451,9.70,CAFFE NERO   OXFORD HI
OXFORDSHIRE CC,RESOURCES,ICT OPERATIONS & MAI,CATERING PROVISIONS,28/02/2024,000011413911235,7.49,AMAZON  206-0531325-32
OXFORDSHIRE CC,CHILDREN'S & EDUCATION,FAMILY SOLUTIONS PLUS NON-STAFF - NORTH,MATERIALS,28/02/2024,000011413911321,23.50,ARGOS BICESTER
OXFORDSHIRE CC,CHILDREN'S & EDUCATION,LEADERSHIP TEAM,CATERING PROVISIONS,28/02/2024,000011413911429,18.98,AMAZON  206-2094237-05
OXFORDSHIRE CC,CUSTOMER AND CULTURE,SCHOOLS FM CATERING AREA 1,MATERIALS,28/02/2024,000011413911341,112.40,AMZNMKTPLACE
OXFORDSHIRE CC,CHILDREN'S & EDUCATION,LEADERSHIP TEAM,CATERING PROVISIONS,28/02/2024,000011413911433,13.02,AMAZON  206-0070869-84
OXFORDSHIRE CC,RESOURCES,FUTURE FLIGHT AND LAND INFRASTRUCTURE,PAYMENTS TO TRANSPORT OPERATORS,28/02/2024,000011413911831,20.27,TRAINLINE
OXFORDSHIRE CC,ADULTS,THAME E&A HOME,ENTERTAINMENT EXPENSES,28/02/2024,000011413911877,16.50,FUSION LIFESTYLE
OXFORDSHIRE CC,CHILDREN'S & EDUCATION,QUALITY ASSURANCE SOUTH TEAM,HIRE OF ACCOMMODATION AND FACILITIES,28/02/2024,000011413911913,10.02,TRAVELODGE
OXFORDSHIRE CC,CUSTOMER AND CULTURE,HISTORY SERVICE,"BOOKS, DVDS AND CDS",28/02/2024,000011413911647,65.00,EBAY O 20-11233-03972
OXFORDSHIRE CC,CUSTOMER AND CULTURE,HISTORY SERVICE,POSTAGE AND DELIVERY,28/02/2024,000011413911651,115.00,ROYAL MAIL ONLINE SHOP
OXFORDSHIRE CC,ADULTS,CSS - BANBURY,CATERING PROVISIONS,28/02/2024,000011413911799,12.90,TESCO STORES 2064
OXFORDSHIRE CC,CORPORATE CORE,"MARKETING, COMMUNICATIONS & ENGAGEMENT","PUBLICITY, PROMOTIONS AND ADVERTISEMENT",28/02/2024,000011413911931,15.90,SNAP INC SNAP SNAP ADS
OXFORDSHIRE CC,CHILDREN'S & EDUCATION,WITNEY,CATERING PROVISIONS,28/02/2024,000011413911615,18.16,ALDI 99 775
OXFORDSHIRE CC,RESOURCES,INCOME TEAM,PAYMENT TO GOVERNMENT DEPARTMENTS,28/02/2024,000011413909775,"1,554.86",WWW.MONEYCLAIM.GOV
OXFORDSHIRE CC,CHILDREN'S & EDUCATION,"	LOOKED AFTER CITY 2",OTHER TRANSPORT ARRANGEMENTS,28/02/2024,000011413909795,2.00,OXFORD BUS COMPANY
OXFORDSHIRE CC,CUSTOMER AND CULTURE,BARTON COMMUNITY LIBRARY,MATERIALS,28/02/2024,000011413909881,12.99,AMZNMKTPLACE
OXFORDSHIRE CC,ADULTS,CSS - OXFORD,MATERIALS,28/02/2024,000011413909131,38.33,ALDI STORES 775-142
OXFORDSHIRE CC,CUSTOMER AND CULTURE,THAME LIBRARY,"NEWSPAPERS, PERIODICALS AND PUBLICATIONS",28/02/2024,000011413910699,5.80,SAINSBURYS S/MKTS
OXFORDSHIRE CC,CHILDREN'S & EDUCATION,"	LOOKED AFTER CITY 2",PAYMENTS TO TRANSPORT OPERATORS,28/02/2024,000011413909783,44.52,TRAINLINE
OXFORDSHIRE CC,CHILDREN'S & EDUCATION,"	LOOKED AFTER CITY 2",OTHER TRANSPORT ARRANGEMENTS,28/02/2024,000011413909799,2.00,STGCOACH/CTYLINK
OXFORDSHIRE CC,ADULTS,CSS WANTAGE,ENTERTAINMENT EXPENSES,28/02/2024,000011413910179,10.95,HOLLYWOOD BOWL
OXFORDSHIRE CC,CHILDREN'S & EDUCATION,"	LEAVING CARE SOUTH",CATERING,28/02/2024,000011413909263,4.25,COSTA COFFEE 43011497
OXFORDSHIRE CC,ENTERPRISEVC,,CAR LEASING - PRIVATE RENTALS,28/02/2024,000011413910859,101.90,ENTERPRISE RENT-A-CAR
OXFORDSHIRE CC,CHILDREN'S & EDUCATION,"	LOOKED AFTER CITY 2",PAYMENTS TO TRANSPORT OPERATORS,28/02/2024,000011413909789,33.31,TRAINLINE
OXFORDSHIRE CC,CHILDREN'S & EDUCATION,HOUSE PROJECT,MATERIALS,28/02/2024,000011413911945,81.27,EBAY O 01-11246-37915
OXFORDSHIRE CC,CHILDREN'S & EDUCATION,HOUSE PROJECT,CATERING PROVISIONS,28/02/2024,000011413911971,12.96,LIDL GB
OXFORDSHIRE CC,ADULTS,CSS WITNEY,CATERING PROVISIONS,28/02/2024,000011413910115,6.20,AMAZON  204-2163895-03
OXFORDSHIRE CC,ENTERPRISEVC,,CAR LEASING - PRIVATE RENTALS,28/02/2024,000011413910883,39.22,ENTERPRISE RENT-A-CAR
OXFORDSHIRE CC,CUSTOMER AND CULTURE,MUSIC UNALLOCABLE,"SUPPLIES, STATIONERY AND MATERIALS",28/02/2024,000011413912099,48.76,AMAZON  205-7466200-40
OXFORDSHIRE CC,ADULTS,CSS WITNEY,CATERING PROVISIONS,28/02/2024,000011413910135,17.38,AMAZON  204-6637137-20
OXFORDSHIRE CC,ENTERPRISEVC,,CAR LEASING - PRIVATE RENTALS,28/02/2024,000011413910819,39.22,ENTERPRISE RENT-A-CAR
OXFORDSHIRE CC,ADULTS,CSS WITNEY,CATERING PROVISIONS,28/02/2024,000011413909821,3.50,CO-OP GROUP 070582
OXFORDSHIRE CC,CHILDREN'S & EDUCATION,HOUSE PROJECT,MATERIALS,28/02/2024,000011413911963,18.20,POUNDLAND LTD - 1586
OXFORDSHIRE CC,ADULTS,CSS WITNEY,CATERING PROVISIONS,28/02/2024,000011413910125,14.98,AMAZON  204-5008849-13
OXFORDSHIRE CC,CUSTOMER AND CULTURE,"MARKETING, COMMUNICATIONS & ENGAGEMENT","PUBLICITY, PROMOTIONS AND ADVERTISEMENT",28/02/2024,000011413910391,500.00,FACEBK  3ZL35ZP9Z2
OXFORDSHIRE CC,CHILDREN'S & EDUCATION,UASC POST 18,MATERIALS,28/02/2024,000011413910435,10.99,WH SMITH OXFORD
OXFORDSHIRE CC,ADULTS,CSS - ABINGDON,CATERING PROVISIONS,28/02/2024,000011413908887,130.00,TESCO STORES 2008
OXFORDSHIRE CC,ENVIRONMENT AND PLACE,WASTE REDUCTION GEN,"PUBLICITY, PROMOTIONS AND ADVERTISEMENT",28/02/2024,000011413909121,82.54,FACEBK Z6GXHXPB32
OXFORDSHIRE CC,CHILDREN'S & EDUCATION,40 THE MOORS,CATERING,28/02/2024,000011413910403,184.77,SAINSBURYS.CO.UK
OXFORDSHIRE CC,CHILDREN'S & EDUCATION,CHILDREN IN CARE NON-STAFFING - NORTH,PAYMENTS TO TRANSPORT OPERATORS,28/02/2024,000011413908947,10.18,TRAINLINE
OXFORDSHIRE CC,CHILDREN'S & EDUCATION,"	MALTFIELD HOUSE",CATERING PROVISIONS,28/02/2024,000011413910765,9.78,AMAZON  206-7254876-86
OXFORDSHIRE CC,CHILDREN'S & EDUCATION,SI EQUIPMENT,DISABILITY AIDS AND EQUIPMENT,28/02/2024,000011413909923,15.59,UPS LTD
OXFORDSHIRE CC,ADULTS,CSS WITNEY,MATERIALS,28/02/2024,000011413910153,7.98,AMAZON.CO.UK 7S2A61OO5
OXFORDSHIRE CC,ADULTS,CSS WITNEY,MATERIALS,28/02/2024,000011413910161,19.99,AMZNMKTPLACE
OXFORDSHIRE CC,CHILDREN'S & EDUCATION,UASC POST 18,OTHER TRANSPORT ARRANGEMENTS,28/02/2024,000011413910445,2.00,STGCOACH/CTYLINK
OXFORDSHIRE CC,ENTERPRISEVC,,CAR LEASING - PRIVATE RENTALS,28/02/2024,000011413910843,75.22,ENTERPRISE RENT-A-CAR
OXFORDSHIRE CC,ENTERPRISEVC,,CAR LEASING - PRIVATE RENTALS,28/02/2024,000011413910875,107.81,ENTERPRISE RENT-A-CAR
OXFORDSHIRE CC,CORPORATE CORE,,STATIONERY,28/02/2024,000011413910799,86.28,LYRECO UK LTD
OXFORDSHIRE CC,CORPORATE CORE,,STATIONERY,28/02/2024,000011413910795,53.17,LYRECO UK LTD
OXFORDSHIRE CC,ENTERPRISEVC,,CAR LEASING - PRIVATE RENTALS,28/02/2024,000011413910827,166.03,ENTERPRISE RENT-A-CAR
OXFORDSHIRE CC,CUSTOMER AND CULTURE,CH REFURB PROJECT,EQUIPMENT,28/02/2024,000011413909807,30.95,SP CEEJAYUKLTD
OXFORDSHIRE CC,ADULTS,NRPF & HOMELESSNESS,HIRE OF ACCOMMODATION AND FACILITIES,28/02/2024,000011413909767,237.00,PREMIER INN
OXFORDSHIRE CC,CHILDREN'S & EDUCATION,"	LOOKED AFTER CITY 2",OTHER TRANSPORT ARRANGEMENTS,28/02/2024,000011413909791,2.00,OXFORD BUS COMPANY
OXFORDSHIRE CC,CUSTOMER AND CULTURE,OPERATIONS,MATERIALS,28/02/2024,000011413909933,5.69,AMZNMKTPLACE
OXFORDSHIRE CC,ADULTS,CSS WITNEY,CATERING PROVISIONS,28/02/2024,000011413910129,12.50,AMAZON  204-6597479-56
OXFORDSHIRE CC,CHILDREN'S & EDUCATION,EYNSHAM,CATERING,28/02/2024,000011413908857,7.70,TESCO PFS 2488
OXFORDSHIRE CC,CUSTOMER AND CULTURE,BOTLEY LIBRARY,"NEWSPAPERS, PERIODICALS AND PUBLICATIONS",28/02/2024,000011413908965,9.00,MARTIN MCCOLL
OXFORDSHIRE CC,ENTERPRISEVC,,CAR LEASING - PRIVATE RENTALS,28/02/2024,000011413910849,39.22,ENTERPRISE RENT-A-CAR
OXFORDSHIRE CC,ENTERPRISEVC,,CAR LEASING - PRIVATE RENTALS,28/02/2024,000011413910881,235.60,ENTERPRISE RENT-A-CAR
OXFORDSHIRE CC,CHILDREN'S & EDUCATION,"	LEAVING CARE CITY 2",CATERING PROVISIONS,28/02/2024,000011413909671,11.50,SAINSBURYS S/MKTS
OXFORDSHIRE CC,CHILDREN'S & EDUCATION,KINGFISHER,CATERING PROVISIONS,28/02/2024,000011413912267,50.00,TESCO GIFT CARD
OXFORDSHIRE CC,CHILDREN'S & EDUCATION,THAME E&A HOME,CATERING,28/02/2024,000011413912039,9.90,CREPEAFFAIRE SUMMERTOW
OXFORDSHIRE CC,ADULTS,CSS WANTAGE,ENTERTAINMENT EXPENSES,28/02/2024,000011413910185,7.30,HOLLYWOOD BOWL
OXFORDSHIRE CC,ADULTS,CSS - ABINGDON,CATERING PROVISIONS,28/02/2024,000011413912443,26.42,ALDI STORES
OXFORDSHIRE CC,CHILDREN'S & EDUCATION,UASC 16&17,RESIDENTIAL ACTIVITIES,28/02/2024,000011413908919,16.79,PUREGYM LIMITED
OXFORDSHIRE CC,CUSTOMER AND CULTURE,"MARKETING, COMMUNICATIONS & ENGAGEMENT","PUBLICITY, PROMOTIONS AND ADVERTISEMENT",28/02/2024,000011413910385,62.02,SNAP INC SNAP SNAP ADS
OXFORDSHIRE CC,CHILDREN'S & EDUCATION,UASC POST 18,OTHER TRANSPORT ARRANGEMENTS,28/02/2024,000011413910429,2.00,OXFORD BUS COMPANY
OXFORDSHIRE CC,ENTERPRISEVC,,CAR LEASING - PRIVATE RENTALS,28/02/2024,000011413910835,53.90,ENTERPRISE RENT-A-CAR
OXFORDSHIRE CC,ENTERPRISEVC,,CAR LEASING - PRIVATE RENTALS,28/02/2024,000011413910867,165.55,ENTERPRISE RENT-A-CAR
OXFORDSHIRE CC,ENTERPRISEVC,,CAR LEASING - PRIVATE RENTALS,28/02/2024,000011413910891,66.41,ENTERPRISE RENT-A-CAR
OXFORDSHIRE CC,CORPORATE CORE,,STATIONERY,28/02/2024,000011413910779,341.18,LYRECO UK LTD
OXFORDSHIRE CC,CORPORATE CORE,,STATIONERY,28/02/2024,000011413910805,11.92,LYRECO UK LTD
OXFORDSHIRE CC,ADULTS,CSS WITNEY,CATERING PROVISIONS,28/02/2024,000011413910121,13.99,AMAZON  204-3797035-31
OXFORDSHIRE CC,ADULTS,CSS WITNEY,CATERING PROVISIONS,28/02/2024,000011413910139,10.77,AMAZON  204-6947516-34
OXFORDSHIRE CC,CHILDREN'S & EDUCATION,CHILDREN IN CARE NON-STAFFING - NORTH,HIRE OF ACCOMMODATION AND FACILITIES,28/02/2024,000011413908945,143.99,PREMIER INN
OXFORDSHIRE CC,CUSTOMER AND CULTURE,PROPERTY DISPOSALS,PAYMENT TO GOVERNMENT DEPARTMENTS,28/02/2024,000011413912053,418.80,HTTPS://WWW.WESTOXON.G
OXFORDSHIRE CC,ADULTS,CSS WITNEY,CATERING PROVISIONS,28/02/2024,000011413910149,15.79,AMAZON  204-9821827-19
OXFORDSHIRE CC,ADULTS,CSS WITNEY,MATERIALS,28/02/2024,000011413910157,13.27,AMZNMKTPLACE
OXFORDSHIRE CC,CHILDREN'S & EDUCATION,DIDCOT MOVE-ON HOME,CATERING PROVISIONS,28/02/2024,000011413909143,9.96,SAINSBURYS S/MKTS
OXFORDSHIRE CC,CHILDREN'S & EDUCATION,DIDCOT MOVE-ON HOME,"SUPPLIES, STATIONERY AND MATERIALS",28/02/2024,000011413909657,33.97,AMAZON  204-4300722-00
OXFORDSHIRE CC,ADULTS,CSS WITNEY,MATERIALS,28/02/2024,000011413910165,5.28,AMZNMKTPLACE
OXFORDSHIRE CC,ENTERPRISEVC,,CAR LEASING - PRIVATE RENTALS,28/02/2024,000011413910901,153.17,ENTERPRISE RENT-A-CAR
OXFORDSHIRE CC,CORPORATE CORE,,STATIONERY,28/02/2024,000011413910787,86.50,LYRECO UK LTD
OXFORDSHIRE CC,RESOURCES,"HEALTH, SAFETY & COMPLIANCE",IT SOFTWARE,27/02/2024,000011408654001,199.89,SAFETYCULTURE.COM
OXFORDSHIRE CC,CUSTOMER AND CULTURE,HARD FM,PREMISES REPAIRS,27/02/2024,000011408653129,41.00,WICKES BANBURY
OXFORDSHIRE CC,CORPORATE CORE,,STATIONERY,27/02/2024,000011408654351,37.32,LYRECO UK LTD
OXFORDSHIRE CC,CHILDREN'S & EDUCATION,"	LOOKED AFTER CITY 2",OTHER TRANSPORT ARRANGEMENTS,27/02/2024,000011408653807,2.00,OXFORD BUS COMPANY
OXFORDSHIRE CC,CHILDREN'S & EDUCATION,"	LEAVING CARE CITY 2",CATERING,27/02/2024,000011408653861,11.53,EIGHT BELLS
OXFORDSHIRE CC,ADULTS,CSS - OXFORD,CATERING PROVISIONS,27/02/2024,000011408653161,21.30,WAITROSE 479
OXFORDSHIRE CC,ADULTS,LEADERSHIP TEAM,PROFESSIONAL SUBSCRIPTIONS,27/02/2024,000011408654629,605.00,WWW.ADASS.ORG.UK
OXFORDSHIRE CC,CUSTOMER AND CULTURE,MUSEUM RETAIL,STATIONERY,27/02/2024,000011408654045,23.99,MOL LABELS ONLINE
OXFORDSHIRE CC,CHILDREN'S & EDUCATION,"	LOOKED AFTER CITY 2",PAYMENTS TO TRANSPORT OPERATORS,27/02/2024,000011408653797,67.97,PRICELN DISCOVERY INN
OXFORDSHIRE CC,ADULTS,CSS - OXFORD,DISABILITY AIDS AND EQUIPMENT,27/02/2024,000011408653933,26.57,AMAZON  026-5219997-42
OXFORDSHIRE CC,CHILDREN'S & EDUCATION,THAME E&A HOME,CATERING PROVISIONS,27/02/2024,000011408653177,9.75,SNUG CAFE LTD
OXFORDSHIRE CC,CHILDREN'S & EDUCATION,UASC POST 18,MATERIALS,27/02/2024,000011408654195,299.99,CYCLE KING
OXFORDSHIRE CC,ADULTS,CSS WALLINGFORD,CATERING PROVISIONS,27/02/2024,000011408653003,6.20,WAITROSE 675
OXFORDSHIRE CC,CUSTOMER AND CULTURE,HARD FM,PREMISES REPAIRS,27/02/2024,000011408653133,5.95,NCP BANBURY MARLBOROUG
OXFORDSHIRE CC,ADULTS,CSS WITNEY,CATERING PROVISIONS,27/02/2024,000011408653853,16.99,LIDL GB WITNEY
OXFORDSHIRE CC,CUSTOMER AND CULTURE,OPERATIONS,MATERIALS,27/02/2024,000011408653919,21.49,AMZNMKTPLACE
OXFORDSHIRE CC,ADULTS,CSS - OXFORD,MATERIALS,27/02/2024,000011408653945,33.10,AMAZON  026-7276569-71
OXFORDSHIRE CC,ADULTS,CSS WITNEY,CATERING PROVISIONS,27/02/2024,000011408653841,21.26,CO-OP GROUP 070582
OXFORDSHIRE CC,PUBLIC HEALTH,WITNEY,CATERING PROVISIONS,27/02/2024,000011408653055,3.18,AMAZON  205-6143685-56
OXFORDSHIRE CC,CHILDREN'S & EDUCATION,THAME E&A HOME,OTHER TRANSPORT ARRANGEMENTS,27/02/2024,000011408653553,4.80,WESTGATE OXFORD CAR PA
OXFORDSHIRE CC,CHILDREN'S & EDUCATION,QUALITY ASSURANCE SOUTH TEAM,HIRE OF ACCOMMODATION AND FACILITIES,27/02/2024,000011408654637,57.01,TRAVELODGE
OXFORDSHIRE CC,CHILDREN'S & EDUCATION,"	LEAVING CARE CITY 2",PAYMENTS TO TRANSPORT OPERATORS,27/02/2024,000011408653865,73.50,GWR OXFORD TO
OXFORDSHIRE CC,CUSTOMER AND CULTURE,OXFORDSHIRE MUSEUM,EDUCATIONAL AND VOCATIONAL TRAINING ,27/02/2024,000011408654049,648.00,WEBBS TRAINING SERVICE
OXFORDSHIRE CC,CHILDREN'S & EDUCATION,"	MALTFIELD HOUSE",EQUIPMENT,27/02/2024,000011408654345,35.70,AMAZON.CO.UK AE29W8AJ5
OXFORDSHIRE CC,CHILDREN'S & EDUCATION,"	LOOKED AFTER CITY 2",OTHER TRANSPORT ARRANGEMENTS,27/02/2024,000011408653801,2.00,OXFORD BUS COMPANY
OXFORDSHIRE CC,CUSTOMER AND CULTURE,LIBRARY COLLECTIONS,"BOOKS, DVDS AND CDS",27/02/2024,000011408653915,20.00,SUMUP   WHEATLEY PARK
OXFORDSHIRE CC,CHILDREN'S & EDUCATION,"	LOOKED AFTER NORTH",PAYMENTS TO TRANSPORT OPERATORS,27/02/2024,000011408653151,28.83,TRAINLINE
OXFORDSHIRE CC,CHILDREN'S & EDUCATION,KINGFISHER,CATERING PROVISIONS,27/02/2024,000011408653183,200.00,TESCO GIFT CARD
OXFORDSHIRE CC,CHILDREN'S & EDUCATION,FAMILY SOLUTIONS PLUS NON-STAFF � SOUTH,DAY ACTIVITIES,27/02/2024,000011408654035,24.50,OXFORD BROOKES UNI
OXFORDSHIRE CC,ADULTS,CSS - OXFORD,MATERIALS,27/02/2024,000011408653939,66.00,AMAZON  026-7276569-71
OXFORDSHIRE CC,CHILDREN'S & EDUCATION,"	PARENT PARTNERSHIP","NEWSPAPERS, PERIODICALS AND PUBLICATIONS",27/02/2024,000011408654175,49.98,LAW BRIEF PUBLISHING
OXFORDSHIRE CC,ADULTS,CSS - OXFORD,MATERIALS,27/02/2024,000011408653927,10.90,AMAZON  026-3485229-70
OXFORDSHIRE CC,ADULTS,CSS - OXFORD,MATERIALS,27/02/2024,000011408653947,41.75,AMAZON  026-7276569-71
OXFORDSHIRE CC,ADULTS,CSS WALLINGFORD,"SUPPLIES, STATIONERY AND MATERIALS",27/02/2024,000011408653007,8.50,WAITROSE 675
OXFORDSHIRE CC,ADULTS,CSS WALLINGFORD,MATERIALS,27/02/2024,000011408652997,85.84,AMZNMKTPLACE
OXFORDSHIRE CC,CUSTOMER AND CULTURE,THAME LIBRARY,"NEWSPAPERS, PERIODICALS AND PUBLICATIONS",27/02/2024,000011408654299,5.80,SAINSBURYS S/MKTS
OXFORDSHIRE CC,CHILDREN'S & EDUCATION,THAME E&A HOME,CATERING PROVISIONS,27/02/2024,000011408653555,28.00,LIDL GB OXFORD
OXFORDSHIRE CC,ADULTS,CSS WITNEY,CATERING PROVISIONS,27/02/2024,000011408653847,2.59,LIDL GB WITNEY
OXFORDSHIRE CC,CUSTOMER AND CULTURE,CAMBRIDGE TERRACE,OTHER PREMISES RELATED COSTS,27/02/2024,000011408653769,13.98,AMAZON  205-4221306-49
OXFORDSHIRE CC,CHILDREN'S & EDUCATION,OTFC TEAM,CATERING,27/02/2024,000011408654441,15.20,BOOST JUICE BARS
OXFORDSHIRE CC,CHILDREN'S & EDUCATION,NTS UASC AGENCY,CATERING PROVISIONS,27/02/2024,000011408654467,121.50,ASDA GEORGE COM LEEDS
OXFORDSHIRE CC,PUBLIC HEALTH,DIDCOT MOVE-ON HOME,CATERING PROVISIONS,27/02/2024,000011408653061,10.10,AMAZON  205-5305735-05
OXFORDSHIRE CC,CHILDREN'S & EDUCATION,"	LOOKED AFTER NORTH",OTHER TRANSPORT ARRANGEMENTS,27/02/2024,000011408653461,8.90,M6 TOLL
OXFORDSHIRE CC,ENVIRONMENT AND PLACE,NATURAL ENVIRONMENT,MATERIALS,27/02/2024,000011408654515,152.98,AMZNMKTPLACE
OXFORDSHIRE CC,ADULTS,CSS WANTAGE,CATERING PROVISIONS,27/02/2024,000011408654721,7.90,SAINSBURYS S/MKTS
OXFORDSHIRE CC,ADULTS,FAMILY SOLUTIONS PLUS STAFFING - SOUTH,CATERING PROVISIONS,27/02/2024,000011408653781,29.98,AMAZON  026-7893606-38
OXFORDSHIRE CC,ADULTS,ADULTS AT RISK,HIRE OF ACCOMMODATION AND FACILITIES,27/02/2024,000011408653693,730.00,ATHENA OXFORD LTD
OXFORDSHIRE CC,CHILDREN'S & EDUCATION,OTFC TEAM,CATERING,27/02/2024,000011408654433,31.20,NANDOS (OXFORD WESTGAT
OXFORDSHIRE CC,PUBLIC HEALTH,WITNEY,MATERIALS,27/02/2024,000011408653069,3.00,POUNDLAND LTD - 1912
OXFORDSHIRE CC,CHILDREN'S & EDUCATION,OTFC TEAM,CATERING,27/02/2024,000011408654437,13.47,"KFC OXFORD, TEMPLARS S"
OXFORDSHIRE CC,CUSTOMER AND CULTURE,REGISTRAR,CATERING PROVISIONS,27/02/2024,000011408653455,2.60,SAINSBURYS S/MKTS
OXFORDSHIRE CC,CHILDREN'S & EDUCATION,"	LEAVING CARE SOUTH",CATERING,27/02/2024,000011408653385,4.25,COSTA COFFEE 43010835
OXFORDSHIRE CC,CHILDREN'S & EDUCATION,FSP NON-STAFFING - CENTRAL,CATERING PROVISIONS,27/02/2024,000011408653483,8.29,TESCO STORES 2994
OXFORDSHIRE CC,CHILDREN'S & EDUCATION,THAME E&A HOME,CATERING PROVISIONS,27/02/2024,000011408653277,-1.75,TESCO STORES 2038
OXFORDSHIRE CC,CUSTOMER AND CULTURE,BANBURY LIBRARY,"NEWSPAPERS, PERIODICALS AND PUBLICATIONS",27/02/2024,000011408653687,56.99,GUARDIAN NEWS & MEDIA
OXFORDSHIRE CC,ENVIRONMENT AND PLACE,NATURAL ENVIRONMENT,IT SOFTWARE,27/02/2024,000011408654511,23.40,SP REFLECTIVES
OXFORDSHIRE CC,ENVIRONMENT AND PLACE,NATURAL ENVIRONMENT,IT SOFTWARE,27/02/2024,000011408654511,1.20,SP REFLECTIVES
OXFORDSHIRE CC,CHILDREN'S & EDUCATION,40 THE MOORS,CATERING PROVISIONS,27/02/2024,000011408653375,12.55,TESCO STORES 2788
OXFORDSHIRE CC,CHILDREN'S & EDUCATION,PAUSE PROGRAMME,CATERING PROVISIONS,27/02/2024,000011408654937,5.89,BELLINGERS S.STN
OXFORDSHIRE CC,CUSTOMER AND CULTURE,HARD FM,PREMISES REPAIRS,27/02/2024,000011408653121,5.95,NCP BANBURY MARLBOROUG
OXFORDSHIRE CC,CHILDREN'S & EDUCATION,CHILDREN IN CARE NON-STAFFING - CENTRL 1,PAYMENTS TO TRANSPORT OPERATORS,27/02/2024,000011408653213,264.52,TRAINLINE
OXFORDSHIRE CC,CUSTOMER AND CULTURE,SCHOOLS FM CATERING AREA 2,CATERING PROVISIONS,27/02/2024,000011408653761,12.69,SAINSBURYS S/MKTS
OXFORDSHIRE CC,ADULTS,FAMILY SOLUTIONS PLUS STAFFING - SOUTH,CATERING PROVISIONS,27/02/2024,000011408653785,169.98,AMAZON  026-7893606-38
OXFORDSHIRE CC,ENVIRONMENT AND PLACE,FLEET OPERATIONS,ROAD FUND LICENCES AND MOTS,27/02/2024,000011408653477,322.50,DVLA VEHICLE TAX
OXFORDSHIRE CC,CHILDREN'S & EDUCATION,CHILDREN IN CARE NON-STAFFING - SOUTH,CLOTHING AND UNIFORMS,27/02/2024,000011408654395,37.98,SPORTSDIRECT.COM
OXFORDSHIRE CC,CHILDREN'S & EDUCATION,OTFC TEAM,OTHER TRANSPORT ARRANGEMENTS,27/02/2024,000011408654421,5.00,OXPENS CAR PARK
OXFORDSHIRE CC,ADULTS,CSS - ABINGDON,CATERING PROVISIONS,27/02/2024,000011408654587,62.39,TESCO STORES 2008
OXFORDSHIRE CC,ADULTS,CSS - BANBURY,CATERING PROVISIONS,27/02/2024,000011408654577,54.80,SAINSBURYS.CO.UK
OXFORDSHIRE CC,CHILDREN'S & EDUCATION,"	LEAVING CARE NORTH",PAYMENTS TO TRANSPORT OPERATORS,27/02/2024,000011408654375,63.68,TRAINLINE
OXFORDSHIRE CC,CUSTOMER AND CULTURE,TREE MAINT OPS,EQUIPMENT,27/02/2024,000011408654569,21.86,AMAZON  204-1212275-10
OXFORDSHIRE CC,CHILDREN'S & EDUCATION,VIRTUAL SCHOOL POST 16 PPP,EDUCATIONAL AND VOCATIONAL TRAINING ,27/02/2024,000011408653653,"3,345.00",ACTIVATE LEARNING V
OXFORDSHIRE CC,CHILDREN'S & EDUCATION,OTFC TEAM,CATERING PROVISIONS,27/02/2024,000011408654415,1.30,SAINSBURYS S/MKTS
OXFORDSHIRE CC,CHILDREN'S & EDUCATION,"	LOOKED AFTER CITY 2",PAYMENTS TO TRANSPORT OPERATORS,27/02/2024,000011408653791,4.08,TRAINLINE
OXFORDSHIRE CC,ENVIRONMENT AND PLACE,NAT TRAILS GENERAL,"SUPPLIES, STATIONERY AND MATERIALS",27/02/2024,000011408653815,10.00,SAINSBURYS S/MKTS
OXFORDSHIRE CC,CHILDREN'S & EDUCATION,BANBURY CC,CATERING PROVISIONS,27/02/2024,000011408654563,5.80,TESCO STORES 2064
OXFORDSHIRE CC,ADULTS,CSS - BANBURY,CATERING PROVISIONS,27/02/2024,000011408654581,103.75,SAINSBURYS.CO.UK
OXFORDSHIRE CC,CHILDREN'S & EDUCATION,"	LEAVING CARE NORTH",ENTERTAINMENT EXPENSES,27/02/2024,000011408654379,25.94,GRAVITY MILTON KEYNES
OXFORDSHIRE CC,CHILDREN'S & EDUCATION,OTFC TEAM,ENTERTAINMENT EXPENSES,27/02/2024,000011408654411,25.90,REDKANGAROO READING
OXFORDSHIRE CC,CHILDREN'S & EDUCATION,THAME E&A HOME,CATERING PROVISIONS,27/02/2024,000011408653273,202.16,TESCO STORES 2038
OXFORDSHIRE CC,CHILDREN'S & EDUCATION,"DIDCOT CC, PARK ROAD",CATERING PROVISIONS,27/02/2024,000011408653661,3.50,CO-OPERATIVE FUEL
OXFORDSHIRE CC,PUBLIC HEALTH,WITNEY,CATERING PROVISIONS,27/02/2024,000011408653063,5.24,SAINSBURYS S/MKTS
OXFORDSHIRE CC,ADULTS,CSS BICESTER,CATERING PROVISIONS,27/02/2024,000011408653167,171.87,TESCO STORES 2162
OXFORDSHIRE CC,CHILDREN'S & EDUCATION,OTFC TEAM,DRUGS AND MEDICAL SUPPLIES,27/02/2024,000011408654427,14.49,SUPERDRUG STORES PLC
OXFORDSHIRE CC,CHILDREN'S & EDUCATION,40 THE MOORS,MATERIALS,27/02/2024,000011408654485,8.99,AMZNMKTPLACE
OXFORDSHIRE CC,CUSTOMER AND CULTURE,MUSIC UNALLOCABLE,EQUIPMENT MAINTENANCE CONTRACTS,27/02/2024,000011408654699,11.97,AMAZON  205-8229491-50
OXFORDSHIRE CC,CHILDREN'S & EDUCATION,"	DISABILITIES TEAM-N",EQUIPMENT,26/02/2024,000011400551519,239.00,AMAZON  206-0217427-10
OXFORDSHIRE CC,ADULTS,THAME E&A HOME,OTHER MISC INC,26/02/2024,000011400551773,17.20,DUNELM SOFT FURNISHIN
OXFORDSHIRE CC,CUSTOMER AND CULTURE,WANTAGE LIBRARY,FURNITURE,26/02/2024,000011400551851,283.22,AMAZON  203-3383145-99
OXFORDSHIRE CC,CUSTOMER AND CULTURE,WITNEY LIBRARY,FURNITURE,26/02/2024,000011400551849,283.22,AMAZON  203-2047152-99
OXFORDSHIRE CC,CUSTOMER AND CULTURE,DIDOCT LIBRARY,FURNITURE,26/02/2024,000011400551853,283.22,AMAZON  203-9044894-08
OXFORDSHIRE CC,CUSTOMER AND CULTURE,BICESTER LIBRARY,FURNITURE,26/02/2024,000011400551855,283.22,AMZNMKTPLACE
OXFORDSHIRE CC,CUSTOMER AND CULTURE,SCHOOLS FM CATERING AREA 2,MATERIALS,26/02/2024,000011400551721,19.45,AMZNMKTPLACE
OXFORDSHIRE CC,CHILDREN'S & EDUCATION,"	LOOKED AFTER CITY 2",PAYMENTS TO TRANSPORT OPERATORS,26/02/2024,000011400551735,13.25,TRAINLINE
OXFORDSHIRE CC,CUSTOMER AND CULTURE,SCHOOLS FM CATERING AREA 2,CATERING PROVISIONS,26/02/2024,000011400551717,8.40,TESCO STORES 2994
OXFORDSHIRE CC,CUSTOMER AND CULTURE,SCHOOLS FM CATERING AREA 2,CATERING PROVISIONS,26/02/2024,000011400551719,3.00,ASDA STORE 4442
OXFORDSHIRE CC,CHILDREN'S & EDUCATION,THAME E&A HOME,CATERING PROVISIONS,26/02/2024,000011400551731,4.50,B&M 515 - ABINGDON
OXFORDSHIRE CC,PUBLIC HEALTH,COUNTRYSIDE PREMISES,CLEANING MATERIALS,26/02/2024,000011400551723,164.48,KAERCHER ECOMUK
OXFORDSHIRE CC,PUBLIC HEALTH,ROW MAINT,EQUIPMENT,26/02/2024,000011400551725,66.97,ZORO UK
OXFORDSHIRE CC,CUSTOMER AND CULTURE,OPERATIONS,MATERIALS,26/02/2024,000011400551531,448.60,AMAZON.CO.UK Q61AC1PY5
OXFORDSHIRE CC,CUSTOMER AND CULTURE,THAME LIBRARY,FURNITURE,26/02/2024,000011400551847,283.22,AMAZON  203-1405016-00
OXFORDSHIRE CC,CHILDREN'S & EDUCATION,CHILDREN IN CARE NON-STAFFING - CENTRL 1,PAYMENTS TO TRANSPORT OPERATORS,26/02/2024,000011400551523,175.94,EASYJET
OXFORDSHIRE CC,CUSTOMER AND CULTURE,MUSEUMS COLLECTIONS,POSTAGE AND DELIVERY,26/02/2024,000011400551767,3.45,POST OFFICE COUNTER
OXFORDSHIRE CC,ADULTS,THAME E&A HOME,OTHER MISC INC,26/02/2024,000011400551771,158.02,THE RANGE
OXFORDSHIRE CC,ADULTS,CSS - OXFORD,EDUCATIONAL AND VOCATIONAL TRAINING ,26/02/2024,000011400551757,80.00,ZETTLE_ DELTAVIOLIN
OXFORDSHIRE CC,ADULTS,REVIEWING TEAM,HIRE OF ACCOMMODATION AND FACILITIES,26/02/2024,000011400551841,101.99,PREMIER INN
OXFORDSHIRE CC,CHILDREN'S & EDUCATION,CHILDREN IN CARE NON-STAFFING - SOUTH,PAYMENT TO GOVERNMENT DEPARTMENTS,26/02/2024,000011400551521,155.00,HM PASSPORT OFFICE
OXFORDSHIRE CC,ADULTS,CSS BICESTER,VEHICLE EQUIPMENT AND EXPENSES - OTHER,26/02/2024,000011400551529,22.00,HALFORDS 0480
OXFORDSHIRE CC,CUSTOMER AND CULTURE,HENLEY LIBRARY,FURNITURE,26/02/2024,000011400551845,283.22,AMAZON  203-0069857-04
OXFORDSHIRE CC,CHILDREN'S & EDUCATION,EET SERVICE,PAYMENT TO GOVERNMENT DEPARTMENTS,26/02/2024,000011400551761,14.00,GEN REGISTER OFFICE
OXFORDSHIRE CC,CHILDREN'S & EDUCATION,KINGFISHER,HIRE OF ACCOMMODATION AND FACILITIES,26/02/2024,000011400551503,328.94,PREMIER INN
OXFORDSHIRE CC,CUSTOMER AND CULTURE,HARD FM,PREMISES REPAIRS,26/02/2024,000011400551505,3.90,NCP BANBURY MARLBOROUG
OXFORDSHIRE CC,CHILDREN'S & EDUCATION,"	LEAVING CARE CITY 1",CATERING,26/02/2024,000011400551603,19.93,BEEFEATER 40014640
OXFORDSHIRE CC,CHILDREN'S & EDUCATION,THAME E&A HOME,CATERING,26/02/2024,000011400551513,14.86,MCDONALDS
OXFORDSHIRE CC,CHILDREN'S & EDUCATION,KINGFISHER,"SUPPLIES, STATIONERY AND MATERIALS",26/02/2024,000011400551499,100.00,RUNA NETWORK LIMITED
OXFORDSHIRE CC,ADULTS,CSS - OXFORD,CATERING PROVISIONS,26/02/2024,000011400551507,13.15,TESCO STORES 2994
OXFORDSHIRE CC,CHILDREN'S & EDUCATION,"	LOOKED AFTER NORTH",VEHICLE FUEL,26/02/2024,000011400551597,50.00,BP MOTO KNUTSFORD SOUT
OXFORDSHIRE CC,CHILDREN'S & EDUCATION,"	RESIDENTIAL STRATEGY",EDUCATIONAL AND VOCATIONAL TRAINING ,26/02/2024,000011400551605,60.00,PROTRAININGS
OXFORDSHIRE CC,CHILDREN'S & EDUCATION,40 THE MOORS,CATERING PROVISIONS,26/02/2024,000011400551599,31.66,TESCO STORES 2788
OXFORDSHIRE CC,CHILDREN'S & EDUCATION,"	LEAVING CARE SOUTH",CATERING PROVISIONS,26/02/2024,000011400551863,81.00,B&M 515 - ABINGDON
OXFORDSHIRE CC,ADULTS,CSS WANTAGE,EQUIPMENT,26/02/2024,000011400551473,9.46,AMAZON  202-8658023-09
OXFORDSHIRE CC,CHILDREN'S & EDUCATION,EYNSHAM,CATERING,26/02/2024,000011400551475,7.99,TESCO SUBSCRIPTION
OXFORDSHIRE CC,CUSTOMER AND CULTURE,UNION STREET FFS,"SUPPLIES, STATIONERY AND MATERIALS",26/02/2024,000011400552061,-11.98,AMAZON  202-9614728-60
OXFORDSHIRE CC,CUSTOMER AND CULTURE,PROPERTY DISPOSALS,PAYMENT TO GOVERNMENT DEPARTMENTS,26/02/2024,000011400552023,146.50,HTTPS://WWW.WESTOXON.G
OXFORDSHIRE CC,CHILDREN'S & EDUCATION,"	LOOKED AFTER CITY 2",OTHER TRANSPORT ARRANGEMENTS,26/02/2024,000011400551733,2.00,OXFORD BUS COMPANY
OXFORDSHIRE CC,CHILDREN'S & EDUCATION,KINGFISHER,OTHER TRANSPORT ARRANGEMENTS,26/02/2024,000011400551591,25.50,STGCOACH/CTYLINK
OXFORDSHIRE CC,CHILDREN'S & EDUCATION,EYNSHAM,CATERING PROVISIONS,26/02/2024,000011400551593,15.17,CO-OPERATIVE FOOD
OXFORDSHIRE CC,CHILDREN'S & EDUCATION,"	LOOKED AFTER NORTH",OTHER TRANSPORT ARRANGEMENTS,26/02/2024,000011400551595,8.90,M6 TOLL
OXFORDSHIRE CC,ADULTS,CSS WANTAGE,FIXTURES & FITTINGS,26/02/2024,000011400551471,34.98,AMAZON  202-2397016-59
OXFORDSHIRE CC,PUBLIC HEALTH,WITNEY,CATERING PROVISIONS,26/02/2024,000011400551483,30.00,ALDI 41 775
OXFORDSHIRE CC,PUBLIC HEALTH,WITNEY,CATERING PROVISIONS,26/02/2024,000011400551491,21.59,AMAZON  205-6334523-21
OXFORDSHIRE CC,PUBLIC HEALTH,WITNEY,CATERING PROVISIONS,26/02/2024,000011400551479,81.51,ALDI 41 775
OXFORDSHIRE CC,PUBLIC HEALTH,DIDCOT MOVE-ON HOME,CATERING PROVISIONS,26/02/2024,000011400551487,26.90,AMAZON  205-9172670-49
OXFORDSHIRE CC,PUBLIC HEALTH,WITNEY,CATERING PROVISIONS,26/02/2024,000011400551481,11.74,ALDI 41 775
OXFORDSHIRE CC,PUBLIC HEALTH,WITNEY,MATERIALS,26/02/2024,000011400551489,11.80,AMZNMKTPLACE
OXFORDSHIRE CC,CHILDREN'S & EDUCATION,EYNSHAM,CATERING PROVISIONS,26/02/2024,000011400551943,175.31,TESCO STORES 2008
OXFORDSHIRE CC,CHILDREN'S & EDUCATION,"	LEAVING CARE SOUTH",CATERING,26/02/2024,000011400551867,4.00,COSTA COFFEE ABINGDON
OXFORDSHIRE CC,"COMMUNICATIONS, STRATEGY AND INSIGHT",STRAT&COMMS TRAINING,TRAINING RELATED EXPENDITURE,26/02/2024,000011400551941,344.74,WESTMINSTER INSIGHT
OXFORDSHIRE CC,CHILDREN'S & EDUCATION,40 THE MOORS,CATERING PROVISIONS,26/02/2024,000011400551955,2.65,SAINSBURYS S/MKTS
OXFORDSHIRE CC,CHILDREN'S & EDUCATION,THAME E&A HOME,CATERING PROVISIONS,26/02/2024,000011400551989,3.95,OXFORD W H SMITH
OXFORDSHIRE CC,ENVIRONMENT AND PLACE,ROW MAINT,EQUIPMENT,26/02/2024,000011400551711,637.20,PETER KINCH PLANT LIMI
OXFORDSHIRE CC,CUSTOMER AND CULTURE,ABINGDON LIBRARY,"NEWSPAPERS, PERIODICALS AND PUBLICATIONS",26/02/2024,000011400551861,64.99,GUARDIAN NEWS & MEDIA
OXFORDSHIRE CC,RESOURCES,MOTOR FLEET,MOTOR IF OWN DAMAGE,26/02/2024,000011400551869,"1,613.40",DAWSONGROUP TRUCK AND
OXFORDSHIRE CC,CHILDREN'S & EDUCATION,40 THE MOORS,HIRED AND CONTRACTED SERVICES,26/02/2024,000011400551951,13.00,SUMUP  SUMUP PAYMENTS
OXFORDSHIRE CC,CUSTOMER AND CULTURE,LEARNING & ACCESS,"SUPPLIES, STATIONERY AND MATERIALS",26/02/2024,000011400551977,20.88,AMAZON  202-7293527-79
OXFORDSHIRE CC,CHILDREN'S & EDUCATION,THAME E&A HOME,CATERING PROVISIONS,26/02/2024,000011400551985,13.00,SAINSBURYS S/MKTS
OXFORDSHIRE CC,CHILDREN'S & EDUCATION,NTS UASC AGENCY,OTHER MISC INC,26/02/2024,000011400551993,11.72,AMAZON  026-7354601-63
OXFORDSHIRE CC,CHILDREN'S & EDUCATION,THAME E&A HOME,VEHICLE FUEL,26/02/2024,000011400551657,3.00,THAME BP SF CONNECT
OXFORDSHIRE CC,CHILDREN'S & EDUCATION,THAME E&A HOME,CATERING,26/02/2024,000011400551713,8.49,KFC
OXFORDSHIRE CC,CHILDREN'S & EDUCATION,FAMILY SOLUTIONS PLUS NON-STAFF - NORTH,PAYMENTS TO TRANSPORT OPERATORS,26/02/2024,000011400551979,74.17,TRAINLINE
OXFORDSHIRE CC,CHILDREN'S & EDUCATION,THAME E&A HOME,CLOTHING AND UNIFORMS,26/02/2024,000011400551983,29.99,SHOE ZONE
OXFORDSHIRE CC,CHILDREN'S & EDUCATION,THAME E&A HOME,CATERING PROVISIONS,26/02/2024,000011400551991,14.85,WELCOME BREAK-OXFORD S
OXFORDSHIRE CC,CHILDREN'S & EDUCATION,THAME E&A HOME,SUBSCRIPTIONS,26/02/2024,000011400551987,21.00,AQUA VALE SWIMMING
OXFORDSHIRE CC,CHILDREN'S & EDUCATION,NTS UASC AGENCY,OTHER MISC INC,26/02/2024,000011400551995,24.99,AMAZON  026-8605509-51
OXFORDSHIRE CC,CHILDREN'S & EDUCATION,40 THE MOORS,CATERING PROVISIONS,26/02/2024,000011400551963,109.54,SAINSBURYS.CO.UK
OXFORDSHIRE CC,CUSTOMER AND CULTURE,OXFORDSHIRE MUSEUM,OTHER TRAINING COURSES AND QUALIFICATION,26/02/2024,000011400551971,45.00,MUSEUMS ASCTN
OXFORDSHIRE CC,ADULTS,OXFORD CITY TEAM,OTHER PREMISES RELATED COSTS,26/02/2024,000011400551707,159.30,LCS CONTAINER SERVICES
OXFORDSHIRE CC,CHILDREN'S & EDUCATION,THAME E&A HOME,CLOTHING AND UNIFORMS,26/02/2024,000011400551655,119.25,SP GOOSE & GANDER LT
OXFORDSHIRE CC,ADULTS,OXFORD CITY TEAM,OTHER PREMISES RELATED COSTS,26/02/2024,000011400551709,171.10,LCS CONTAINER SERVICES
OXFORDSHIRE CC,CUSTOMER AND CULTURE,OXFORDSHIRE MUSEUM,OTHER TRAINING COURSES AND QUALIFICATION,26/02/2024,000011400551973,45.00,MUSEUMS ASCTN
OXFORDSHIRE CC,ADULTS,CSS - OXFORD,CATERING PROVISIONS,26/02/2024,000011400551557,4.95,ALDI STORES 775-142
OXFORDSHIRE CC,CHILDREN'S & EDUCATION,40 THE MOORS,CLOTHING AND UNIFORMS,26/02/2024,000011400551573,2.50,PRIMARK 440
OXFORDSHIRE CC,CORPORATE CORE,,STATIONERY,26/02/2024,000011400551885,118.62,LYRECO UK LTD
OXFORDSHIRE CC,CHILDREN'S & EDUCATION,FAMILY HELP NORTH,POSTAGE AND DELIVERY,26/02/2024,000011400551893,39.00,POST OFFICE COUNTER
OXFORDSHIRE CC,CHILDREN'S & EDUCATION,FAMILY SOLUTIONS PLUS NON-STAFF � SOUTH,CATERING PROVISIONS,26/02/2024,000011400551559,9.79,TESCO STORES 2008
OXFORDSHIRE CC,CUSTOMER AND CULTURE,THAME LIBRARY,"NEWSPAPERS, PERIODICALS AND PUBLICATIONS",26/02/2024,000011400551879,5.80,SAINSBURYS S/MKTS
OXFORDSHIRE CC,CORPORATE CORE,,STATIONERY,26/02/2024,000011400551887,3.56,LYRECO UK LTD
OXFORDSHIRE CC,ADULTS,CSS - BANBURY,CATERING PROVISIONS,26/02/2024,000011400551895,.89,ALDI 10 775
OXFORDSHIRE CC,ADULTS,CSS - BANBURY,MATERIALS,26/02/2024,000011400551897,19.88,AMZNMKTPLACE
OXFORDSHIRE CC,CHILDREN'S & EDUCATION,THAME E&A HOME,RESIDENTIAL ACTIVITIES,26/02/2024,000011400551553,10.00,EVERYONE ACTIVE-DOM
OXFORDSHIRE CC,CUSTOMER AND CULTURE,THAME LIBRARY,"NEWSPAPERS, PERIODICALS AND PUBLICATIONS",26/02/2024,000011400551881,7.50,SAINSBURYS SUPERMA
OXFORDSHIRE CC,CHILDREN'S & EDUCATION,NTS UASC AGENCY,OTHER TRANSPORT ARRANGEMENTS,26/02/2024,000011400551997,2.00,OXFORD BUS COMPANY
OXFORDSHIRE CC,CORPORATE CORE,,STATIONERY,26/02/2024,000011400551889,83.35,LYRECO UK LTD
OXFORDSHIRE CC,CORPORATE CORE,"MARKETING, COMMUNICATIONS & ENGAGEMENT",LICENCES,26/02/2024,000011400552013,167.44,ADOBE
OXFORDSHIRE CC,CHILDREN'S & EDUCATION,WITNEY,CATERING PROVISIONS,26/02/2024,000011400551683,200.88,WM MORRISONS STORE PIC
OXFORDSHIRE CC,CHILDREN'S & EDUCATION,NTS UASC AGENCY,OTHER TRANSPORT ARRANGEMENTS,26/02/2024,000011400551999,2.00,STGCOACH/CTYLINK
OXFORDSHIRE CC,CHILDREN'S & EDUCATION,"	LEAVING CARE NORTH",MATERIALS,26/02/2024,000011400552041,35.00,WWW.ARGOS.CO.UK
OXFORDSHIRE CC,CUSTOMER AND CULTURE,OXFORDSHIRE MUSEUM,OTHER TRAINING COURSES AND QUALIFICATION,26/02/2024,000011400551975,45.00,MUSEUMS ASCTN
OXFORDSHIRE CC,CHILDREN'S & EDUCATION,"	LEAVING CARE NORTH",CATERING PROVISIONS,26/02/2024,000011400552043,25.00,ASDA STORES LTD
OXFORDSHIRE CC,CUSTOMER AND CULTURE,SCHOOLS FM CATERING AREA 4,CATERING PROVISIONS,26/02/2024,000011400551515,25.00,CO-OPERATIVE FOOD
OXFORDSHIRE CC,CUSTOMER AND CULTURE,COWLEY LIBRARY,FURNITURE,26/02/2024,000011400551857,283.22,AMZNMKTPLACE
OXFORDSHIRE CC,CHILDREN'S & EDUCATION,"	LEAVING CARE SOUTH",CATERING PROVISIONS,26/02/2024,000011400551865,97.50,TESCO STORES 2008
OXFORDSHIRE CC,CHILDREN'S & EDUCATION,40 THE MOORS,OTHER TRANSPORT ARRANGEMENTS,26/02/2024,000011400551953,4.50,STGCOACH/CTYLINK
OXFORDSHIRE CC,CHILDREN'S & EDUCATION,THAME E&A HOME,MATERIALS,26/02/2024,000011400551981,6.00,SNUG CAFE LTD
OXFORDSHIRE CC,ADULTS,FIELDWORK UASC,PAYMENTS TO TRANSPORT OPERATORS,26/02/2024,000011400551675,90.78,TRAINLINE
OXFORDSHIRE CC,CUSTOMER AND CULTURE,MUSEUMS COLLECTIONS,MATERIALS,26/02/2024,000011400552045,103.50,AMZNMKTPLACE
OXFORDSHIRE CC,CHILDREN'S & EDUCATION,KINGFISHER,CATERING PROVISIONS,26/02/2024,000011400551501,100.00,TESCO GIFT CARD
OXFORDSHIRE CC,ADULTS,CSS BICESTER,MATERIALS,26/02/2024,000011400551509,7.99,TESCO SUBSCRIPTION
OXFORDSHIRE CC,CUSTOMER AND CULTURE,HEADINGTON LIBRARY,FURNITURE,26/02/2024,000011400551859,15.99,AMAZON  203-4318946-93
OXFORDSHIRE CC,CHILDREN'S & EDUCATION,FSP NON-STAFFING - CENTRAL,CATERING PROVISIONS,26/02/2024,000011400551939,137.99,AMAZON  204-1408274-43
OXFORDSHIRE CC,CUSTOMER AND CULTURE,"MARKETING, COMMUNICATIONS & ENGAGEMENT","PUBLICITY, PROMOTIONS AND ADVERTISEMENT",26/02/2024,000011400551807,125.29,SNAP INC SNAP SNAP ADS
OXFORDSHIRE CC,CUSTOMER AND CULTURE,"MARKETING, COMMUNICATIONS & ENGAGEMENT","PUBLICITY, PROMOTIONS AND ADVERTISEMENT",26/02/2024,000011400551815,137.87,SNAP INC SNAP SNAP ADS
OXFORDSHIRE CC,CUSTOMER AND CULTURE,"MARKETING, COMMUNICATIONS & ENGAGEMENT","PUBLICITY, PROMOTIONS AND ADVERTISEMENT",26/02/2024,000011400551809,139.84,SNAP INC SNAP SNAP ADS
OXFORDSHIRE CC,CUSTOMER AND CULTURE,"MARKETING, COMMUNICATIONS & ENGAGEMENT","PUBLICITY, PROMOTIONS AND ADVERTISEMENT",26/02/2024,000011400551811,500.00,FACEBK  S9BA5ZB9Z2
OXFORDSHIRE CC,CUSTOMER AND CULTURE,"MARKETING, COMMUNICATIONS & ENGAGEMENT","PUBLICITY, PROMOTIONS AND ADVERTISEMENT",26/02/2024,000011400551805,499.91,FACEBK  FM7VDZ3AZ2
OXFORDSHIRE CC,CUSTOMER AND CULTURE,"MARKETING, COMMUNICATIONS & ENGAGEMENT","PUBLICITY, PROMOTIONS AND ADVERTISEMENT",26/02/2024,000011400551813,500.00,GOOGLE ADS4896546035
OXFORDSHIRE CC,CHILDREN'S & EDUCATION,EYNSHAM,CATERING,26/02/2024,000011400551477,15.00,MAYFIELDEGGS
OXFORDSHIRE CC,PUBLIC HEALTH,WITNEY,CATERING PROVISIONS,26/02/2024,000011400551485,63.05,AMAZON  205-4345146-33
OXFORDSHIRE CC,CUSTOMER AND CULTURE,CH REFURB PROJECT,EQUIPMENT,26/02/2024,000011400551739,53.90,AMAZON  026-6867074-02
OXFORDSHIRE CC,ADULTS,CSS WITNEY,MATERIALS,26/02/2024,000011400551747,3.00,THEWORKS
OXFORDSHIRE CC,CUSTOMER AND CULTURE,OPERATIONS,MATERIALS,26/02/2024,000011400551755,16.72,AMAZON  203-0596147-03
OXFORDSHIRE CC,CHILDREN'S & EDUCATION,"	LEAVING CARE CITY 2",MATERIALS,26/02/2024,000011400551749,-9.25,WWW.ARGOS.CO.UK
OXFORDSHIRE CC,CUSTOMER AND CULTURE,HEADINGTON LIBRARY,POSTAGE AND DELIVERY,26/02/2024,000011400551751,1.25,POST OFFICE COUNTER
OXFORDSHIRE CC,CHILDREN'S & EDUCATION,"	LOOKED AFTER CITY 2",OTHER TRANSPORT ARRANGEMENTS,26/02/2024,000011400551737,2.00,OXFORD BUS COMPANY
OXFORDSHIRE CC,CHILDREN'S & EDUCATION,SI EQUIPMENT,DISABILITY AIDS AND EQUIPMENT,26/02/2024,000011400551753,2.40,UPS LTD
OXFORDSHIRE CC,CHILDREN'S & EDUCATION,NTS UASC AGENCY,CATERING PROVISIONS,26/02/2024,000011400551905,15.00,SAINSBURYS S/MKTS
OXFORDSHIRE CC,CHILDREN'S & EDUCATION,WITNEY,CATERING PROVISIONS,26/02/2024,000011400551685,15.07,LIDL GB WITNEY
OXFORDSHIRE CC,CHILDREN'S & EDUCATION,NTS UASC AGENCY,OTHER TRANSPORT ARRANGEMENTS,26/02/2024,000011400552001,2.00,OXFORD BUS COMPANY
OXFORDSHIRE CC,CHILDREN'S & EDUCATION,REACTIVE MAINTENANCE,PREMISES REPAIRS,26/02/2024,000011400552009,19.50,HOMEBASE
OXFORDSHIRE CC,CORPORATE CORE,,STATIONERY,26/02/2024,000011400551891,23.21,LYRECO UK LTD
OXFORDSHIRE CC,ADULTS,CSS - BANBURY,MATERIALS,26/02/2024,000011400551899,18.48,AMZNMKTPLACE
OXFORDSHIRE CC,CHILDREN'S & EDUCATION,FAMILY SOLUTIONS PLUS NON-STAFF - NORTH,PAYMENTS TO TRANSPORT OPERATORS,26/02/2024,000011400551917,35.15,TRAINLINE
OXFORDSHIRE CC,CHILDREN'S & EDUCATION,DIDCOT MOVE-ON HOME,OTHER TRANSPORT ARRANGEMENTS,26/02/2024,000011400551925,1.00,CP PLUS - OXFORD HEALT
OXFORDSHIRE CC,CHILDREN'S & EDUCATION,DIDCOT MOVE-ON HOME,CATERING PROVISIONS,26/02/2024,000011400551933,5.59,SAINSBURYS S/MKTS
OXFORDSHIRE CC,CHILDREN'S & EDUCATION,FAMILY SOLUTIONS PLUS NON-STAFF - NORTH,PAYMENTS TO TRANSPORT OPERATORS,26/02/2024,000011400551919,11.31,TRAINLINE
OXFORDSHIRE CC,CHILDREN'S & EDUCATION,DIDCOT MOVE-ON HOME,CLEANING MATERIALS,26/02/2024,000011400551927,37.70,SAINSBURYS SMKT
OXFORDSHIRE CC,CHILDREN'S & EDUCATION,DIDCOT MOVE-ON HOME,CATERING PROVISIONS,26/02/2024,000011400551935,3.50,SAINSBURYS S/MKTS
OXFORDSHIRE CC,CHILDREN'S & EDUCATION,"	LEAVING CARE SOUTH",CATERING,26/02/2024,000011400551679,8.07,MCDONALDS
OXFORDSHIRE CC,CHILDREN'S & EDUCATION,"	LEAVING CARE SOUTH",CATERING,26/02/2024,000011400551687,20.00,VOUCHER EXPRESS
OXFORDSHIRE CC,CUSTOMER AND CULTURE,SCHOOLS FM CATERING AREA 1,CATERING PROVISIONS,26/02/2024,000011400551921,19.50,ALDI 112 775
OXFORDSHIRE CC,CHILDREN'S & EDUCATION,DIDCOT MOVE-ON HOME,CATERING PROVISIONS,26/02/2024,000011400551929,35.59,SAINSBURYS SMKT
OXFORDSHIRE CC,CHILDREN'S & EDUCATION,"	LOOKED AFTER NORTH",VEHICLE FUEL,26/02/2024,000011400551907,43.11,TESCO PFS 3878
OXFORDSHIRE CC,CHILDREN'S & EDUCATION,WITNEY,CATERING PROVISIONS,26/02/2024,000011400551915,21.16,SAINSBURYS S/MKTS
OXFORDSHIRE CC,ADULTS,CSS - OXFORD,CATERING PROVISIONS,26/02/2024,000011400551555,99.33,ALDI STORES 775-142
OXFORDSHIRE CC,CHILDREN'S & EDUCATION,UASC 16&17,CLOTHING AND UNIFORMS,26/02/2024,000011400552003,83.20,PRIMARK 440
OXFORDSHIRE CC,CHILDREN'S & EDUCATION,THAME E&A HOME,CATERING PROVISIONS,26/02/2024,000011400551551,241.23,TESCO STORES 2038
OXFORDSHIRE CC,CUSTOMER AND CULTURE,SCHOOLS FM CATERING AREA 1,CATERING PROVISIONS,26/02/2024,000011400551923,152.05,TESCO STORES 4480
OXFORDSHIRE CC,ADULTS,CSS - BANBURY,MATERIALS,26/02/2024,000011400551901,31.01,AMZNMKTPLACE
OXFORDSHIRE CC,ENTERPRISEVC,,CAR LEASING - PRIVATE RENTALS,23/02/2024,000011392564097,"2,232.00",ENTERPRISE RENT-A-CAR
OXFORDSHIRE CC,CORPORATE CORE,,STATIONERY,23/02/2024,000011392564023,15.23,LYRECO UK LTD
OXFORDSHIRE CC,CORPORATE CORE,,STATIONERY,23/02/2024,000011392564047,100.04,LYRECO UK LTD
OXFORDSHIRE CC,ENTERPRISEVC,,CAR LEASING - PRIVATE RENTALS,23/02/2024,000011392564065,290.90,ENTERPRISE RENT-A-CAR
OXFORDSHIRE CC,ENTERPRISEVC,,CAR LEASING - PRIVATE RENTALS,23/02/2024,000011392564085,402.50,ENTERPRISE RENT-A-CAR
OXFORDSHIRE CC,ENTERPRISEVC,,CAR LEASING - PRIVATE RENTALS,23/02/2024,000011392564103,402.50,ENTERPRISE RENT-A-CAR
OXFORDSHIRE CC,CHILDREN'S & EDUCATION,"	LEAVING CARE NORTH",MATERIALS,23/02/2024,000011392564247,8.99,AMAZON PRIME FE7IK8625
OXFORDSHIRE CC,CUSTOMER AND CULTURE,REACTIVE MAINTENANCE,MATERIALS,23/02/2024,000011392563529,"1,559.98",TOOLSTATION UK
OXFORDSHIRE CC,CORPORATE CORE,,STATIONERY,23/02/2024,000011392564031,19.25,LYRECO UK LTD
OXFORDSHIRE CC,ENTERPRISEVC,,CAR LEASING - PRIVATE RENTALS,23/02/2024,000011392564055,402.50,ENTERPRISE RENT-A-CAR
OXFORDSHIRE CC,CUSTOMER AND CULTURE,CENTRAL LIBRARY,PRINTING,23/02/2024,000011392563665,118.15,MUNRO SUPPLIES TA WITN
OXFORDSHIRE CC,CHILDREN'S & EDUCATION,"	LOOKED AFTER CITY 2",VEHICLE FUEL,23/02/2024,000011392563707,30.00,TEXACO GAMRON
OXFORDSHIRE CC,CHILDREN'S & EDUCATION,"	LEAVING CARE NORTH",CATERING PROVISIONS,23/02/2024,000011392564295,6.00,OXFORD PEARTREE - GREG
OXFORDSHIRE CC,CHILDREN'S & EDUCATION,OTFC TEAM,OTHER TRANSPORT ARRANGEMENTS,23/02/2024,000011392564317,2.40,CAR PARK CHARGES
OXFORDSHIRE CC,CHILDREN'S & EDUCATION,NTS UASC AGENCY,DOMESTIC AND CLEANING EQUIPMENT,23/02/2024,000011392564299,23.25,VIKING
OXFORDSHIRE CC,CHILDREN'S & EDUCATION,FAMILY SOLUTIONS PLUS NON-STAFF - NORTH,PAYMENTS TO TRANSPORT OPERATORS,23/02/2024,000011392564323,6.52,TRAINLINE
OXFORDSHIRE CC,CHILDREN'S & EDUCATION,NTS UASC AGENCY,"SUPPLIES, STATIONERY AND MATERIALS",23/02/2024,000011392564305,31.48,AMAZON  204-3065226-98
OXFORDSHIRE CC,CHILDREN'S & EDUCATION,"	LEAVING CARE NORTH",CLOTHING AND UNIFORMS,23/02/2024,000011392564291,160.00,J D SPORTS FASHION
OXFORDSHIRE CC,CHILDREN'S & EDUCATION,OTFC TEAM,CATERING,23/02/2024,000011392564313,43.90,ZUSHI JAPA
OXFORDSHIRE CC,CHILDREN'S & EDUCATION,FAMILY SOLUTIONS PLUS NON-STAFF - NORTH,CATERING,23/02/2024,000011392564327,10.00,STARBUCKS APP
OXFORDSHIRE CC,CUSTOMER AND CULTURE,SCHOOLS FM CATERING AREA 1,CATERING PROVISIONS,23/02/2024,000011392564333,7.10,TESCO STORES
OXFORDSHIRE CC,CUSTOMER AND CULTURE,THAME LIBRARY,"NEWSPAPERS, PERIODICALS AND PUBLICATIONS",23/02/2024,000011392563975,5.80,SAINSBURYS S/MKTS
OXFORDSHIRE CC,ENTERPRISEVC,,CAR LEASING - PRIVATE RENTALS,23/02/2024,000011392564195,290.90,ENTERPRISE RENT-A-CAR
OXFORDSHIRE CC,ENTERPRISEVC,,CAR LEASING - PRIVATE RENTALS,23/02/2024,000011392564211,"2,111.57",ENTERPRISE RENT-A-CAR
OXFORDSHIRE CC,RESOURCES,SCHOOLS FM CATERING AREA 2,CATERING PROVISIONS,23/02/2024,000011392564263,2.40,SAINSBURYS S/MKTS
OXFORDSHIRE CC,CHILDREN'S & EDUCATION,"	LEAVING CARE NORTH",OTHER TRANSPORT ARRANGEMENTS,23/02/2024,000011392564287,3.80,WESTGATE OXFORD CAR PA
OXFORDSHIRE CC,CUSTOMER AND CULTURE,ALTERNATIVES TO CARE,FURNITURE,23/02/2024,000011392564539,42.45,AMZNMKTPLACE
OXFORDSHIRE CC,ENTERPRISEVC,,CAR LEASING - PRIVATE RENTALS,23/02/2024,000011392564201,329.96,ENTERPRISE RENT-A-CAR
OXFORDSHIRE CC,ENTERPRISEVC,,CAR LEASING - PRIVATE RENTALS,23/02/2024,000011392564215,402.50,ENTERPRISE RENT-A-CAR
OXFORDSHIRE CC,ENTERPRISEVC,,CAR LEASING - PRIVATE RENTALS,23/02/2024,000011392564187,402.50,ENTERPRISE RENT-A-CAR
OXFORDSHIRE CC,ENTERPRISEVC,,CAR LEASING - PRIVATE RENTALS,23/02/2024,000011392564203,402.50,ENTERPRISE RENT-A-CAR
OXFORDSHIRE CC,CUSTOMER AND CULTURE,WALLINGFORD LIBRARY,CATERING PROVISIONS,23/02/2024,000011392564267,5.65,WAITROSE 675
OXFORDSHIRE CC,ENVIRONMENT AND PLACE,BRIDGES GENERAL,PAYMENT TO GOVERNMENT DEPARTMENTS,23/02/2024,000011392564597,612.75,ENVIROMENT AGENCY
OXFORDSHIRE CC,CUSTOMER AND CULTURE,ALTERNATIVES TO CARE,FURNITURE,23/02/2024,000011392564543,107.94,AMZNMKTPLACE
OXFORDSHIRE CC,CHILDREN'S & EDUCATION,THAME E&A HOME,MATERIALS,23/02/2024,000011392563505,11.68,AMAZON.CO.UK M29W323S5
OXFORDSHIRE CC,ENTERPRISEVC,,CAR LEASING - PRIVATE RENTALS,23/02/2024,000011392564217,954.08,ENTERPRISE RENT-A-CAR
OXFORDSHIRE CC,ENTERPRISEVC,,CAR LEASING - PRIVATE RENTALS,23/02/2024,000011392564193,402.50,ENTERPRISE RENT-A-CAR
OXFORDSHIRE CC,ENTERPRISEVC,,CAR LEASING - PRIVATE RENTALS,23/02/2024,000011392564207,290.90,ENTERPRISE RENT-A-CAR
OXFORDSHIRE CC,ENTERPRISEVC,,CAR LEASING - PRIVATE RENTALS,23/02/2024,000011392564227,"2,391.07",ENTERPRISE RENT-A-CAR
OXFORDSHIRE CC,ENTERPRISEVC,,CAR LEASING - PRIVATE RENTALS,23/02/2024,000011392564073,402.50,ENTERPRISE RENT-A-CAR
OXFORDSHIRE CC,CUSTOMER AND CULTURE,UNION STREET FFS,"SUPPLIES, STATIONERY AND MATERIALS",23/02/2024,000011392564603,17.50,AMAZON  202-8523669-94
OXFORDSHIRE CC,ENTERPRISEVC,,CAR LEASING - PRIVATE RENTALS,23/02/2024,000011392564179,402.50,ENTERPRISE RENT-A-CAR
OXFORDSHIRE CC,ENTERPRISEVC,,CAR LEASING - PRIVATE RENTALS,23/02/2024,000011392564185,402.50,ENTERPRISE RENT-A-CAR
OXFORDSHIRE CC,ENTERPRISEVC,,CAR LEASING - PRIVATE RENTALS,23/02/2024,000011392564061,290.90,ENTERPRISE RENT-A-CAR
OXFORDSHIRE CC,ENVIRONMENT AND PLACE,MAINTENANCE STAFF,CATERING PROVISIONS,23/02/2024,000011392563613,28.08,AMAZON  202-8428334-77
OXFORDSHIRE CC,CHILDREN'S & EDUCATION,EYNSHAM,MATERIALS,23/02/2024,000011392563285,"1,447.00",AO RETAIL LIMITED
OXFORDSHIRE CC,CUSTOMER AND CULTURE,MUSEUMS COLLECTIONS,CATERING PROVISIONS,23/02/2024,000011392563617,4.62,MILK AND MORE (RECUR
OXFORDSHIRE CC,ENVIRONMENT AND PLACE,ROW MAINT,EQUIPMENT,23/02/2024,000011392563511,99.98,WWW.2020PPE.CO.UK
OXFORDSHIRE CC,PUBLIC HEALTH,ROW MAINT,EQUIPMENT,23/02/2024,000011392563535,884.92,POWERTOOLMATE
OXFORDSHIRE CC,ENTERPRISEVC,,CAR LEASING - PRIVATE RENTALS,23/02/2024,000011392564093,569.90,ENTERPRISE RENT-A-CAR
OXFORDSHIRE CC,ADULTS,CSS WITNEY,CATERING PROVISIONS,23/02/2024,000011392563723,35.70,MILK AND MORE (RECUR
OXFORDSHIRE CC,ENTERPRISEVC,,CAR LEASING - PRIVATE RENTALS,23/02/2024,000011392564077,290.90,ENTERPRISE RENT-A-CAR
OXFORDSHIRE CC,CHILDREN'S & EDUCATION,DIDCOT MOVE-ON HOME,CATERING PROVISIONS,23/02/2024,000011392563289,5.89,SAINSBURYS S/MKTS
OXFORDSHIRE CC,CHILDREN'S & EDUCATION,THAME E&A HOME,CATERING PROVISIONS,23/02/2024,000011392563309,30.45,ASDA SUPERSTORE
OXFORDSHIRE CC,PUBLIC HEALTH,ROW MAINT,EQUIPMENT,23/02/2024,000011392563537,34.99,WWW.SCREWFIX.COM
OXFORDSHIRE CC,CORPORATE CORE,,STATIONERY,23/02/2024,000011392564039,17.35,LYRECO UK LTD
OXFORDSHIRE CC,ENVIRONMENT AND PLACE,NAT TRAILS GENERAL,VEHICLE FUEL,23/02/2024,000011392563559,84.41,BP BUCKLAND CONNECT
OXFORDSHIRE CC,CHILDREN'S & EDUCATION,"	LEAVING CARE SOUTH",CATERING,23/02/2024,000011392563455,21.15,READING S/W WH SMITHS
OXFORDSHIRE CC,ADULTS,CSS BICESTER,MATERIALS,23/02/2024,000011392562973,20.97,AMAZON  202-1669935-94
OXFORDSHIRE CC,CUSTOMER AND CULTURE,HOLTON SITE,CATERING PROVISIONS,23/02/2024,000011392563025,17.50,MILK AND MORE (RECUR
OXFORDSHIRE CC,CHILDREN'S & EDUCATION,UASC 16&17,,23/02/2024,000011392563361,22.99,THE GYM GROUP
OXFORDSHIRE CC,ADULTS,CSS - OXFORD,CATERING PROVISIONS,23/02/2024,000011392563401,64.66,ALDI STORES 775-142
OXFORDSHIRE CC,ENVIRONMENT AND PLACE,NAT TRAILS GENERAL,CATERING PROVISIONS,23/02/2024,000011392563563,3.60,CO OPERATIVE FOOD
OXFORDSHIRE CC,CHILDREN'S & EDUCATION,KINGFISHER,CLIENT LODGINGS AND ACCOMMODATION,23/02/2024,000011392562841,138.98,PREMIER INN
OXFORDSHIRE CC,CUSTOMER AND CULTURE,CH REFURB PROJECT,EQUIPMENT,23/02/2024,000011392563567,118.80,HTTPS://WILDFLOWER-FAV
OXFORDSHIRE CC,CHILDREN'S & EDUCATION,HOUSE PROJECT,OTHER TRANSPORT ARRANGEMENTS,23/02/2024,000011392564459,5.80,WESTGATE OXFORD CAR PA
OXFORDSHIRE CC,ENTERPRISEVC,,CAR LEASING - PRIVATE RENTALS,23/02/2024,000011392564069,290.90,ENTERPRISE RENT-A-CAR
OXFORDSHIRE CC,ENTERPRISEVC,,CAR LEASING - PRIVATE RENTALS,23/02/2024,000011392564089,402.50,ENTERPRISE RENT-A-CAR
OXFORDSHIRE CC,ENTERPRISEVC,,CAR LEASING - PRIVATE RENTALS,23/02/2024,000011392564231,"1,204.51",ENTERPRISE RENT-A-CAR
OXFORDSHIRE CC,ADULTS,CSS - BANBURY,VEHICLE FUEL,23/02/2024,000011392564255,87.33,SAINSBURYS PETROL
OXFORDSHIRE CC,CHILDREN'S & EDUCATION,FAMILY SOLUTIONS PLUS NON-STAFF - NORTH,CATERING,23/02/2024,000011392564237,58.65,WETHERSPOON HOTEL
OXFORDSHIRE CC,CUSTOMER AND CULTURE,COWLEY LIBRARY,FURNITURE,23/02/2024,000011392563893,50.91,AMZNMKTPLACE
OXFORDSHIRE CC,ENTERPRISEVC,,CAR LEASING - PRIVATE RENTALS,23/02/2024,000011392564143,"2,391.07",ENTERPRISE RENT-A-CAR
OXFORDSHIRE CC,ENTERPRISEVC,,CAR LEASING - PRIVATE RENTALS,23/02/2024,000011392564161,863.27,ENTERPRISE RENT-A-CAR
OXFORDSHIRE CC,CORPORATE CORE,,STATIONERY,23/02/2024,000011392564035,12.98,LYRECO UK LTD
OXFORDSHIRE CC,ENTERPRISEVC,,CAR LEASING - PRIVATE RENTALS,23/02/2024,000011392564057,402.50,ENTERPRISE RENT-A-CAR
OXFORDSHIRE CC,ENTERPRISEVC,,CAR LEASING - PRIVATE RENTALS,23/02/2024,000011392564147,"1,098.61",ENTERPRISE RENT-A-CAR
OXFORDSHIRE CC,ENTERPRISEVC,,CAR LEASING - PRIVATE RENTALS,23/02/2024,000011392564165,"1,446.75",ENTERPRISE RENT-A-CAR
OXFORDSHIRE CC,CUSTOMER AND CULTURE,ALTERNATIVES TO CARE,FURNITURE,23/02/2024,000011392564535,92.91,AMZNMKTPLACE
OXFORDSHIRE CC,CUSTOMER AND CULTURE,THAME LIBRARY,FURNITURE,23/02/2024,000011392563881,53.59,AMAZON  203-7828373-82
OXFORDSHIRE CC,ENTERPRISEVC,,CAR LEASING - PRIVATE RENTALS,23/02/2024,000011392564151,402.50,ENTERPRISE RENT-A-CAR
OXFORDSHIRE CC,ENTERPRISEVC,,CAR LEASING - PRIVATE RENTALS,23/02/2024,000011392564169,402.50,ENTERPRISE RENT-A-CAR
OXFORDSHIRE CC,CUSTOMER AND CULTURE,BICESTER LIBRARY,FURNITURE,23/02/2024,000011392563885,53.59,AMZNMKTPLACE
OXFORDSHIRE CC,ENTERPRISEVC,,CAR LEASING - PRIVATE RENTALS,23/02/2024,000011392564155,402.50,ENTERPRISE RENT-A-CAR
OXFORDSHIRE CC,ENTERPRISEVC,,CAR LEASING - PRIVATE RENTALS,23/02/2024,000011392564173,402.50,ENTERPRISE RENT-A-CAR
OXFORDSHIRE CC,CHILDREN'S & EDUCATION,PAUSE PROGRAMME,CATERING,23/02/2024,000011392563495,11.68,MCDONALDS
OXFORDSHIRE CC,ENVIRONMENT AND PLACE,FLEET OPERATIONS,CATERING PROVISIONS,23/02/2024,000011392563223,20.00,MILK AND MORE (RECUR
OXFORDSHIRE CC,ADULTS,CSS - OXFORD,ENTERTAINMENT EXPENSES,23/02/2024,000011392563607,29.75,WWW.BETTER.ORG.UK
OXFORDSHIRE CC,ENTERPRISEVC,,CAR LEASING - PRIVATE RENTALS,23/02/2024,000011392564111,402.50,ENTERPRISE RENT-A-CAR
OXFORDSHIRE CC,ENTERPRISEVC,,CAR LEASING - PRIVATE RENTALS,23/02/2024,000011392564123,290.90,ENTERPRISE RENT-A-CAR
OXFORDSHIRE CC,ENVIRONMENT AND PLACE,WASTE REDUCTION GEN,PAYMENTS TO VOLUNTARY BODIES,23/02/2024,000011392563109,657.36,SQ  SHARE OXFORD CIO
OXFORDSHIRE CC,ENTERPRISEVC,,CAR LEASING - PRIVATE RENTALS,23/02/2024,000011392564139,"1,450.80",ENTERPRISE RENT-A-CAR
OXFORDSHIRE CC,CUSTOMER AND CULTURE,"MARKETING, COMMUNICATIONS & ENGAGEMENT","PUBLICITY, PROMOTIONS AND ADVERTISEMENT",23/02/2024,000011392563815,124.66,SNAP INC SNAP SNAP ADS
OXFORDSHIRE CC,CHILDREN'S & EDUCATION,FSP NON-STAFFING - CENTRAL,FURNITURE,23/02/2024,000011392564367,337.00,IKEA LTD SHOP ONLINE
OXFORDSHIRE CC,CUSTOMER AND CULTURE,MUSEUM CAFE,EQUIPMENT,23/02/2024,000011392564395,260.49,COOKSMILL
OXFORDSHIRE CC,CHILDREN'S & EDUCATION,"	OCCG GRANT",CATERING PROVISIONS,23/02/2024,000011392563159,29.63,SPAR SUPER STORE
OXFORDSHIRE CC,CHILDREN'S & EDUCATION,"	LEAVING CARE CITY 1",OTHER TRANSPORT ARRANGEMENTS,23/02/2024,000011392563225,36.00,OXFORDBUS.CO.UK
OXFORDSHIRE CC,ADULTS,CSS - OXFORD,ENTERTAINMENT EXPENSES,23/02/2024,000011392563609,5.95,WWW.BETTER.ORG.UK
OXFORDSHIRE CC,ENTERPRISEVC,,CAR LEASING - PRIVATE RENTALS,23/02/2024,000011392564115,402.50,ENTERPRISE RENT-A-CAR
OXFORDSHIRE CC,ENTERPRISEVC,,CAR LEASING - PRIVATE RENTALS,23/02/2024,000011392564125,"1,106.10",ENTERPRISE RENT-A-CAR
OXFORDSHIRE CC,CHILDREN'S & EDUCATION,VIRTUAL SCHOOL POST 16 PPP,OTHER TRAINING COURSES AND QUALIFICATION,23/02/2024,000011392563461,-130.00,NNECL.WHITEFUSE.NET
OXFORDSHIRE CC,CHILDREN'S & EDUCATION,"	LEAVING CARE CITY 1",MATERIALS,23/02/2024,000011392563227,429.00,CURRYS ONLINE
OXFORDSHIRE CC,CUSTOMER AND CULTURE,MEMBERS' BAR,EQUIPMENT,23/02/2024,000011392563611,115.88,SP DUKES VALLEY
OXFORDSHIRE CC,ENTERPRISEVC,,CAR LEASING - PRIVATE RENTALS,23/02/2024,000011392564119,478.54,ENTERPRISE RENT-A-CAR
OXFORDSHIRE CC,ENTERPRISEVC,,CAR LEASING - PRIVATE RENTALS,23/02/2024,000011392564127,290.90,ENTERPRISE RENT-A-CAR
OXFORDSHIRE CC,CUSTOMER AND CULTURE,REGISTRAR,MATERIALS,23/02/2024,000011392563173,-15.55,AMAZON.CO.UK
OXFORDSHIRE CC,CHILDREN'S & EDUCATION,FAMILY SOLUTIONS PLUS NON-STAFF - NORTH,CATERING PROVISIONS,23/02/2024,000011392563235,4.05,TESCO STORES 4377
OXFORDSHIRE CC,CUSTOMER AND CULTURE,CAMBRIDGE TERRACE,OTHER PREMISES RELATED COSTS,23/02/2024,000011392563543,30.49,AMAZON  205-5467060-68
OXFORDSHIRE CC,CHILDREN'S & EDUCATION,"	LOOKED AFTER CITY 2",PAYMENTS TO TRANSPORT OPERATORS,23/02/2024,000011392563557,33.10,CROSS COUNTRY UK
OXFORDSHIRE CC,ADULTS,CSS WITNEY,ENTERTAINMENT EXPENSES,23/02/2024,000011392563571,9.00,WWW.BETTER.ORG.UK
OXFORDSHIRE CC,CHILDREN'S & EDUCATION,"	SUPERVISED CONTACT",MATERIALS,23/02/2024,000011392563475,16.99,AMAZON  026-9010012-57
OXFORDSHIRE CC,CUSTOMER AND CULTURE,HARD FM,PREMISES REPAIRS,23/02/2024,000011392562865,10.00,SAINSBURYS PETROL
OXFORDSHIRE CC,CUSTOMER AND CULTURE,HARD FM,PREMISES REPAIRS,23/02/2024,000011392562871,8.93,SAINSBURYS PETROL
OXFORDSHIRE CC,ADULTS,CSS BICESTER,DAY ACTIVITIES,23/02/2024,000011392562981,59.90,AMAZON  202-1669935-94
OXFORDSHIRE CC,ADULTS,CSS - ABINGDON,CATERING PROVISIONS,23/02/2024,000011392562815,17.98,AMAZON  205-5029792-89
OXFORDSHIRE CC,CUSTOMER AND CULTURE,HARD FM,VEHICLE - HIRE CHARGES,23/02/2024,000011392562875,-484.82,SPEEDY ASSET SERVICES
OXFORDSHIRE CC,CHILDREN'S & EDUCATION,CHILDREN IN CARE NON-STAFFING - NORTH,PAYMENT TO GOVERNMENT DEPARTMENTS,23/02/2024,000011392562959,22.00,STOKE COUNCIL
OXFORDSHIRE CC,CUSTOMER AND CULTURE,OPERATIONS,CATERING PROVISIONS,23/02/2024,000011392562993,390.59,AMAZON  204-8126122-72
OXFORDSHIRE CC,ADULTS,CSS - ABINGDON,MATERIALS,23/02/2024,000011392562821,7.20,WWW.SAFEOPTIONS.CO.UK
OXFORDSHIRE CC,CHILDREN'S & EDUCATION,"	LEAVING CARE NORTH",CATERING,23/02/2024,000011392564511,12.77,MCDONALDS
OXFORDSHIRE CC,CHILDREN'S & EDUCATION,EYNSHAM,FURNITURE,23/02/2024,000011392562799,15.99,AMAZON  202-3923000-32
OXFORDSHIRE CC,CUSTOMER AND CULTURE,COUNTY HALL,FURNITURE,23/02/2024,000011392564473,12.79,AMAZON  026-5817407-19
OXFORDSHIRE CC,CUSTOMER AND CULTURE,BANBURY LIBRARY,FURNITURE,23/02/2024,000011392563859,283.22,AMZNMKTPLACE
OXFORDSHIRE CC,CUSTOMER AND CULTURE,WANTAGE LIBRARY,FURNITURE,23/02/2024,000011392563875,53.59,AMAZON  203-6805567-21
OXFORDSHIRE CC,CUSTOMER AND CULTURE,CATERING MANAGEMENT SOFT FM,MATERIALS,23/02/2024,000011392564429,43.99,CURRYS SWINDON
OXFORDSHIRE CC,ADULTS,CSS BICESTER,DAY ACTIVITIES,23/02/2024,000011392562977,39.96,AMAZON  202-7899497-14
OXFORDSHIRE CC,RESOURCES,CENTRAL BUYING TEAM,CATERING PROVISIONS,23/02/2024,000011392563057,12.18,AMAZON  202-5653407-76
OXFORDSHIRE CC,PUBLIC HEALTH,WITNEY,OTHER TRANSPORT ARRANGEMENTS,23/02/2024,000011392562807,3.50,EAST OXFORD HEALTHCENT
OXFORDSHIRE CC,CUSTOMER AND CULTURE,HENLEY LIBRARY,FURNITURE,23/02/2024,000011392563865,53.59,AMAZON  203-1856473-80
OXFORDSHIRE CC,CUSTOMER AND CULTURE,LEARNING & ACCESS,"SUPPLIES, STATIONERY AND MATERIALS",23/02/2024,000011392564399,719.39,WWW.STARBECK.EDUCATION
OXFORDSHIRE CC,CHILDREN'S & EDUCATION,PARTNERSHIP YOUTH OFFER,EDUCATIONAL AND VOCATIONAL TRAINING ,23/02/2024,000011392564433,420.00,ILD BUSHCRAFT COMPANY
OXFORDSHIRE CC,CUSTOMER AND CULTURE,HARD FM,PREMISES REPAIRS,23/02/2024,000011392562855,484.82,SPEEDY ASSET SERVICES
OXFORDSHIRE CC,CUSTOMER AND CULTURE,HARD FM,PREMISES REPAIRS,23/02/2024,000011392563279,65.44,MAD4TOOLS.COM
OXFORDSHIRE CC,CHILDREN'S & EDUCATION,NRPF & HOMELESSNESS,CLIENT LODGINGS AND ACCOMMODATION,23/02/2024,000011392564381,124.99,PREMIER INN
OXFORDSHIRE CC,CUSTOMER AND CULTURE,DIDOCT LIBRARY,FURNITURE,23/02/2024,000011392563869,53.59,AMAZON  203-2472883-00
OXFORDSHIRE CC,ADULTS,INCOME TEAM,PAYMENT TO GOVERNMENT DEPARTMENTS,23/02/2024,000011392563133,11.00,OXFORDSHIRE CC WEB1
OXFORDSHIRE CC,CUSTOMER AND CULTURE,OPERATIONS,MATERIALS,23/02/2024,000011392563601,7.98,AMAZON  203-7405745-70
OXFORDSHIRE CC,ENTERPRISEVC,,CAR LEASING - PRIVATE RENTALS,23/02/2024,000011392564107,290.90,ENTERPRISE RENT-A-CAR
OXFORDSHIRE CC,ENTERPRISEVC,,CAR LEASING - PRIVATE RENTALS,23/02/2024,000011392564121,402.50,ENTERPRISE RENT-A-CAR
OXFORDSHIRE CC,ENTERPRISEVC,,CAR LEASING - PRIVATE RENTALS,23/02/2024,000011392564133,290.90,ENTERPRISE RENT-A-CAR
OXFORDSHIRE CC,CUSTOMER AND CULTURE,WITNEY LIBRARY,FURNITURE,23/02/2024,000011392563871,53.59,AMAZON  203-4368395-14
OXFORDSHIRE CC,CUSTOMER AND CULTURE,CATERING MANAGEMENT SOFT FM,CATERING PROVISIONS,23/02/2024,000011392564421,41.94,AMAZON  203-1768169-49
OXFORDSHIRE CC,CHILDREN'S & EDUCATION,REACTIVE MAINTENANCE,PREMISES REPAIRS,23/02/2024,000011392564447,43.78,B & Q 1062
OXFORDSHIRE CC,CUSTOMER AND CULTURE,SAMUELSON HOUSE,CATERING PROVISIONS,23/02/2024,000011392563179,53.55,MILK AND MORE (RECUR
OXFORDSHIRE CC,CUSTOMER AND CULTURE,HARD FM,PREMISES REPAIRS,22/02/2024,000011386358659,48.81,B & Q 1156
OXFORDSHIRE CC,CHILDREN'S & EDUCATION,THAME E&A HOME,CATERING PROVISIONS,22/02/2024,000011386359425,9.90,SAINSBURYS S/MKTS
OXFORDSHIRE CC,CHILDREN'S & EDUCATION,OTFC TEAM,ENTERTAINMENT EXPENSES,22/02/2024,000011386360565,15.55,THE MAD HOUSE (READING
OXFORDSHIRE CC,CHILDREN'S & EDUCATION,"	OCCG GRANT",ENTERTAINMENT EXPENSES,22/02/2024,000011386360595,21.50,PRIMARK 693
OXFORDSHIRE CC,CUSTOMER AND CULTURE,COWLEY LIBRARY,EQUIPMENT,22/02/2024,000011386360897,78.99,AMZNMKTPLACE
OXFORDSHIRE CC,CHILDREN'S & EDUCATION,UASC 16&17,RESIDENTIAL ACTIVITIES,22/02/2024,000011386358631,27.98,AMAZON.CO.UK 861AB4FK5
OXFORDSHIRE CC,CUSTOMER AND CULTURE,HARD FM,PREMISES REPAIRS,22/02/2024,000011386358671,89.62,B & Q 1176
OXFORDSHIRE CC,CHILDREN'S & EDUCATION,PAUSE PROGRAMME,CATERING,22/02/2024,000011386359437,8.42,STARBUCKS
OXFORDSHIRE CC,CHILDREN'S & EDUCATION,OTFC TEAM,CATERING PROVISIONS,22/02/2024,000011386360571,5.55,CO-OP GROUP 310626
OXFORDSHIRE CC,CUSTOMER AND CULTURE,SCHOOLS FM CATERING AREA 4,CATERING PROVISIONS,22/02/2024,000011386359393,4.47,SAINSBURYS S/MKTS
OXFORDSHIRE CC,CHILDREN'S & EDUCATION,PAUSE PROGRAMME,CATERING,22/02/2024,000011386359447,17.95,NANDOS DIDCOT
OXFORDSHIRE CC,CHILDREN'S & EDUCATION,PAUSE PROGRAMME,CATERING PROVISIONS,22/02/2024,000011386359457,8.70,ASDA SUPERSTORE
OXFORDSHIRE CC,CHILDREN'S & EDUCATION,WITNEY,CATERING PROVISIONS,22/02/2024,000011386360553,29.22,SAINSBURYS S/MKTS
OXFORDSHIRE CC,CHILDREN'S & EDUCATION,"BICESTER CC, LAUNTON RD",CATERING PROVISIONS,22/02/2024,000011386360583,3.60,TESCO STORES 3143
OXFORDSHIRE CC,CHILDREN'S & EDUCATION,FIELDWORK UASC,CATERING PROVISIONS,22/02/2024,000011386360849,4.40,TESCO STORES 2990
OXFORDSHIRE CC,CHILDREN'S & EDUCATION,"	OCCG GRANT",DOMESTIC SUPPLIES,22/02/2024,000011386360601,15.00,TESCO STORES 2064
OXFORDSHIRE CC,CUSTOMER AND CULTURE,LIB ICT SUPPRT&MAINT,MATERIALS,22/02/2024,000011386360541,6.99,AMZNMKTPLACE
OXFORDSHIRE CC,CHILDREN'S & EDUCATION,OTFC TEAM,VEHICLE FUEL,22/02/2024,000011386360575,3.88,SHELL MAPLE RISE
OXFORDSHIRE CC,CHILDREN'S & EDUCATION,THAME E&A HOME,CATERING,22/02/2024,000011386360839,21.70,OXY ORIENTAL
OXFORDSHIRE CC,ADULTS,CSS WITNEY,CATERING PROVISIONS,22/02/2024,000011386359947,15.99,AMAZON  204-4566629-56
OXFORDSHIRE CC,CHILDREN'S & EDUCATION,EYNSHAM,CATERING,22/02/2024,000011386358475,17.50,TESCO PFS 2488
OXFORDSHIRE CC,CUSTOMER AND CULTURE,"MARKETING, COMMUNICATIONS & ENGAGEMENT","PUBLICITY, PROMOTIONS AND ADVERTISEMENT",22/02/2024,000011386360089,500.00,FACEBK  VKPKBZ3AZ2
OXFORDSHIRE CC,CHILDREN'S & EDUCATION,"	LEAVING CARE SOUTH",OTHER TRANSPORT ARRANGEMENTS,22/02/2024,000011386358959,122.00,OXFORDBUS.CO.UK
OXFORDSHIRE CC,PUBLIC HEALTH,CHILDREN IN CARE NON-STAFFING - SOUTH,PAYMENTS TO TRANSPORT OPERATORS,22/02/2024,000011386358455,17.02,TRAINLINE
OXFORDSHIRE CC,CHILDREN'S & EDUCATION,ATV ADOPTION WOODLEY,STATIONERY,22/02/2024,000011386358467,6.99,AMAZON  204-6571019-95
OXFORDSHIRE CC,ADULTS,UASC POST 18,OTHER EXPENSES,22/02/2024,000011386359345,10.34,AMAZON.CO.UK 2713K99X5
OXFORDSHIRE CC,CHILDREN'S & EDUCATION,LEADERSHIP TEAM,PROFESSIONAL SUBSCRIPTIONS,22/02/2024,000011386360677,605.00,WWW.ADASS.ORG.UK
OXFORDSHIRE CC,RESOURCES,ICT OPERATIONS & MAI,PAYMENTS TO TRANSPORT OPERATORS,22/02/2024,000011386360797,59.80,WWW.GWR.COM
OXFORDSHIRE CC,CUSTOMER AND CULTURE,"MARKETING, COMMUNICATIONS & ENGAGEMENT","PUBLICITY, PROMOTIONS AND ADVERTISEMENT",22/02/2024,000011386360097,121.96,SNAP INC SNAP SNAP ADS
OXFORDSHIRE CC,CUSTOMER AND CULTURE,MUSEUM DEV OFFICER,PAYMENTS TO TRANSPORT OPERATORS,22/02/2024,000011386360165,72.39,TRAINLINE
OXFORDSHIRE CC,ENVIRONMENT AND PLACE,NETWORK & ASSET MGT,TRAINING RELATED EXPENDITURE,22/02/2024,000011386358831,302.00,PREMIER INN
OXFORDSHIRE CC,CUSTOMER AND CULTURE,HARD FM,PREMISES REPAIRS,22/02/2024,000011386358641,7.00,DUNELM SOFT FURNISHIN
OXFORDSHIRE CC,ENVIRONMENT AND PLACE,NAT TRAILS GENERAL,CATERING PROVISIONS,22/02/2024,000011386359631,3.15,CO OPERATIVE FOOD
OXFORDSHIRE CC,CUSTOMER AND CULTURE,CATERING MANAGEMENT SOFT FM,CATERING PROVISIONS,22/02/2024,000011386360827,24.75,AMAZON  203-9233321-75
OXFORDSHIRE CC,CHILDREN'S & EDUCATION,STEP INTO TRAINING,CATERING PROVISIONS,22/02/2024,000011386359051,111.90,AMAZON  204-4490611-73
OXFORDSHIRE CC,ADULTS,CSS WITNEY,MATERIALS,22/02/2024,000011386359961,56.17,AMZNMKTPLACE
OXFORDSHIRE CC,CUSTOMER AND CULTURE,REACTIVE MAINTENANCE,PREMISES REPAIRS,22/02/2024,000011386359509,12.99,SCREWFIX DIR LTD
OXFORDSHIRE CC,ADULTS,CSS WITNEY,MATERIALS,22/02/2024,000011386359953,5.97,AMZNMKTPLACE
OXFORDSHIRE CC,CUSTOMER AND CULTURE,SAMUELSON HOUSE,OTHER PREMISES RELATED COSTS,22/02/2024,000011386359069,159.00,TVLICENSING.CO.UK
OXFORDSHIRE CC,ADULTS,CSS WITNEY,ENTERTAINMENT EXPENSES,22/02/2024,000011386359681,9.00,WWW.BETTER.ORG.UK
OXFORDSHIRE CC,CHILDREN'S & EDUCATION,"	LEAVING CARE CITY 2",PAYMENTS TO TRANSPORT OPERATORS,22/02/2024,000011386359691,7.90,BANBURY STATION T/O
OXFORDSHIRE CC,RESOURCES,LEGAL SERVICES,STATIONERY,22/02/2024,000011386359843,259.20,WWW.SHAWS.CO.UK
OXFORDSHIRE CC,CHILDREN'S & EDUCATION,"	LEAVING CARE SOUTH",CATERING,22/02/2024,000011386358953,6.37,MCDONALDS
OXFORDSHIRE CC,CUSTOMER AND CULTURE,CATERING MANAGEMENT SOFT FM,CATERING PROVISIONS,22/02/2024,000011386360823,61.24,AMAZON  203-1768169-49
OXFORDSHIRE CC,PUBLIC HEALTH,CHILDREN IN CARE NON-STAFFING - SOUTH,OTHER TRANSPORT ARRANGEMENTS,22/02/2024,000011386358445,10.00,NEALES TAXIS LTD
OXFORDSHIRE CC,CHILDREN'S & EDUCATION,EYNSHAM,DRUGS AND MEDICAL SUPPLIES,22/02/2024,000011386358483,12.53,ALLIED PHARMACY - EYNS
OXFORDSHIRE CC,CHILDREN'S & EDUCATION,40 THE MOORS,EDUCATIONAL AND VOCATIONAL TRAINING ,22/02/2024,000011386359201,23.94,PROTRAININGS
OXFORDSHIRE CC,ADULTS,CSS WANTAGE,ENTERTAINMENT EXPENSES,22/02/2024,000011386359977,17.85,WWW.BETTER.ORG.UK
OXFORDSHIRE CC,CUSTOMER AND CULTURE,LIBRARY COLLECTIONS,"BOOKS, DVDS AND CDS",22/02/2024,000011386359079,541.74,OVERDRIVE DIST
OXFORDSHIRE CC,ADULTS,CSS WALLINGFORD,STATIONERY,22/02/2024,000011386358419,21.40,AMZNMKTPLACE
OXFORDSHIRE CC,CUSTOMER AND CULTURE,HARD FM,HARDWARE AND CROCKERY,22/02/2024,000011386358651,15.49,WWW.SCREWFIX.COM
OXFORDSHIRE CC,CHILDREN'S & EDUCATION,NRPF & HOMELESSNESS,HIRE OF ACCOMMODATION AND FACILITIES,22/02/2024,000011386359619,124.99,PREMIER INN
OXFORDSHIRE CC,CHILDREN'S & EDUCATION,40 THE MOORS,PAYMENT TO GOVERNMENT DEPARTMENTS,22/02/2024,000011386360049,13.00,DISCLOSURE & BARRING
OXFORDSHIRE CC,CORPORATE CORE,,STATIONERY,22/02/2024,000011386360387,28.01,LYRECO UK LTD
OXFORDSHIRE CC,ADULTS,CSS - BANBURY,CATERING PROVISIONS,22/02/2024,000011386360435,11.97,AMAZON  204-8126728-11
OXFORDSHIRE CC,CUSTOMER AND CULTURE,MUSEUMS COLLECTIONS,MATERIALS,22/02/2024,000011386360981,42.42,RS COMPONENTS
OXFORDSHIRE CC,CHILDREN'S & EDUCATION,"	MALTFIELD HOUSE",CATERING PROVISIONS,22/02/2024,000011386360377,23.95,AMAZON  206-1927325-23
OXFORDSHIRE CC,CHILDREN'S & EDUCATION,"	LEAVING CARE NORTH",CATERING PROVISIONS,22/02/2024,000011386360427,5.00,TESCO GIFT CARD
OXFORDSHIRE CC,ENVIRONMENT AND PLACE,NAT TRAILS GENERAL,OTHER TRANSPORT ARRANGEMENTS,22/02/2024,000011386361039,3.60,TFL TRAVEL CH
OXFORDSHIRE CC,ADULTS,MANAGEMENT,"BOOKS, DVDS AND CDS",22/02/2024,000011386361055,20.99,CORAMBAAF EBOOKSTORE
OXFORDSHIRE CC,ADULTS,CSS - BANBURY,CATERING PROVISIONS,22/02/2024,000011386360449,28.47,AMAZON  204-3853873-98
OXFORDSHIRE CC,CUSTOMER AND CULTURE,SUMMERTOWN LIBRARY,FURNITURE,22/02/2024,000011386360271,283.22,AMAZON  203-2293059-81
OXFORDSHIRE CC,CUSTOMER AND CULTURE,OPERATIONS,EQUIPMENT,22/02/2024,000011386358797,304.95,AMAZON  204-2878449-47
OXFORDSHIRE CC,CUSTOMER AND CULTURE,COMMUNITY PARTNERSHIP TEAM,CATERING PROVISIONS,22/02/2024,000011386358875,152.28,TESCO STORES 2008
OXFORDSHIRE CC,CHILDREN'S & EDUCATION,"	LEAVING CARE CITY 1",CATERING,22/02/2024,000011386359097,13.38,MCDONALDS 1279
OXFORDSHIRE CC,CHILDREN'S & EDUCATION,DIDCOT MOVE-ON HOME,CATERING PROVISIONS,22/02/2024,000011386359475,34.63,SAINSBURYS S/MKTS
OXFORDSHIRE CC,PUBLIC HEALTH,ROW MAINT,EQUIPMENT,22/02/2024,000011386359527,41.93,SGS-ENGINEERING.COM
OXFORDSHIRE CC,CHILDREN'S & EDUCATION,"	LEAVING CARE CITY 2",OTHER TRANSPORT ARRANGEMENTS,22/02/2024,000011386359697,2.00,STGCOACH/CTYLINK
OXFORDSHIRE CC,CHILDREN'S & EDUCATION,"	RIVERSIDE CENTRE",PAYMENTS TO VOLUNTARY BODIES,22/02/2024,000011386359857,88.00,ASSOCIATION FOR VIDEO
OXFORDSHIRE CC,CHILDREN'S & EDUCATION,DIDCOT MOVE-ON HOME,CATERING PROVISIONS,22/02/2024,000011386360621,18.39,ALDI 99 775
OXFORDSHIRE CC,ADULTS,CSS - OXFORD,MATERIALS,22/02/2024,000011386359333,20.93,ALDI STORES 775-142
OXFORDSHIRE CC,CHILDREN'S & EDUCATION,LEADERSHIP TEAM,PROFESSIONAL SUBSCRIPTIONS,22/02/2024,000011386360685,290.40,WWW.ADASS.ORG.UK
OXFORDSHIRE CC,RESOURCES,ICT OPERATIONS & MAI,PAYMENTS TO TRANSPORT OPERATORS,22/02/2024,000011386360805,59.80,WWW.GWR.COM
OXFORDSHIRE CC,CHILDREN'S & EDUCATION,STEP INTO TRAINING,CATERING PROVISIONS,22/02/2024,000011386359057,33.81,AMAZON  204-6312451-36
OXFORDSHIRE CC,CHILDREN'S & EDUCATION,"	LEAVING CARE NORTH",MATERIALS,22/02/2024,000011386359489,173.95,WWW.ARGOS.CO.UK
OXFORDSHIRE CC,PUBLIC HEALTH,ROW MAINT,EQUIPMENT,22/02/2024,000011386359533,105.67,SP UK LIFTING STORE
OXFORDSHIRE CC,CHILDREN'S & EDUCATION,THE RIDGEWAY,OTHER TRANSPORT ARRANGEMENTS,22/02/2024,000011386358885,1.75,RINGGO PARKING
OXFORDSHIRE CC,ADULTS,CSS - OXFORD,CATERING PROVISIONS,22/02/2024,000011386359273,55.59,ALDI STORES 775-142
OXFORDSHIRE CC,ADULTS,CSS - BANBURY,CATERING PROVISIONS,22/02/2024,000011386360455,21.24,AMAZON  204-8645819-82
OXFORDSHIRE CC,CUSTOMER AND CULTURE,BANBURY LIBRARY,FURNITURE,22/02/2024,000011386360279,53.59,AMZNMKTPLACE
OXFORDSHIRE CC,CHILDREN'S & EDUCATION,FSP NON-STAFFING - CENTRAL,OTHER TRANSPORT ARRANGEMENTS,22/02/2024,000011386360289,85.50,OXFORD BUS TICKETS
OXFORDSHIRE CC,CHILDREN'S & EDUCATION,CHILDREN IN CARE NON-STAFFING - NORTH,PAYMENT TO GOVERNMENT DEPARTMENTS,22/02/2024,000011386358697,34.00,DVLA DRIVER ONLINE
OXFORDSHIRE CC,CUSTOMER AND CULTURE,SCHOOLS FM CATERING AREA 4,CATERING PROVISIONS,22/02/2024,000011386358737,3.30,SAINSBURYS S/MKTS
OXFORDSHIRE CC,CUSTOMER AND CULTURE,TRANSPORT GENERAL,VEHICLE EQUIPMENT AND EXPENSES - OTHER,22/02/2024,000011386358787,292.75,AMAZON  204-9372358-93
OXFORDSHIRE CC,CUSTOMER AND CULTURE,KNIGHTS COURT,"SUPPLIES, STATIONERY AND MATERIALS",22/02/2024,000011386361115,11.98,AMAZON  202-9614728-60
OXFORDSHIRE CC,CHILDREN'S & EDUCATION,CHILDREN IN CARE NON-STAFFING - CENTRL 1,PAYMENTS TO TRANSPORT OPERATORS,22/02/2024,000011386358705,231.20,TRAINLINE
OXFORDSHIRE CC,CHILDREN'S & EDUCATION,"	LEAVING CARE CITY 2",CATERING,22/02/2024,000011386358749,10.06,ZETTLE_ BLACK SHEEP CO
OXFORDSHIRE CC,ADULTS,CSS - BANBURY,CATERING PROVISIONS,22/02/2024,000011386360469,129.95,AMAZON  205-6658340-71
OXFORDSHIRE CC,CHILDREN'S & EDUCATION,KINGFISHER,HIRE OF ACCOMMODATION AND FACILITIES,22/02/2024,000011386358527,80.00,CHARNEY MANOR
OXFORDSHIRE CC,CHILDREN'S & EDUCATION,"	LEAVING CARE NORTH",CATERING PROVISIONS,22/02/2024,000011386360955,18.41,WM MORRISONS STORE
OXFORDSHIRE CC,CHILDREN'S & EDUCATION,CHILDREN IN CARE NON-STAFFING - SOUTH,HIRE OF ACCOMMODATION AND FACILITIES,22/02/2024,000011386358689,67.15,PREMIER INN
OXFORDSHIRE CC,CORPORATE CORE,,STATIONERY,22/02/2024,000011386360397,43.08,LYRECO UK LTD
OXFORDSHIRE CC,ADULTS,CSS - BANBURY,CATERING PROVISIONS,22/02/2024,000011386360443,44.40,AMAZON  204-8645819-82
OXFORDSHIRE CC,CHILDREN'S & EDUCATION,NTS UASC AGENCY,CLEANING MATERIALS,22/02/2024,000011386360479,25.98,AMAZON  203-0137015-94
OXFORDSHIRE CC,CHILDREN'S & EDUCATION,"	LEAVING CARE NORTH",CATERING,22/02/2024,000011386360501,10.50,COSTA COFFEE 43010605
OXFORDSHIRE CC,CHILDREN'S & EDUCATION,"	LEAVING CARE NORTH",OTHER TRANSPORT ARRANGEMENTS,22/02/2024,000011386360959,2.00,STGCOACH/CTYLINK
OXFORDSHIRE CC,CHILDREN'S & EDUCATION,CHILDREN IN CARE NON-STAFFING - CENTRL 1,PAYMENTS TO TRANSPORT OPERATORS,22/02/2024,000011386358773,8.86,TRAINLINE
OXFORDSHIRE CC,CHILDREN'S & EDUCATION,THAME E&A HOME,CATERING PROVISIONS,22/02/2024,000011386360313,13.90,SAINSBURYS S/MKTS
OXFORDSHIRE CC,CHILDREN'S & EDUCATION,NTS UASC AGENCY,CLEANING MATERIALS,22/02/2024,000011386360483,12.00,AMAZON  203-5295434-67
OXFORDSHIRE CC,CHILDREN'S & EDUCATION,"	MALTFIELD HOUSE",MATERIALS,22/02/2024,000011386360369,49.49,AMZNMKTPLACE
OXFORDSHIRE CC,CORPORATE CORE,,STATIONERY,22/02/2024,000011386360419,31.17,LYRECO UK LTD
OXFORDSHIRE CC,CHILDREN'S & EDUCATION,THAME E&A HOME,DRUGS AND MEDICAL SUPPLIES,22/02/2024,000011386360323,9.73,SUPERDRUG STORES PLC
OXFORDSHIRE CC,ADULTS,CSS - BANBURY,CATERING PROVISIONS,22/02/2024,000011386360461,106.99,AMAZON  204-8790161-22
OXFORDSHIRE CC,CHILDREN'S & EDUCATION,NTS UASC AGENCY,CLEANING MATERIALS,22/02/2024,000011386360489,5.09,AMAZON  203-7814798-73
OXFORDSHIRE CC,CHILDREN'S & EDUCATION,THAME E&A HOME,CATERING PROVISIONS,21/02/2024,000011380862259,11.86,WAITROSE 206
OXFORDSHIRE CC,ADULTS,EAST OXFORDSHIRE TEAM,PURCHASE OF IT EQUIPMENT,21/02/2024,000011380862299,59.99,AMAZON  206-6504182-28
OXFORDSHIRE CC,CUSTOMER AND CULTURE,HARD FM,MATERIALS,21/02/2024,000011380861447,303.49,B M A VARSITY LTD
OXFORDSHIRE CC,CUSTOMER AND CULTURE,HARD FM,PREMISES REPAIRS,21/02/2024,000011380861465,55.80,B & Q 1062
OXFORDSHIRE CC,ADULTS,CSS - OXFORD,CATERING PROVISIONS,21/02/2024,000011380861503,31.81,ALDI STORES 775-142
OXFORDSHIRE CC,ADULTS,CSS BICESTER,MATERIALS,21/02/2024,000011380861641,44.37,AMAZON  202-7743655-53
OXFORDSHIRE CC,CUSTOMER AND CULTURE,HARD FM,PREMISES REPAIRS,21/02/2024,000011380861449,500.00,B M A VARSITY LTD
OXFORDSHIRE CC,ADULTS,CSS BICESTER,MATERIALS,21/02/2024,000011380861647,3.99,AMZNMKTPLACE
OXFORDSHIRE CC,ADULTS,CSS WANTAGE,ENTERTAINMENT EXPENSES,21/02/2024,000011380862781,14.60,HOLLYWOOD BOWL
OXFORDSHIRE CC,CUSTOMER AND CULTURE,"MARKETING, COMMUNICATIONS & ENGAGEMENT","PUBLICITY, PROMOTIONS AND ADVERTISEMENT",21/02/2024,000011380862925,500.00,FACEBK  MDP3VYP9Z2
OXFORDSHIRE CC,ADULTS,FAMILY SOLUTIONS PLUS NON-STAFF - SOUTH,PAYMENTS TO TRANSPORT OPERATORS,21/02/2024,000011380862455,118.40,TRAINLINE
OXFORDSHIRE CC,CHILDREN'S & EDUCATION,"	LOOKED AFTER CITY 2",OTHER TRANSPORT ARRANGEMENTS,21/02/2024,000011380862461,2.00,OXFORD BUS COMPANY
OXFORDSHIRE CC,CUSTOMER AND CULTURE,HARD FM,PREMISES REPAIRS,21/02/2024,000011380861473,29.33,B & Q 1176
OXFORDSHIRE CC,ADULTS,CSS BICESTER,CATERING PROVISIONS,21/02/2024,000011380864011,13.90,AMAZON  026-2949922-49
OXFORDSHIRE CC,CHILDREN'S & EDUCATION,FSP NON-STAFFING - CENTRAL,OTHER TRANSPORT ARRANGEMENTS,21/02/2024,000011380864019,2.00,OXFORD BUS COMPANY
OXFORDSHIRE CC,CUSTOMER AND CULTURE,ABINGDON LIBRARY,FURNITURE,21/02/2024,000011380863105,283.22,AMAZON  203-9881865-15
OXFORDSHIRE CC,CHILDREN'S & EDUCATION,40 THE MOORS,HIRED AND CONTRACTED SERVICES,21/02/2024,000011380862891,23.00,SUMUP  SUMUP PAYMENTS
OXFORDSHIRE CC,CUSTOMER AND CULTURE,"MARKETING, COMMUNICATIONS & ENGAGEMENT","PUBLICITY, PROMOTIONS AND ADVERTISEMENT",21/02/2024,000011380862931,500.00,GOOGLE ADS4896546035
OXFORDSHIRE CC,CUSTOMER AND CULTURE,SUMMERTOWN LIBRARY,FURNITURE,21/02/2024,000011380863109,53.59,AMAZON  203-0194029-57
OXFORDSHIRE CC,CHILDREN'S & EDUCATION,40 THE MOORS,CATERING PROVISIONS,21/02/2024,000011380862897,10.00,CO-OPERATIVE FOOD
OXFORDSHIRE CC,CUSTOMER AND CULTURE,"MARKETING, COMMUNICATIONS & ENGAGEMENT","PUBLICITY, PROMOTIONS AND ADVERTISEMENT",21/02/2024,000011380862937,105.83,SNAP INC SNAP SNAP ADS
OXFORDSHIRE CC,CHILDREN'S & EDUCATION,"	LEAVING CARE CITY 2",PAYMENT TO GOVERNMENT DEPARTMENTS,21/02/2024,000011380862351,82.50,HM PASSPORT OFFICE
OXFORDSHIRE CC,PUBLIC HEALTH,ROW MAINT,EQUIPMENT,21/02/2024,000011380862379,44.79,SHELL DUCKLINGTON
OXFORDSHIRE CC,ENVIRONMENT AND PLACE,NAT TRAILS GENERAL,CATERING PROVISIONS,21/02/2024,000011380862473,1.00,CO OPERATIVE FOOD
OXFORDSHIRE CC,CHILDREN'S & EDUCATION,"	LEAVING CARE CITY 2",CATERING,21/02/2024,000011380862517,8.80,ATLANTIC FISH BAR
OXFORDSHIRE CC,CHILDREN'S & EDUCATION,PAUSE PROGRAMME,CATERING PROVISIONS,21/02/2024,000011380862309,5.50,TESCO STORES 2064
OXFORDSHIRE CC,CHILDREN'S & EDUCATION,FSP NON-STAFFING - CENTRAL,CATERING PROVISIONS,21/02/2024,000011380863645,55.99,AMAZON  204-3474366-60
OXFORDSHIRE CC,CUSTOMER AND CULTURE,DEPARTMENTAL MANAGE,PAYMENTS TO TRANSPORT OPERATORS,21/02/2024,000011380863677,"1,012.80",EASYJET
OXFORDSHIRE CC,CHILDREN'S & EDUCATION,DISABILITIES TEAM S,PAYMENT TO GOVERNMENT DEPARTMENTS,21/02/2024,000011380861735,14.00,GEN REGISTER OFFICE
OXFORDSHIRE CC,ADULTS,CSS WANTAGE,EQUIPMENT,21/02/2024,000011380861275,9.98,AMAZON  202-9441711-22
OXFORDSHIRE CC,CHILDREN'S & EDUCATION,THE RIDGEWAY,OTHER TRANSPORT ARRANGEMENTS,21/02/2024,000011380861805,4.00,OCC PR THORNHILL
OXFORDSHIRE CC,ADULTS,CSS - OXFORD,MATERIALS,21/02/2024,000011380861815,68.99,ALDI STORES 775-142
OXFORDSHIRE CC,ADULTS,CSS WANTAGE,EQUIPMENT,21/02/2024,000011380861281,22.00,ARGOS DIDCOT
OXFORDSHIRE CC,ADULTS,CSS WALLINGFORD,CATERING PROVISIONS,21/02/2024,000011380861309,4.65,WAITROSE 675
OXFORDSHIRE CC,ADULTS,CSS WITNEY,DRUGS AND MEDICAL SUPPLIES,21/02/2024,000011380861329,9.99,WITNEY PHARMACY
OXFORDSHIRE CC,ADULTS,LEADERSHIP TEAM,PAYMENTS TO TRANSPORT OPERATORS,21/02/2024,000011380863881,55.42,TRAINLINE
OXFORDSHIRE CC,ADULTS,CSS WANTAGE,CLOTHING AND UNIFORMS,21/02/2024,000011380861285,46.73,MOUNTAIN WAREHOUSE
OXFORDSHIRE CC,ADULTS,CSS WALLINGFORD,MATERIALS,21/02/2024,000011380861313,31.75,WAITROSE 675
OXFORDSHIRE CC,CHILDREN'S & EDUCATION,HOUSE PROJECT,CATERING PROVISIONS,21/02/2024,000011380863889,6.03,LIDL GB
OXFORDSHIRE CC,ADULTS,CSS WANTAGE,ENTERTAINMENT EXPENSES,21/02/2024,000011380862763,10.95,HOLLYWOOD BOWL
OXFORDSHIRE CC,CUSTOMER AND CULTURE,LIBRARY COLLECTIONS,"BOOKS, DVDS AND CDS",21/02/2024,000011380862345,85.00,SQ  THE EUREKA PARTNER
OXFORDSHIRE CC,CHILDREN'S & EDUCATION,"	LEAVING CARE CITY 2",CATERING,21/02/2024,000011380862513,8.70,LOVE COFFEE CO
OXFORDSHIRE CC,CUSTOMER AND CULTURE,HARD FM,PREMISES REPAIRS,21/02/2024,000011380861453,500.00,B M A VARSITY LTD
OXFORDSHIRE CC,CUSTOMER AND CULTURE,HARD FM,PREMISES REPAIRS,21/02/2024,000011380861479,40.10,WICKES BICESTER
OXFORDSHIRE CC,ADULTS,CSS BICESTER,EQUIPMENT,21/02/2024,000011380861631,16.45,AMAZON  202-7743655-53
OXFORDSHIRE CC,CUSTOMER AND CULTURE,TRANSPORT GENERAL,VEHICLES AND PLANT - REPAIRS AND MAIN,21/02/2024,000011380861661,145.38,AMAZON  204-8515913-47
OXFORDSHIRE CC,CHILDREN'S & EDUCATION,FSP NON-STAFFING - CENTRAL,OTHER TRANSPORT ARRANGEMENTS,21/02/2024,000011380863637,91.50,OXFORDBUS.CO.UK
OXFORDSHIRE CC,CUSTOMER AND CULTURE,HARD FM,MATERIALS,21/02/2024,000011380861459,74.98,HALFORDS 0988
OXFORDSHIRE CC,CHILDREN'S & EDUCATION,CHILDREN IN CARE NON-STAFFING - SOUTH,OTHER EXPENSES,21/02/2024,000011380861493,129.99,WWW.ARGOS.CO.UK
OXFORDSHIRE CC,ADULTS,CSS BICESTER,"SUPPLIES, STATIONERY AND MATERIALS",21/02/2024,000011380861635,6.99,AMAZON  202-0214909-18
OXFORDSHIRE CC,CUSTOMER AND CULTURE,TRANSPORT GENERAL,VEHICLES AND PLANT - REPAIRS AND MAIN,21/02/2024,000011380861669,-196.95,KWIK-FIT.COM
OXFORDSHIRE CC,ADULTS,CSS WANTAGE,ENTERTAINMENT EXPENSES,21/02/2024,000011380862775,14.60,HOLLYWOOD BOWL
OXFORDSHIRE CC,CUSTOMER AND CULTURE,CAMBRIDGE TERRACE,OTHER PREMISES RELATED COSTS,21/02/2024,000011380862385,12.98,ZORO UK
OXFORDSHIRE CC,CHILDREN'S & EDUCATION,40 THE MOORS,CATERING,21/02/2024,000011380862905,14.35,COSTA COFFEE
OXFORDSHIRE CC,ENTERPRISEVC,,CAR LEASING - PRIVATE RENTALS,21/02/2024,000011380863327,39.22,ENTERPRISE RENT-A-CAR
OXFORDSHIRE CC,ENTERPRISEVC,,CAR LEASING - PRIVATE RENTALS,21/02/2024,000011380863351,73.08,ENTERPRISE RENT-A-CAR
OXFORDSHIRE CC,CORPORATE CORE,,STATIONERY,21/02/2024,000011380863247,90.00,LYRECO UK LTD
OXFORDSHIRE CC,ENTERPRISEVC,,CAR LEASING - PRIVATE RENTALS,21/02/2024,000011380863283,82.13,ENTERPRISE RENT-A-CAR
OXFORDSHIRE CC,CHILDREN'S & EDUCATION,40 THE MOORS,CATERING PROVISIONS,21/02/2024,000011380861893,9.95,TESCO STORES 2788
OXFORDSHIRE CC,CHILDREN'S & EDUCATION,THAME E&A HOME,CATERING,21/02/2024,000011380863131,4.65,SMOOCHY MOO MOOS
OXFORDSHIRE CC,CHILDREN'S & EDUCATION,THE RIDGEWAY,STATIONERY,21/02/2024,000011380861801,5.99,RYMAN 1172
OXFORDSHIRE CC,CHILDREN'S & EDUCATION,STH EARLY HELP-DDCOT,CATERING PROVISIONS,21/02/2024,000011380861831,4.20,TESCO STORES 2008
OXFORDSHIRE CC,ENTERPRISEVC,,CAR LEASING - PRIVATE RENTALS,21/02/2024,000011380863305,47.06,ENTERPRISE RENT-A-CAR
OXFORDSHIRE CC,ENTERPRISEVC,,CAR LEASING - PRIVATE RENTALS,21/02/2024,000011380863335,95.95,ENTERPRISE RENT-A-CAR
OXFORDSHIRE CC,ENTERPRISEVC,,CAR LEASING - PRIVATE RENTALS,21/02/2024,000011380863359,48.41,ENTERPRISE RENT-A-CAR
OXFORDSHIRE CC,CHILDREN'S & EDUCATION,"	MALTFIELD HOUSE",CATERING EQUIPMENT,21/02/2024,000011380863225,79.98,AMZNMKTPLACE
OXFORDSHIRE CC,CORPORATE CORE,,STATIONERY,21/02/2024,000011380863253,203.30,LYRECO UK LTD
OXFORDSHIRE CC,ENTERPRISEVC,,CAR LEASING - PRIVATE RENTALS,21/02/2024,000011380863291,78.43,ENTERPRISE RENT-A-CAR
OXFORDSHIRE CC,CHILDREN'S & EDUCATION,UASC 16&17,RESIDENTIAL ACTIVITIES,21/02/2024,000011380863773,35.99,PUREGYM LIMITED
OXFORDSHIRE CC,CHILDREN'S & EDUCATION,UASC 16&17,OTHER TRANSPORT ARRANGEMENTS,21/02/2024,000011380863803,91.50,WWW.THEKEY.CO.UK
OXFORDSHIRE CC,CHILDREN'S & EDUCATION,"	MALTFIELD HOUSE",CATERING PROVISIONS,21/02/2024,000011380863231,13.78,AMAZON  206-1438279-76
OXFORDSHIRE CC,CORPORATE CORE,,STATIONERY,21/02/2024,000011380863263,348.68,LYRECO UK LTD
OXFORDSHIRE CC,CHILDREN'S & EDUCATION,FAMILY SOLUTIONS PLUS NON-STAFF - NORTH,VEHICLES AND PLANT - REPAIRS AND MAIN,21/02/2024,000011380861535,60.00,HALFORDS E.COMM
OXFORDSHIRE CC,ADULTS,CSS - ABINGDON,CATERING PROVISIONS,21/02/2024,000011380864099,26.47,ALDI STORES
OXFORDSHIRE CC,CUSTOMER AND CULTURE,LEARNING & ACCESS,"SUPPLIES, STATIONERY AND MATERIALS",21/02/2024,000011380863755,28.88,AMZNMKTPLACE
OXFORDSHIRE CC,CHILDREN'S & EDUCATION,UASC 16&17,RESIDENTIAL ACTIVITIES,21/02/2024,000011380863775,35.99,PUREGYM LIMITED
OXFORDSHIRE CC,CHILDREN'S & EDUCATION,FIELDWORK UASC,CATERING,21/02/2024,000011380863809,3.40,SUMUP   FLO S TRADING
OXFORDSHIRE CC,CHILDREN'S & EDUCATION,THAME E&A HOME,CATERING,21/02/2024,000011380863123,13.50,SMOOCHY MOO MOOS
OXFORDSHIRE CC,ADULTS,CSS WALLINGFORD,CATERING PROVISIONS,21/02/2024,000011380861299,12.49,AMZNMKTPLACE
OXFORDSHIRE CC,ADULTS,CSS - OXFORD,CATERING PROVISIONS,21/02/2024,000011380861507,7.60,TESCO STORES 2994
OXFORDSHIRE CC,ADULTS,CSS - OXFORD,MATERIALS,21/02/2024,000011380861819,38.63,ALDI STORES 775-142
OXFORDSHIRE CC,ADULTS,CSS WALLINGFORD,STATIONERY,21/02/2024,000011380861315,17.55,KP STATIONERS
OXFORDSHIRE CC,CHILDREN'S & EDUCATION,"	LEAVING CARE CITY 2",PAYMENTS TO TRANSPORT OPERATORS,21/02/2024,000011380863901,63.27,TRAINLINE
OXFORDSHIRE CC,CHILDREN'S & EDUCATION,UASC 16&17,RESIDENTIAL ACTIVITIES,21/02/2024,000011380863769,35.99,PUREGYM LIMITED
OXFORDSHIRE CC,CUSTOMER AND CULTURE,MUSIC UNALLOCABLE,PAYMENTS TO TRANSPORT OPERATORS,21/02/2024,000011380863797,46.25,TRAINLINE
OXFORDSHIRE CC,CHILDREN'S & EDUCATION,UASC 16&17,CATERING PROVISIONS,21/02/2024,000011380861525,42.00,TESCO STORES 2008
OXFORDSHIRE CC,ADULTS,CSS WALLINGFORD,STATIONERY,21/02/2024,000011380861301,6.99,AMZNMKTPLACE
OXFORDSHIRE CC,ADULTS,CSS WALLINGFORD,MATERIALS,21/02/2024,000011380861321,20.50,AMZNMKTPLACE
OXFORDSHIRE CC,ADULTS,CSS WALLINGFORD,MATERIALS,21/02/2024,000011380861321,20.49,AMZNMKTPLACE
OXFORDSHIRE CC,CHILDREN'S & EDUCATION,"	LEAVING CARE CITY 1",CATERING PROVISIONS,21/02/2024,000011380862101,19.50,ASDA SUPERSTORE
OXFORDSHIRE CC,CHILDREN'S & EDUCATION,"	LEAVING CARE SOUTH",CATERING,21/02/2024,000011380861931,2.15,COSTA COFFEE 43010835
OXFORDSHIRE CC,CHILDREN'S & EDUCATION,"	LEAVING CARE NORTH",DRUGS AND MEDICAL SUPPLIES,21/02/2024,000011380863987,8.00,BOOTS THE CHEMISTS
OXFORDSHIRE CC,PUBLIC HEALTH,WITNEY,CATERING PROVISIONS,21/02/2024,000011380861359,4.20,AMAZON  205-9408436-61
OXFORDSHIRE CC,CHILDREN'S & EDUCATION,"	LEAVING CARE NORTH",HOSPITALITY EXPENSES,21/02/2024,000011380863981,33.55,OVERSTONE MANOR
OXFORDSHIRE CC,CUSTOMER AND CULTURE,MUSEUMS COLLECTIONS,MATERIALS,21/02/2024,000011380864001,26.95,AMAZON  204-0560411-37
OXFORDSHIRE CC,CHILDREN'S & EDUCATION,"	LEAVING CARE NORTH",CATERING PROVISIONS,21/02/2024,000011380863975,54.00,B&M 429 - HS FAVELL
OXFORDSHIRE CC,ENTERPRISEVC,,CAR LEASING - PRIVATE RENTALS,21/02/2024,000011380863311,96.62,ENTERPRISE RENT-A-CAR
OXFORDSHIRE CC,CHILDREN'S & EDUCATION,EYNSHAM,CATERING PROVISIONS,21/02/2024,000011380861995,110.07,TESCO STORES 2008
OXFORDSHIRE CC,ENTERPRISEVC,,CAR LEASING - PRIVATE RENTALS,21/02/2024,000011380863341,162.67,ENTERPRISE RENT-A-CAR
OXFORDSHIRE CC,CHILDREN'S & EDUCATION,"	MALTFIELD HOUSE",CATERING PROVISIONS,21/02/2024,000011380863237,19.47,AMAZON  206-7254876-86
OXFORDSHIRE CC,ENTERPRISEVC,,CAR LEASING - PRIVATE RENTALS,21/02/2024,000011380863277,136.85,ENTERPRISE RENT-A-CAR
OXFORDSHIRE CC,CHILDREN'S & EDUCATION,STEP INTO TRAINING,CATERING PROVISIONS,21/02/2024,000011380862045,26.48,AMAZON  204-0061072-62
OXFORDSHIRE CC,ENTERPRISEVC,,CAR LEASING - PRIVATE RENTALS,21/02/2024,000011380863315,84.41,ENTERPRISE RENT-A-CAR
OXFORDSHIRE CC,ENTERPRISEVC,,CAR LEASING - PRIVATE RENTALS,21/02/2024,000011380863349,69.17,ENTERPRISE RENT-A-CAR
OXFORDSHIRE CC,CHILDREN'S & EDUCATION,UASC 16&17,RESIDENTIAL ACTIVITIES,21/02/2024,000011380863763,35.99,PUREGYM LIMITED
OXFORDSHIRE CC,CHILDREN'S & EDUCATION,BANBURY CC,CATERING PROVISIONS,21/02/2024,000011380863783,5.80,ALDI 10 775
OXFORDSHIRE CC,CHILDREN'S & EDUCATION,"	LOOKED AFTER NORTH",OTHER TRANSPORT ARRANGEMENTS,21/02/2024,000011380862009,2.30,VALE OF WH PARKING FEE
OXFORDSHIRE CC,ENTERPRISEVC,,CAR LEASING - PRIVATE RENTALS,21/02/2024,000011380863297,123.22,ENTERPRISE RENT-A-CAR
OXFORDSHIRE CC,CHILDREN'S & EDUCATION,HOUSE PROJECT,CATERING,21/02/2024,000011380863377,12.00,SLUG AND LETTUCE O
OXFORDSHIRE CC,CHILDREN'S & EDUCATION,FAMILY SOLUTIONS PLUS NON-STAFF - NORTH,MATERIALS,21/02/2024,000011380863403,24.99,WWW.ARGOS.CO.UK
OXFORDSHIRE CC,CHILDREN'S & EDUCATION,"	OCCG GRANT",CLEANING MATERIALS,21/02/2024,000011380863455,19.69,AMAZON  203-5295434-67
OXFORDSHIRE CC,ADULTS,LEADERSHIP TEAM,CATERING PROVISIONS,21/02/2024,000011380863489,98.00,PAYPAL  HARVEYSOXFO
OXFORDSHIRE CC,CHILDREN'S & EDUCATION,OTFC TEAM,ENTERTAINMENT EXPENSES,21/02/2024,000011380863567,25.17,FAIRYTALE FARM
OXFORDSHIRE CC,CHILDREN'S & EDUCATION,FAMILY SOLUTIONS PLUS NON-STAFF - NORTH,PAYMENTS TO TRANSPORT OPERATORS,21/02/2024,000011380863383,11.31,TRAINLINE
OXFORDSHIRE CC,ADULTS,CSS - BANBURY,CATERING PROVISIONS,21/02/2024,000011380863419,139.73,AMAZON  204-1305239-51
OXFORDSHIRE CC,CHILDREN'S & EDUCATION,"	LEAVING CARE SOUTH",PAYMENTS TO TRANSPORT OPERATORS,21/02/2024,000011380861923,73.56,TRAINLINE
OXFORDSHIRE CC,CHILDREN'S & EDUCATION,NTS UASC AGENCY,CLEANING MATERIALS,21/02/2024,000011380863463,6.49,AMAZON  203-5295434-67
OXFORDSHIRE CC,ENTERPRISEVC,,CAR LEASING - PRIVATE RENTALS,21/02/2024,000011380863367,105.52,ENTERPRISE RENT-A-CAR
OXFORDSHIRE CC,CHILDREN'S & EDUCATION,FAMILY SOLUTIONS PLUS NON-STAFF - NORTH,PAYMENTS TO TRANSPORT OPERATORS,21/02/2024,000011380863393,16.91,TRAINLINE
OXFORDSHIRE CC,CHILDREN'S & EDUCATION,"	LEAVING CARE CITY 1",CATERING PROVISIONS,21/02/2024,000011380862109,15.00,ASDA SUPERSTORE
OXFORDSHIRE CC,ADULTS,LEADERSHIP TEAM,CATERING PROVISIONS,21/02/2024,000011380863499,98.00,PAYPAL  HARVEYSOXFO
OXFORDSHIRE CC,CHILDREN'S & EDUCATION,CHILDREN IN CARE NON-STAFFING - SOUTH,VEHICLE FUEL,21/02/2024,000011380863535,28.03,BP INGLISTON F/STN
OXFORDSHIRE CC,CHILDREN'S & EDUCATION,"	OCCG GRANT",ENTERTAINMENT EXPENSES,21/02/2024,000011380863577,17.77,THE RANGE
OXFORDSHIRE CC,ADULTS,CSS WANTAGE,ENTERTAINMENT EXPENSES,21/02/2024,000011380862759,10.95,HOLLYWOOD BOWL
OXFORDSHIRE CC,ADULTS,CSS - BANBURY,ENTERTAINMENT EXPENSES,21/02/2024,000011380863427,13.35,SPICEBALL LEISURE CENT
OXFORDSHIRE CC,ADULTS,CSS - BANBURY,MATERIALS,21/02/2024,000011380863431,30.00,AMAZON.CO.UK SO35K1RW5
OXFORDSHIRE CC,CUSTOMER AND CULTURE,WALLINGFORD LIBRARY,MATERIALS,21/02/2024,000011380863471,18.48,BRIGHTONS NEWSAGEN
OXFORDSHIRE CC,CHILDREN'S & EDUCATION,EET SERVICE,OTHER TRANSPORT ARRANGEMENTS,21/02/2024,000011380862701,62.00,OXFORDBUS.CO.UK
OXFORDSHIRE CC,CHILDREN'S & EDUCATION,HOUSE PROJECT,OTHER TRANSPORT ARRANGEMENTS,21/02/2024,000011380863375,9.80,WESTGATE OXFORD CAR PA
OXFORDSHIRE CC,CHILDREN'S & EDUCATION,FAMILY SOLUTIONS PLUS NON-STAFF - NORTH,PAYMENTS TO TRANSPORT OPERATORS,21/02/2024,000011380863395,12.12,TRAINLINE
OXFORDSHIRE CC,CHILDREN'S & EDUCATION,STEP INTO TRAINING,CATERING PROVISIONS,21/02/2024,000011380862051,18.90,AMAZON  204-8754655-98
OXFORDSHIRE CC,CHILDREN'S & EDUCATION,"	LEAVING CARE CITY 1",EDUCATIONAL AND VOCATIONAL TRAINING ,21/02/2024,000011380862115,-148.00,AA DRIVING SCHOOL
OXFORDSHIRE CC,CHILDREN'S & EDUCATION,UASC 16&17,OTHER EXPENSES,21/02/2024,000011380863445,35.99,PUREGYM LIMITED
OXFORDSHIRE CC,ADULTS,LEADERSHIP TEAM,CATERING PROVISIONS,21/02/2024,000011380863483,98.00,PAYPAL  HARVEYSOXFO
OXFORDSHIRE CC,CHILDREN'S & EDUCATION,"	LEAVING CARE SOUTH",OTHER TRANSPORT ARRANGEMENTS,21/02/2024,000011380861915,4.80,WESTGATE OXFORD CAR PA
OXFORDSHIRE CC,CHILDREN'S & EDUCATION,"	LEAVING CARE CITY 1",PRINTING,21/02/2024,000011380862095,12.99,SQ  OFFICE OF CARE LEA
OXFORDSHIRE CC,ADULTS,CSS WALLINGFORD,COMMUNITY RECREATION,21/02/2024,000011380861371,3.00,WWW.BETTER.ORG.UK
OXFORDSHIRE CC,ADULTS,CSS WANTAGE,ENTERTAINMENT EXPENSES,21/02/2024,000011380862753,9.90,WWW.BETTER.ORG.UK
OXFORDSHIRE CC,CHILDREN'S & EDUCATION,UASC 16&17,RESIDENTIAL ACTIVITIES,20/02/2024,000011376451287,35.99,PUREGYM LIMITED
OXFORDSHIRE CC,CHILDREN'S & EDUCATION,DIDCOT MOVE-ON HOME,CATERING PROVISIONS,20/02/2024,000011376449961,6.45,SAINSBURYS S/MKTS
OXFORDSHIRE CC,CUSTOMER AND CULTURE,SCHOOLS FM CATERING AREA 3,CATERING PROVISIONS,20/02/2024,000011376450001,6.51,TESCO STORES 4338
OXFORDSHIRE CC,CHILDREN'S & EDUCATION,"	MALTFIELD HOUSE",FURNITURE,20/02/2024,000011376450977,70.95,AMAZON  206-1256403-20
OXFORDSHIRE CC,CUSTOMER AND CULTURE,ABINGDON LIBRARY,FURNITURE,20/02/2024,000011376450899,53.59,AMAZON  203-7511913-06
OXFORDSHIRE CC,CUSTOMER AND CULTURE,THAME LIBRARY,"NEWSPAPERS, PERIODICALS AND PUBLICATIONS",20/02/2024,000011376450929,5.80,SAINSBURYS S/MKTS
OXFORDSHIRE CC,CHILDREN'S & EDUCATION,"	OCCG GRANT",ENTERTAINMENT EXPENSES,20/02/2024,000011376451071,62.70,PRIMARK 693
OXFORDSHIRE CC,CHILDREN'S & EDUCATION,THAME E&A HOME,CATERING PROVISIONS,20/02/2024,000011376450133,17.65,WAITROSE 206
OXFORDSHIRE CC,ADULTS,CSS - BANBURY,CATERING PROVISIONS,20/02/2024,000011376451295,79.88,SAINSBURYS.CO.UK
OXFORDSHIRE CC,CUSTOMER AND CULTURE,SCHOOLS FM CATERING AREA 1,CATERING PROVISIONS,20/02/2024,000011376451083,131.78,TESCO STORES 4480
OXFORDSHIRE CC,CORPORATE CORE,,STATIONERY,20/02/2024,000011376450991,71.16,LYRECO UK LTD
OXFORDSHIRE CC,CHILDREN'S & EDUCATION,THAME E&A HOME,CATERING PROVISIONS,20/02/2024,000011376450127,6.00,SAINSBURYS S/MKTS
OXFORDSHIRE CC,CUSTOMER AND CULTURE,SCHOOLS FM CATERING AREA 2,CATERING PROVISIONS,20/02/2024,000011376450317,1.20,CO-OPERATIVE FOOD
OXFORDSHIRE CC,"COMMUNICATIONS, STRATEGY AND INSIGHT",CHAIRMANS ALLOWANCE,CATERING PROVISIONS,20/02/2024,000011376450265,1.18,HOME BARGAINS
OXFORDSHIRE CC,CUSTOMER AND CULTURE,HARD FM,HARDWARE AND CROCKERY,20/02/2024,000011376450309,13.82,B AND Q
OXFORDSHIRE CC,CUSTOMER AND CULTURE,SCHOOLS FM CATERING AREA 2,CATERING PROVISIONS,20/02/2024,000011376450323,7.18,SAINSBURYS S/MKTS
OXFORDSHIRE CC,CHILDREN'S & EDUCATION,THAME E&A HOME,SUBSCRIPTIONS,20/02/2024,000011376451307,10.80,BLACKBIRD LEYS LEISURE
OXFORDSHIRE CC,ADULTS,THAME E&A HOME,CATERING,20/02/2024,000011376451349,3.10,THAME BP SF CONNECT
OXFORDSHIRE CC,CUSTOMER AND CULTURE,HARD FM,HARDWARE AND CROCKERY,20/02/2024,000011376450305,21.46,B & Q 1156
OXFORDSHIRE CC,CUSTOMER AND CULTURE,OXFORDSHIRE MUSEUM,OTHER TRAINING COURSES AND QUALIFICATION,20/02/2024,000011376451253,45.00,MUSEUMS ASCTN
OXFORDSHIRE CC,CORPORATE CORE,,STATIONERY,20/02/2024,000011376450983,37.34,LYRECO UK LTD
OXFORDSHIRE CC,CHILDREN'S & EDUCATION,40 THE MOORS,STATIONERY,20/02/2024,000011376449811,-20.95,AMAZON  206-0612321-49
OXFORDSHIRE CC,CUSTOMER AND CULTURE,KIDLINGTON LIBRARY,CATERING EQUIPMENT,20/02/2024,000011376450907,52.00,ARGOS KIDLINGTON INSID
OXFORDSHIRE CC,CUSTOMER AND CULTURE,WITNEY LIBRARY,"NEWSPAPERS, PERIODICALS AND PUBLICATIONS",20/02/2024,000011376450011,34.18,PPOINT_ NEWSLINK WITNE
OXFORDSHIRE CC,CHILDREN'S & EDUCATION,"	MALTFIELD HOUSE",CATERING PROVISIONS,20/02/2024,000011376449953,1.55,CO-OPERATIVE FOOD
OXFORDSHIRE CC,CHILDREN'S & EDUCATION,FAMILY SOLUTIONS PLUS NON-STAFF - NORTH,PAYMENTS TO TRANSPORT OPERATORS,20/02/2024,000011376451105,45.44,TRAINLINE
OXFORDSHIRE CC,CUSTOMER AND CULTURE,CENTRAL LIBRARY,"PUBLICITY, PROMOTIONS AND ADVERTISEMENT",20/02/2024,000011376450895,553.04,HELLOPRINT UNITED KING
OXFORDSHIRE CC,CHILDREN'S & EDUCATION,FSP NON-STAFFING - CENTRAL,OTHER TRANSPORT ARRANGEMENTS,20/02/2024,000011376451123,-75.00,OXFORDBUS.CO.UK
OXFORDSHIRE CC,RESOURCES,RESOURCING,RECRUTIMENT EXPENSES (EXCL. ADVERTISING),20/02/2024,000011376449819,474.00,SQ  THE UK CAREERS FAI
OXFORDSHIRE CC,CORPORATE CORE,,STATIONERY,20/02/2024,000011376450987,19.25,LYRECO UK LTD
OXFORDSHIRE CC,CUSTOMER AND CULTURE,SCHOOLS FM CATERING AREA 1,CATERING PROVISIONS,20/02/2024,000011376451079,9.00,CO-OPERATIVE FOOD
OXFORDSHIRE CC,CHILDREN'S & EDUCATION,FAMILY SOLUTIONS PLUS NON-STAFF - NORTH,PAYMENTS TO TRANSPORT OPERATORS,20/02/2024,000011376450995,11.31,TRAINLINE
OXFORDSHIRE CC,RESOURCES,MOTOR FLEET,MOTOR IF OWN DAMAGE,20/02/2024,000011376450911,"3,004.19",ENTERPRISE RENT A CAR
OXFORDSHIRE CC,CHILDREN'S & EDUCATION,"	LEAVING CARE CITY 1",CATERING,20/02/2024,000011376449905,16.27,HARVESTER BRIDGE
OXFORDSHIRE CC,CUSTOMER AND CULTURE,MUSEUM CAFE,EQUIPMENT,20/02/2024,000011376450623,285.00,HOTBIN COMPOSTING
OXFORDSHIRE CC,CHILDREN'S & EDUCATION,EYNSHAM,CATERING,20/02/2024,000011376449433,3.00,TESCO STORES 2788
OXFORDSHIRE CC,CUSTOMER AND CULTURE,HARD FM,PREMISES REPAIRS,20/02/2024,000011376449509,27.48,HALFORDS E.COMM
OXFORDSHIRE CC,CUSTOMER AND CULTURE,OPERATIONS,EQUIPMENT,20/02/2024,000011376450497,684.00,WF EDUCATION GROUP LTD
OXFORDSHIRE CC,CUSTOMER AND CULTURE,"MARKETING, COMMUNICATIONS & ENGAGEMENT","PUBLICITY, PROMOTIONS AND ADVERTISEMENT",20/02/2024,000011376450779,30.19,SNAP INC SNAP SNAP ADS
OXFORDSHIRE CC,CUSTOMER AND CULTURE,HARD FM,PREMISES REPAIRS,20/02/2024,000011376449525,60.48,B & Q 1062
OXFORDSHIRE CC,CHILDREN'S & EDUCATION,"	LEAVING CARE CITY 1",MATERIALS,20/02/2024,000011376449563,98.99,AMAZON.CO.UK VQ5W51QJ5
OXFORDSHIRE CC,CHILDREN'S & EDUCATION,WITNEY,CATERING PROVISIONS,20/02/2024,000011376450219,11.97,LIDL GB WITNEY
OXFORDSHIRE CC,RESOURCES,ICT OPERATIONS & MAI,PURCHASE OF IT EQUIPMENT,20/02/2024,000011376451269,59.49,AMAZON  205-6638382-45
OXFORDSHIRE CC,CORPORATE CORE,"MARKETING, COMMUNICATIONS & ENGAGEMENT",STAFF ADVERTISING - GENERAL,20/02/2024,000011376451369,180.00,UNAWARDS TICKETS
OXFORDSHIRE CC,CUSTOMER AND CULTURE,OXFORDSHIRE MUSEUM,OTHER TRAINING COURSES AND QUALIFICATION,20/02/2024,000011376451263,45.00,MUSEUMS ASCTN
OXFORDSHIRE CC,CHILDREN'S & EDUCATION,FAMILY SOLUTIONS PLUS NON-STAFF � SOUTH,OTHER TRANSPORT ARRANGEMENTS,20/02/2024,000011376451433,34.00,SUMUP  SUMUP PAYMENTS
OXFORDSHIRE CC,CUSTOMER AND CULTURE,OXFORDSHIRE MUSEUM,OTHER TRAINING COURSES AND QUALIFICATION,20/02/2024,000011376451259,45.00,MUSEUMS ASCTN
OXFORDSHIRE CC,ADULTS,EAST OXFORDSHIRE TEAM,STAFF AND VOLUNTEER TRAVEL EXPENSES,20/02/2024,000011376450273,120.00,A 2 B CABS
OXFORDSHIRE CC,"COMMUNICATIONS, STRATEGY AND INSIGHT",CHAIRMANS ALLOWANCE,CATERING PROVISIONS,20/02/2024,000011376450259,18.00,SAINSBURYS S/MKTS
OXFORDSHIRE CC,CUSTOMER AND CULTURE,REACTIVE MAINTENANCE,MATERIALS,20/02/2024,000011376451421,132.00,THAMES WATER
OXFORDSHIRE CC,CHILDREN'S & EDUCATION,UASC 16&17,OTHER TRANSPORT ARRANGEMENTS,20/02/2024,000011376451319,5.00,WWW.THEKEY.CO.UK
OXFORDSHIRE CC,ADULTS,CSS - ABINGDON,CATERING PROVISIONS,20/02/2024,000011376451329,30.01,TESCO STORES 2008
OXFORDSHIRE CC,CHILDREN'S & EDUCATION,THAME E&A HOME,OTHER TRANSPORT ARRANGEMENTS,20/02/2024,000011376450393,6.10,VALE OF WH PARKING FEE
OXFORDSHIRE CC,ADULTS,CSS BICESTER,DAY ACTIVITIES,20/02/2024,000011376449617,26.27,AMAZON  202-1465122-80
OXFORDSHIRE CC,CHILDREN'S & EDUCATION,CHILDREN IN CARE NON-STAFFING - NORTH,ENTERTAINMENT EXPENSES,20/02/2024,000011376449761,129.70,GRAVITY MILTON KEYNES
OXFORDSHIRE CC,CHILDREN'S & EDUCATION,NRPF & HOMELESSNESS,CLIENT LODGINGS AND ACCOMMODATION,20/02/2024,000011376451171,450.95,TRAVELODGE
OXFORDSHIRE CC,CHILDREN'S & EDUCATION,40 THE MOORS,CATERING PROVISIONS,20/02/2024,000011376451197,197.12,SAINSBURYS.CO.UK
OXFORDSHIRE CC,CHILDREN'S & EDUCATION,OTFC TEAM,CATERING,20/02/2024,000011376451063,21.45,"KFC OXFORD, TEMPLARS S"
OXFORDSHIRE CC,CUSTOMER AND CULTURE,TRANSPORT GENERAL,EQUIPMENT,20/02/2024,000011376449631,241.57,WWW.SCREWFIX.COM
OXFORDSHIRE CC,PUBLIC HEALTH,WITNEY,CATERING PROVISIONS,20/02/2024,000011376449449,31.92,AMAZON  205-1720831-19
OXFORDSHIRE CC,RESOURCES,ORGANISATIONAL DEV'T,PAYMENTS TO TRANSPORT OPERATORS,20/02/2024,000011376450573,"4,328.00",GWR OXFORD TO
OXFORDSHIRE CC,CHILDREN'S & EDUCATION,"	LEAVING CARE CITY 2",MATERIALS,20/02/2024,000011376450451,8.99,AMAZON PRIME 365FK14N5
OXFORDSHIRE CC,CUSTOMER AND CULTURE,CHAIRMANS ALLOWANCE,CATERING EQUIPMENT,20/02/2024,000011376450509,23.56,COSTCO WHOLESALE #114
OXFORDSHIRE CC,CUSTOMER AND CULTURE,MUSEUM RETAIL,MATERIALS,20/02/2024,000011376450619,161.90,CLR WWW.RETAILACRYLIC
OXFORDSHIRE CC,ADULTS,CSS WANTAGE,CATERING PROVISIONS,20/02/2024,000011376450657,44.12,SAINSBURYS S/MKTS
OXFORDSHIRE CC,ADULTS,CSS WALLINGFORD,PURCHASE OF IT EQUIPMENT,20/02/2024,000011376449403,23.92,AMZNMKTPLACE
OXFORDSHIRE CC,PUBLIC HEALTH,CHILDREN IN CARE NON-STAFFING - SOUTH,PAYMENTS TO TRANSPORT OPERATORS,20/02/2024,000011376449427,40.00,001ROYALCABS.COM
OXFORDSHIRE CC,CUSTOMER AND CULTURE,HARD FM,PREMISES REPAIRS,20/02/2024,000011376449517,138.05,GRANT AND STONE BUILDE
OXFORDSHIRE CC,ADULTS,CSS BICESTER,CATERING PROVISIONS,20/02/2024,000011376449555,135.91,TESCO STORES 2162
OXFORDSHIRE CC,CUSTOMER AND CULTURE,"MARKETING, COMMUNICATIONS & ENGAGEMENT",SUBSCRIPTIONS,20/02/2024,000011376450777,24.98,LINKEDIN PRE 992218535
OXFORDSHIRE CC,CUSTOMER AND CULTURE,OPERATIONS,EQUIPMENT,20/02/2024,000011376450501,684.00,WF EDUCATION GROUP LTD
OXFORDSHIRE CC,ADULTS,CSS WALLINGFORD,MATERIALS,20/02/2024,000011376449395,20.69,AMZNMKTPLACE
OXFORDSHIRE CC,CHILDREN'S & EDUCATION,OTFC TEAM,CATERING,20/02/2024,000011376451065,15.20,BOOST JUICE BARS
OXFORDSHIRE CC,ADULTS,CSS BICESTER,MATERIALS,20/02/2024,000011376449621,9.11,AMAZON  202-5515519-76
OXFORDSHIRE CC,CHILDREN'S & EDUCATION,THE RIDGEWAY,OTHER TRANSPORT ARRANGEMENTS,20/02/2024,000011376449729,4.00,OCC PR THORNHILL
OXFORDSHIRE CC,CHILDREN'S & EDUCATION,OTFC TEAM,CATERING,20/02/2024,000011376451055,27.70,NANDOS (OXFORD WESTGAT
OXFORDSHIRE CC,CHILDREN'S & EDUCATION,THAME E&A HOME,CATERING PROVISIONS,20/02/2024,000011376449711,211.39,TESCO STORES 2038
OXFORDSHIRE CC,CHILDREN'S & EDUCATION,THE RIDGEWAY,PHOTOCOPYING,20/02/2024,000011376449721,7.50,SNAPPY SNAPS OXFORD
OXFORDSHIRE CC,CHILDREN'S & EDUCATION,40 THE MOORS,MATERIALS,20/02/2024,000011376451185,-16.99,THE RANGE
OXFORDSHIRE CC,RESOURCES,SCHOOLS FM CATERING AREA 2,CATERING PROVISIONS,20/02/2024,000011376451029,35.00,SAINSBURYS S/MKTS
OXFORDSHIRE CC,CHILDREN'S & EDUCATION,40 THE MOORS,MATERIALS,20/02/2024,000011376451175,25.76,THE RANGE
OXFORDSHIRE CC,CHILDREN'S & EDUCATION,OTFC TEAM,OTHER TRANSPORT ARRANGEMENTS,20/02/2024,000011376451049,5.00,OXPENS CAR PARK
OXFORDSHIRE CC,ADULTS,CSS BICESTER,DAY ACTIVITIES,20/02/2024,000011376449627,7.30,AMAZON  202-1465122-80
OXFORDSHIRE CC,ADULTS,CSS BICESTER,LAUNDRY AND DRY CLEANING,20/02/2024,000011376449707,52.00,BICESTER SHOE REPAIRS
OXFORDSHIRE CC,ADULTS,CSS WITNEY,CATERING PROVISIONS,20/02/2024,000011376450445,26.15,CO-OP GROUP 070582
OXFORDSHIRE CC,CUSTOMER AND CULTURE,TRANSPORT GENERAL,VEHICLES AND PLANT - REPAIRS AND MAIN,20/02/2024,000011376449635,196.95,KWIK-FIT.COM
OXFORDSHIRE CC,CHILDREN'S & EDUCATION,40 THE MOORS,CATERING PROVISIONS,20/02/2024,000011376451179,12.41,TESCO STORES 2788
OXFORDSHIRE CC,CUSTOMER AND CULTURE,REACTIVE MAINTENANCE,PAYMENTS TO HEALTH AUTHORITIES,20/02/2024,000011376450331,365.40,PROTECTIVEMASKSD
OXFORDSHIRE CC,CHILDREN'S & EDUCATION,"	LEAVING CARE SOUTH",MATERIALS,19/02/2024,000011368822759,21.99,JOHN LEWIS
OXFORDSHIRE CC,CUSTOMER AND CULTURE,THAME LIBRARY,"NEWSPAPERS, PERIODICALS AND PUBLICATIONS",19/02/2024,000011368822809,5.80,SAINSBURYS S/MKTS
OXFORDSHIRE CC,ADULTS,THAME E&A HOME,CATERING PROVISIONS,19/02/2024,000011368821743,11.69,SAINSBURYS SUPERMA
OXFORDSHIRE CC,ADULTS,CSS - ABINGDON,MATERIALS,19/02/2024,000011368821777,60.15,AMZNMKTPLACE
OXFORDSHIRE CC,CHILDREN'S & EDUCATION,"	LEAVING CARE SOUTH",CATERING,19/02/2024,000011368822753,11.07,ITSU
OXFORDSHIRE CC,CHILDREN'S & EDUCATION,KINGFISHER,CATERING PROVISIONS,19/02/2024,000011368823151,20.00,THE LOCAL ONE STOP
OXFORDSHIRE CC,CUSTOMER AND CULTURE,"MARKETING, COMMUNICATIONS & ENGAGEMENT","PUBLICITY, PROMOTIONS AND ADVERTISEMENT",19/02/2024,000011368822701,143.28,SNAP INC SNAP SNAP ADS
OXFORDSHIRE CC,CHILDREN'S & EDUCATION,40 THE MOORS,CATERING,19/02/2024,000011368822717,21.20,SAINSBURYS S/MKTS
OXFORDSHIRE CC,ADULTS,THAME E&A HOME,ENTERTAINMENT EXPENSES,19/02/2024,000011368823065,9.69,HWB OXFORD
OXFORDSHIRE CC,CHILDREN'S & EDUCATION,PSYCHOLOGY SERVICE,EDUCATIONAL AND VOCATIONAL TRAINING ,19/02/2024,000011368823093,50.00,UCLONLINESTORE
OXFORDSHIRE CC,CHILDREN'S & EDUCATION,"	FPT NORTH","BOOKS, DVDS AND CDS",19/02/2024,000011368822131,11.19,AMZNMKTPLACE
OXFORDSHIRE CC,CHILDREN'S & EDUCATION,"	LOOKED AFTER CITY 2",OTHER TRANSPORT ARRANGEMENTS,19/02/2024,000011368822493,2.00,OXFORD BUS COMPANY
OXFORDSHIRE CC,CHILDREN'S & EDUCATION,C&I BASE CHERWELL,"SUPPLIES, STATIONERY AND MATERIALS",19/02/2024,000011368822539,16.19,AMAZON  026-4150959-59
OXFORDSHIRE CC,PUBLIC HEALTH,DIDCOT MOVE-ON HOME,CATERING PROVISIONS,19/02/2024,000011368821755,17.58,AMAZON  205-7062645-23
OXFORDSHIRE CC,ADULTS,CSS - ABINGDON,MATERIALS,19/02/2024,000011368821781,119.95,AMZNMKTPLACE
OXFORDSHIRE CC,CHILDREN'S & EDUCATION,"	OCCG GRANT",CATERING,19/02/2024,000011368822191,4.55,COSTA COFFEE 43011357
OXFORDSHIRE CC,CHILDREN'S & EDUCATION,WITNEY,MATERIALS,19/02/2024,000011368822889,4.79,WH SMITH WITNEY
OXFORDSHIRE CC,CHILDREN'S & EDUCATION,DIDCOT MOVE-ON HOME,CATERING PROVISIONS,19/02/2024,000011368822919,42.70,SAINSBURYS SMKT
OXFORDSHIRE CC,ADULTS,CSS WALLINGFORD,CATERING PROVISIONS,19/02/2024,000011368821697,7.95,WAITROSE 675
OXFORDSHIRE CC,CHILDREN'S & EDUCATION,40 THE MOORS,CATERING EQUIPMENT,19/02/2024,000011368822053,100.00,WWW.ARGOS.CO.UK
OXFORDSHIRE CC,CHILDREN'S & EDUCATION,CHILDREN IN CARE NON-STAFFING - CENTRL 2,ENTERTAINMENT EXPENSES,19/02/2024,000011368822871,49.30,ACT WORLD
OXFORDSHIRE CC,CHILDREN'S & EDUCATION,WITNEY,MATERIALS,19/02/2024,000011368822899,11.00,THEWORKS
OXFORDSHIRE CC,CHILDREN'S & EDUCATION,40 THE MOORS,STATIONERY,19/02/2024,000011368822035,40.71,AMAZON  206-0180310-00
OXFORDSHIRE CC,CHILDREN'S & EDUCATION,40 THE MOORS,STATIONERY,19/02/2024,000011368822041,26.49,AMAZON  206-3475291-35
OXFORDSHIRE CC,ADULTS,SHARED LIVES,OTHER EXPENSES,19/02/2024,000011368822945,29.69,RCH SERENATA FLOWERS
OXFORDSHIRE CC,CHILDREN'S & EDUCATION,40 THE MOORS,OTHER TRANSPORT ARRANGEMENTS,19/02/2024,000011368822975,4.50,STGCOACH/CTYLINK
OXFORDSHIRE CC,ADULTS,CSS WALLINGFORD,STATIONERY,19/02/2024,000011368821681,24.69,AMZNMKTPLACE
OXFORDSHIRE CC,CHILDREN'S & EDUCATION,40 THE MOORS,CLEANING MATERIALS,19/02/2024,000011368822021,37.96,AMAZON  206-3341943-50
OXFORDSHIRE CC,CHILDREN'S & EDUCATION,40 THE MOORS,CLEANING MATERIALS,19/02/2024,000011368822047,37.96,AMAZON  206-5674210-06
OXFORDSHIRE CC,CHILDREN'S & EDUCATION,CHILDREN IN CARE NON-STAFFING - NORTH,HIRE OF ACCOMMODATION AND FACILITIES,19/02/2024,000011368822867,131.99,PREMIER INN
OXFORDSHIRE CC,CHILDREN'S & EDUCATION,WITNEY,MATERIALS,19/02/2024,000011368822893,1.97,CARD FACTORY
OXFORDSHIRE CC,CHILDREN'S & EDUCATION,NRPF & HOMELESSNESS,HIRE OF ACCOMMODATION AND FACILITIES,19/02/2024,000011368822927,190.98,TRAVELODGE
OXFORDSHIRE CC,CHILDREN'S & EDUCATION,40 THE MOORS,STATIONERY,19/02/2024,000011368822029,20.90,AMAZON  206-4421026-70
OXFORDSHIRE CC,CHILDREN'S & EDUCATION,40 THE MOORS,CATERING EQUIPMENT,19/02/2024,000011368822057,-8.79,AMAZON  206-3556114-37
OXFORDSHIRE CC,CHILDREN'S & EDUCATION,EYNSHAM,OTHER TRANSPORT ARRANGEMENTS,19/02/2024,000011368822955,25.50,STGCOACH/CTYLINK
OXFORDSHIRE CC,CHILDREN'S & EDUCATION,40 THE MOORS,FIXTURES & FITTINGS,19/02/2024,000011368822979,31.55,B & Q 1062
OXFORDSHIRE CC,CHILDREN'S & EDUCATION,CHILDREN IN CARE NON-STAFFING - CENTRL 2,PAYMENTS TO TRANSPORT OPERATORS,19/02/2024,000011368822877,80.90,TRAINLINE
OXFORDSHIRE CC,CHILDREN'S & EDUCATION,"	OCCG GRANT",ENTERTAINMENT EXPENSES,19/02/2024,000011368822905,5.58,MCDONALDS
OXFORDSHIRE CC,CHILDREN'S & EDUCATION,"	LOOKED AFTER NORTH",VEHICLE FUEL,19/02/2024,000011368822863,32.90,WELCOME BREAK - GORDAN
OXFORDSHIRE CC,CHILDREN'S & EDUCATION,FAMILY SOLUTIONS PLUS NON-STAFF - NORTH,ENTERTAINMENT EXPENSES,19/02/2024,000011368822931,24.00,WWW.BETTER.ORG.UK
OXFORDSHIRE CC,CHILDREN'S & EDUCATION,40 THE MOORS,CATERING PROVISIONS,19/02/2024,000011368822985,11.33,HOME BARGAINS BANBURY
OXFORDSHIRE CC,CHILDREN'S & EDUCATION,NTS UASC AGENCY,CATERING PROVISIONS,19/02/2024,000011368822937,12.98,ALDI STORES 775-142
OXFORDSHIRE CC,CHILDREN'S & EDUCATION,40 THE MOORS,CATERING PROVISIONS,19/02/2024,000011368822993,81.72,SAINSBURY'S S/MKT
OXFORDSHIRE CC,ADULTS,CSS WALLINGFORD,PURCHASE OF IT EQUIPMENT,19/02/2024,000011368821701,28.45,AMZNMKTPLACE
OXFORDSHIRE CC,ADULTS,CSS WALLINGFORD,CATERING PROVISIONS,19/02/2024,000011368821691,4.65,WAITROSE 675
OXFORDSHIRE CC,CHILDREN'S & EDUCATION,"	MALTFIELD HOUSE",CATERING PROVISIONS,19/02/2024,000011368822265,-29.72,AMAZON  205-9747788-82
OXFORDSHIRE CC,ADULTS,THAME E&A HOME,ENTERTAINMENT EXPENSES,19/02/2024,000011368823061,42.72,HOLLYWOOD BOWL
OXFORDSHIRE CC,CHILDREN'S & EDUCATION,"	LEAVING CARE SOUTH",OTHER TRANSPORT ARRANGEMENTS,19/02/2024,000011368823027,24.00,WWW.ANYVAN.COM
OXFORDSHIRE CC,ADULTS,THAME E&A HOME,ENTERTAINMENT EXPENSES,19/02/2024,000011368823055,31.96,VUE ENTERTAINMENT LTD
OXFORDSHIRE CC,CHILDREN'S & EDUCATION,REACTIVE MAINTENANCE,PREMISES REPAIRS,19/02/2024,000011368823033,136.00,PHILLIPS TYRES
OXFORDSHIRE CC,CUSTOMER AND CULTURE,"MARKETING, COMMUNICATIONS & ENGAGEMENT","PUBLICITY, PROMOTIONS AND ADVERTISEMENT",19/02/2024,000011368822685,500.00,FACEBK  8YX7QYP9Z2
OXFORDSHIRE CC,CHILDREN'S & EDUCATION,THAME E&A HOME,CATERING PROVISIONS,19/02/2024,000011368822423,5.20,ASDA SUPERSTORE
OXFORDSHIRE CC,CHILDREN'S & EDUCATION,EDT,HIRE OF ACCOMMODATION AND FACILITIES,19/02/2024,000011368822449,240.94,PREMIER INN
OXFORDSHIRE CC,CHILDREN'S & EDUCATION,"	LOOKED AFTER CITY 2",OTHER TRANSPORT ARRANGEMENTS,19/02/2024,000011368822489,2.00,OXFORD BUS COMPANY
OXFORDSHIRE CC,CUSTOMER AND CULTURE,HARD FM,PREMISES REPAIRS,19/02/2024,000011368821825,28.28,SCREWFIX DIR LTD
OXFORDSHIRE CC,CHILDREN'S & EDUCATION,THAME E&A HOME,CATERING PROVISIONS,19/02/2024,000011368821861,6.00,SAINSBURYS S/MKTS
OXFORDSHIRE CC,CUSTOMER AND CULTURE,HARD FM,HARDWARE AND CROCKERY,19/02/2024,000011368823121,85.00,B&Q LTD
OXFORDSHIRE CC,CHILDREN'S & EDUCATION,PAUSE PROGRAMME,MATERIALS,19/02/2024,000011368822385,20.00,ARGOS DIDCOT
OXFORDSHIRE CC,CHILDREN'S & EDUCATION,QUALITY ASSURANCE SOUTH TEAM,PAYMENTS TO TRANSPORT OPERATORS,19/02/2024,000011368822411,244.35,TRAINLINE
OXFORDSHIRE CC,CHILDREN'S & EDUCATION,DIDCOT MOVE-ON HOME,CATERING PROVISIONS,19/02/2024,000011368822279,11.38,SAINSBURYS S/MKTS
OXFORDSHIRE CC,CHILDREN'S & EDUCATION,40 THE MOORS,CATERING,19/02/2024,000011368822429,28.15,FIVE GUYS HIGH WYCOMBE
OXFORDSHIRE CC,CHILDREN'S & EDUCATION,EDT,PAYMENTS TO TRANSPORT OPERATORS,19/02/2024,000011368822457,6.20,LNER ONLINE
OXFORDSHIRE CC,CHILDREN'S & EDUCATION,THAME E&A HOME,OTHER TRANSPORT ARRANGEMENTS,19/02/2024,000011368822433,2.00,EDEN CENTRE
OXFORDSHIRE CC,CUSTOMER AND CULTURE,HARD FM,PREMISES REPAIRS,19/02/2024,000011368822481,147.90,AMAZON  202-4173133-97
OXFORDSHIRE CC,CHILDREN'S & EDUCATION,EYNSHAM,CATERING PROVISIONS,19/02/2024,000011368822143,173.51,TESCO STORES 2008
OXFORDSHIRE CC,CHILDREN'S & EDUCATION,THAME E&A HOME,CATERING PROVISIONS,19/02/2024,000011368822767,5.25,SAINSBURYS SUPERMA
OXFORDSHIRE CC,CUSTOMER AND CULTURE,THAME LIBRARY,"NEWSPAPERS, PERIODICALS AND PUBLICATIONS",19/02/2024,000011368822813,7.50,SAINSBURYS S/MKTS
OXFORDSHIRE CC,CHILDREN'S & EDUCATION,KINGFISHER,CATERING PROVISIONS,19/02/2024,000011368821797,50.00,TESCO GIFT CARD
OXFORDSHIRE CC,CUSTOMER AND CULTURE,HARD FM,PREMISES REPAIRS,19/02/2024,000011368821833,65.89,B & Q 1176
OXFORDSHIRE CC,CHILDREN'S & EDUCATION,"	OCCG GRANT",STATIONERY,19/02/2024,000011368822185,6.60,CEWE  BOOTS OXFORD COW
OXFORDSHIRE CC,CHILDREN'S & EDUCATION,DIDCOT MOVE-ON HOME,CATERING PROVISIONS,19/02/2024,000011368822275,6.30,SAINSBURYS S/MKTS
OXFORDSHIRE CC,CHILDREN'S & EDUCATION,UASC POST 18,CATERING PROVISIONS,19/02/2024,000011368822307,20.00,TESCO GIFT CARD
OXFORDSHIRE CC,CUSTOMER AND CULTURE,SCHOOLS FM CATERING AREA 1,MATERIALS,19/02/2024,000011368822333,22.79,AMZNMKTPLACE
OXFORDSHIRE CC,RESOURCES,EYNSHAM,VEHICLE FUEL,19/02/2024,000011368823155,3.94,SHELL BRACKNELL
OXFORDSHIRE CC,CHILDREN'S & EDUCATION,"	LOOKED AFTER CITY 2",OTHER TRANSPORT ARRANGEMENTS,19/02/2024,000011368822499,2.00,OXFORD BUS COMPANY
OXFORDSHIRE CC,CHILDREN'S & EDUCATION,THAME E&A HOME,CATERING PROVISIONS,19/02/2024,000011368822293,29.04,SAINSBURYS S/MKTS
OXFORDSHIRE CC,CUSTOMER AND CULTURE,SCHOOLS FM CATERING AREA 1,MATERIALS,19/02/2024,000011368822325,78.91,AMZNMKTPLACE
OXFORDSHIRE CC,CHILDREN'S & EDUCATION,EYNSHAM,CATERING PROVISIONS,19/02/2024,000011368822151,-2.35,TESCO STORES 2008
OXFORDSHIRE CC,CORPORATE CORE,,STATIONERY,19/02/2024,000011368822829,64.01,LYRECO UK LTD
OXFORDSHIRE CC,CUSTOMER AND CULTURE,"MARKETING, COMMUNICATIONS & ENGAGEMENT","PUBLICITY, PROMOTIONS AND ADVERTISEMENT",19/02/2024,000011368822697,500.00,FACEBK  FACMHYT9Z2
OXFORDSHIRE CC,CHILDREN'S & EDUCATION,WITNEY,CATERING PROVISIONS,19/02/2024,000011368822341,37.44,LIDL GB WITNEY
OXFORDSHIRE CC,CHILDREN'S & EDUCATION,WITNEY,CATERING,19/02/2024,000011368822347,4.25,"MOTO CHERWELL VALLEY,"
OXFORDSHIRE CC,CUSTOMER AND CULTURE,SCHOOLS FM CATERING AREA 1,MATERIALS,19/02/2024,000011368822329,8.99,AMZNMKTPLACE
OXFORDSHIRE CC,ADULTS,CSS - OXFORD,CATERING PROVISIONS,19/02/2024,000011368821805,1.88,ALDI STORES 775-142
OXFORDSHIRE CC,ADULTS,CSS BICESTER,CATERING PROVISIONS,19/02/2024,000011368821841,5.98,ALDI 49 775
OXFORDSHIRE CC,ADULTS,CSS - OXFORD,CATERING PROVISIONS,19/02/2024,000011368821811,4.25,ALDI STORES 775-142
OXFORDSHIRE CC,CHILDREN'S & EDUCATION,EYNSHAM,CATERING,19/02/2024,000011368821737,15.00,MAYFIELDEGGS
OXFORDSHIRE CC,PUBLIC HEALTH,WITNEY,CATERING PROVISIONS,19/02/2024,000011368821765,1.60,SAINSBURYS S/MKTS
OXFORDSHIRE CC,CHILDREN'S & EDUCATION,"	OCCG GRANT",OTHER EXPENSES,19/02/2024,000011368822201,8.00,ASDA STORE 4442
OXFORDSHIRE CC,CUSTOMER AND CULTURE,"MARKETING, COMMUNICATIONS & ENGAGEMENT","PUBLICITY, PROMOTIONS AND ADVERTISEMENT",19/02/2024,000011368822709,140.56,SNAP INC SNAP SNAP ADS
OXFORDSHIRE CC,CHILDREN'S & EDUCATION,FSP NON-STAFFING - CENTRAL,CATERING PROVISIONS,19/02/2024,000011368822737,-178.49,AMAZON  204-8179702-74
OXFORDSHIRE CC,CHILDREN'S & EDUCATION,EYNSHAM,CATERING,19/02/2024,000011368823003,6.48,MCDONALDS
OXFORDSHIRE CC,CHILDREN'S & EDUCATION,"	LEAVING CARE SOUTH",CATERING,19/02/2024,000011368822747,6.00,A AND A REMS A AND A R
OXFORDSHIRE CC,PUBLIC HEALTH,CHILDREN IN CARE NON-STAFFING - SOUTH,HIRE OF ACCOMMODATION AND FACILITIES,19/02/2024,000011368821721,67.00,MARRIOTT
OXFORDSHIRE CC,PUBLIC HEALTH,DIDCOT MOVE-ON HOME,CATERING PROVISIONS,19/02/2024,000011368821761,136.84,AMAZON  205-5017077-86
OXFORDSHIRE CC,CHILDREN'S & EDUCATION,"	MALTFIELD HOUSE",CATERING PROVISIONS,19/02/2024,000011368822255,-17.09,AMAZON  205-7487864-99
OXFORDSHIRE CC,CHILDREN'S & EDUCATION,"	OCCG GRANT",CATERING,19/02/2024,000011368822197,6.99,MCDONALDS
OXFORDSHIRE CC,CHILDREN'S & EDUCATION,"	MALTFIELD HOUSE",CATERING PROVISIONS,19/02/2024,000011368822261,-29.99,AMAZON  205-7487864-99
OXFORDSHIRE CC,CUSTOMER AND CULTURE,"MARKETING, COMMUNICATIONS & ENGAGEMENT","PUBLICITY, PROMOTIONS AND ADVERTISEMENT",19/02/2024,000011368822705,500.00,GOOGLE ADS4896546035
OXFORDSHIRE CC,CHILDREN'S & EDUCATION,EYNSHAM,CATERING PROVISIONS,19/02/2024,000011368822997,20.85,HOME BARGAINS
OXFORDSHIRE CC,CUSTOMER AND CULTURE,"MARKETING, COMMUNICATIONS & ENGAGEMENT","PUBLICITY, PROMOTIONS AND ADVERTISEMENT",19/02/2024,000011368822703,500.00,FACEBK  ERUUJYT9Z2
OXFORDSHIRE CC,CUSTOMER AND CULTURE,HARD FM,HARDWARE AND CROCKERY,19/02/2024,000011368823129,4.45,WICKES BICESTER
OXFORDSHIRE CC,CHILDREN'S & EDUCATION,"	LEAVING CARE CITY 1",PAYMENTS TO TRANSPORT OPERATORS,19/02/2024,000011368822231,21.30,TRAINLINE
OXFORDSHIRE CC,CHILDREN'S & EDUCATION,PAUSE PROGRAMME,CATERING,19/02/2024,000011368822355,13.85,MCDONALDS
OXFORDSHIRE CC,CHILDREN'S & EDUCATION,DIDCOT MOVE-ON HOME,CATERING PROVISIONS,19/02/2024,000011368822397,7.53,SAINSBURYS S/MKTS
OXFORDSHIRE CC,CHILDREN'S & EDUCATION,40 THE MOORS,OTHER TRANSPORT ARRANGEMENTS,19/02/2024,000011368822011,8.00,STGCOACH/CTYLINK
OXFORDSHIRE CC,CHILDREN'S & EDUCATION,THAME E&A HOME,CATERING,19/02/2024,000011368823077,127.06,PREZZO THAME
OXFORDSHIRE CC,CHILDREN'S & EDUCATION,"	LOOKED AFTER CITY 2",PAYMENTS TO TRANSPORT OPERATORS,19/02/2024,000011368822503,73.95,GWR OXFORD TO
OXFORDSHIRE CC,CHILDREN'S & EDUCATION,FAMILY SOLUTIONS PLUS NON-STAFF � SOUTH,CATERING PROVISIONS,19/02/2024,000011368822619,18.20,TESCO STORES 4377
OXFORDSHIRE CC,ADULTS,CSS WITNEY,CATERING PROVISIONS,19/02/2024,000011368822661,10.13,AMAZON  204-8444763-00
OXFORDSHIRE CC,CUSTOMER AND CULTURE,"MARKETING, COMMUNICATIONS & ENGAGEMENT","PUBLICITY, PROMOTIONS AND ADVERTISEMENT",19/02/2024,000011368822693,130.15,SNAP INC SNAP SNAP ADS
OXFORDSHIRE CC,CHILDREN'S & EDUCATION,EYNSHAM,VEHICLE FUEL,19/02/2024,000011368822359,9.50,TESCO PFS 2488
OXFORDSHIRE CC,CUSTOMER AND CULTURE,LIBRARY COLLECTIONS,"BOOKS, DVDS AND CDS",19/02/2024,000011368822403,40.56,UNIV OF OXFORD
OXFORDSHIRE CC,CHILDREN'S & EDUCATION,THAME E&A HOME,CATERING PROVISIONS,19/02/2024,000011368821931,156.96,TESCO STORES 2038
OXFORDSHIRE CC,RESOURCES,EYNSHAM,MATERIALS,19/02/2024,000011368823159,18.99,SPORTSDIRECT.COM
OXFORDSHIRE CC,CHILDREN'S & EDUCATION,"	MALTFIELD HOUSE",RESIDENTIAL ACTIVITIES,19/02/2024,000011368822821,22.49,POUNDSTRETCHER - 0700
OXFORDSHIRE CC,CHILDREN'S & EDUCATION,"	MALTFIELD HOUSE",CATERING PROVISIONS,19/02/2024,000011368822247,-12.99,AMAZON  205-7487864-99
OXFORDSHIRE CC,CUSTOMER AND CULTURE,HARD FM,VEHICLES AND PLANT - REPAIRS AND MAIN,19/02/2024,000011368823117,19.50,PHILLIPS TYRES
OXFORDSHIRE CC,CORPORATE CORE,"	MANAGEMENT & ADMIN",PAYMENTS TO TRANSPORT OPERATORS,19/02/2024,000011368823021,88.24,TRAINLINE
OXFORDSHIRE CC,CUSTOMER AND CULTURE,MUSEUM CAFE,CATERING PROVISIONS,19/02/2024,000011368822633,20.00,PHILIP DENNIS FOODSER
OXFORDSHIRE CC,CUSTOMER AND CULTURE,MUSEUM CAFE,CATERING PROVISIONS,19/02/2024,000011368822633,17.15,PHILIP DENNIS FOODSER
OXFORDSHIRE CC,ADULTS,CSS WANTAGE,ENTERTAINMENT EXPENSES,19/02/2024,000011368822669,9.90,WWW.BETTER.ORG.UK
OXFORDSHIRE CC,CHILDREN'S & EDUCATION,PAUSE PROGRAMME,CATERING,19/02/2024,000011368822353,7.85,COSTA COFFEE 43010890
OXFORDSHIRE CC,CHILDREN'S & EDUCATION,PAUSE PROGRAMME,MATERIALS,19/02/2024,000011368822391,20.00,WITNEY INSIDE SAINSBUR
OXFORDSHIRE CC,ENVIRONMENT AND PLACE,WASTE REDUCTION GEN,"PUBLICITY, PROMOTIONS AND ADVERTISEMENT",19/02/2024,000011368821941,56.41,FACEBK FBQ9XY38M2
OXFORDSHIRE CC,ADULTS,CSS BICESTER,MATERIALS,19/02/2024,000011368821885,79.99,AMAZON  202-3661262-56
OXFORDSHIRE CC,CHILDREN'S & EDUCATION,THAME E&A HOME,CATERING,19/02/2024,000011368822419,11.30,STARBUCKS THAME
OXFORDSHIRE CC,CHILDREN'S & EDUCATION,THAME E&A HOME,ENTERTAINMENT EXPENSES,19/02/2024,000011368822439,39.74,CINEWORLD HWY CP
OXFORDSHIRE CC,CHILDREN'S & EDUCATION,"	LOOKED AFTER CITY 2",OTHER TRANSPORT ARRANGEMENTS,19/02/2024,000011368822483,2.00,OXFORD BUS COMPANY
OXFORDSHIRE CC,CHILDREN'S & EDUCATION,KINGFISHER,CATERING PROVISIONS,19/02/2024,000011368823147,10.00,TESCO STORES 2064
OXFORDSHIRE CC,ADULTS,CSS - OXFORD,CATERING PROVISIONS,19/02/2024,000011368821963,61.84,ALDI STORES 775-142
OXFORDSHIRE CC,ADULTS,INCOME TEAM,PAYMENT TO GOVERNMENT DEPARTMENTS,19/02/2024,000011368821991,1.50,FIND A WILL
OXFORDSHIRE CC,CHILDREN'S & EDUCATION,40 THE MOORS,CATERING PROVISIONS,19/02/2024,000011368822013,3.10,CO-OPERATIVE FOOD
OXFORDSHIRE CC,CUSTOMER AND CULTURE,MUSEUM CAFE,MATERIALS,19/02/2024,000011368822639,61.99,AMAZON.CO.UK VN57M3MR5
OXFORDSHIRE CC,ADULTS,CSS WANTAGE,ENTERTAINMENT EXPENSES,19/02/2024,000011368822677,29.75,WWW.BETTER.ORG.UK
OXFORDSHIRE CC,CHILDREN'S & EDUCATION,FAMILY SOLUTIONS PLUS NON-STAFF � SOUTH,CATERING PROVISIONS,16/02/2024,000009559768526,5.90,TESCO STORES 4377
OXFORDSHIRE CC,CHILDREN'S & EDUCATION,CHILDREN IN CARE NON-STAFFING - CENTRL 2,PAYMENTS TO TRANSPORT OPERATORS,16/02/2024,000009559768768,69.18,TRAINLINE
OXFORDSHIRE CC,CHILDREN'S & EDUCATION,DIDCOT MOVE-ON HOME,CATERING PROVISIONS,16/02/2024,000009559768802,36.58,TESCO STORES 2413
OXFORDSHIRE CC,CHILDREN'S & EDUCATION,FSP NON-STAFFING - CENTRAL,OTHER TRANSPORT ARRANGEMENTS,16/02/2024,000009559768838,75.00,OXFORDBUS.CO.UK
OXFORDSHIRE CC,CUSTOMER AND CULTURE,MUSEUMS COLLECTIONS,OTHER PREMISES RELATED COSTS,16/02/2024,000009559768864,31.80,SP KAS SHOPFITTINGS
OXFORDSHIRE CC,CUSTOMER AND CULTURE,COMMUNITY PARTNERSHIP TEAM,CATERING PROVISIONS,16/02/2024,000009559768240,21.08,TESCO STORES 2008
OXFORDSHIRE CC,CUSTOMER AND CULTURE,REACTIVE MAINTENANCE,PREMISES REPAIRS,16/02/2024,000009559768414,45.23,B AND Q
OXFORDSHIRE CC,CHILDREN'S & EDUCATION,"	LOOKED AFTER CITY 2",OTHER TRANSPORT ARRANGEMENTS,16/02/2024,000009559768432,2.00,OXFORD BUS COMPANY
OXFORDSHIRE CC,CHILDREN'S & EDUCATION,"	SEN/ICT EQUIPMENT",PURCHASE OF IT EQUIPMENT,16/02/2024,000009559768566,639.00,AMAZON  206-5771145-45
OXFORDSHIRE CC,CORPORATE CORE,,STATIONERY,16/02/2024,000009559768722,9.65,LYRECO UK LTD
OXFORDSHIRE CC,ADULTS,CSS BICESTER,MATERIALS,16/02/2024,000009559768214,19.99,AMAZON  202-3693738-22
OXFORDSHIRE CC,CHILDREN'S & EDUCATION,40 THE MOORS,MATERIALS,16/02/2024,000009559768846,106.86,THE RANGE
OXFORDSHIRE CC,CHILDREN'S & EDUCATION,FAMILY SOLUTIONS PLUS NON-STAFF � SOUTH,MATERIALS,16/02/2024,000009559768946,-180.00,ARGOS LTD
OXFORDSHIRE CC,CUSTOMER AND CULTURE,HARD FM,PREMISES REPAIRS,16/02/2024,000009559768170,17.00,WICKES BICESTER
OXFORDSHIRE CC,CHILDREN'S & EDUCATION,CHILDREN IN CARE NON-STAFFING - CENTRL 2,OTHER TRANSPORT ARRANGEMENTS,16/02/2024,000009559768196,4.50,OXFORDBUS.CO.UK
OXFORDSHIRE CC,ADULTS,CSS WITNEY,CATERING PROVISIONS,16/02/2024,000009559768454,20.50,CO-OP GROUP 070582
OXFORDSHIRE CC,ADULTS,CSS WITNEY,MATERIALS,16/02/2024,000009559768550,26.00,AMAZON.CO.UK X20N73Q95
OXFORDSHIRE CC,CUSTOMER AND CULTURE,"MARKETING, COMMUNICATIONS & ENGAGEMENT","PUBLICITY, PROMOTIONS AND ADVERTISEMENT",16/02/2024,000009559768602,500.00,GOOGLE ADS4896546035
OXFORDSHIRE CC,RESOURCES,SUMMERTOWN LIBRARY,EQUIPMENT,16/02/2024,000009559768622,16.98,AMAZON  026-1127364-80
OXFORDSHIRE CC,CHILDREN'S & EDUCATION,CHILDREN IN CARE NON-STAFFING - NORTH,PAYMENTS TO TRANSPORT OPERATORS,16/02/2024,000009559768772,57.56,TRAINLINE
OXFORDSHIRE CC,CHILDREN'S & EDUCATION,"	LEAVING CARE CITY 2",MATERIALS,16/02/2024,000009559768464,9.25,WWW.ARGOS.CO.UK
OXFORDSHIRE CC,CHILDREN'S & EDUCATION,C&I BASE CHERWELL,"SUPPLIES, STATIONERY AND MATERIALS",16/02/2024,000009559768488,14.95,AMAZON  026-0146610-28
OXFORDSHIRE CC,CUSTOMER AND CULTURE,"MARKETING, COMMUNICATIONS & ENGAGEMENT","PUBLICITY, PROMOTIONS AND ADVERTISEMENT",16/02/2024,000009559768604,128.23,SNAP INC SNAP SNAP ADS
OXFORDSHIRE CC,CHILDREN'S & EDUCATION,FSP NON-STAFFING - CENTRAL,OTHER TRANSPORT ARRANGEMENTS,16/02/2024,000009559768634,66.00,OXFORDBUS.CO.UK
OXFORDSHIRE CC,CHILDREN'S & EDUCATION,CHILDREN IN CARE NON-STAFFING - NORTH,PAYMENTS TO TRANSPORT OPERATORS,16/02/2024,000009559768778,69.23,TRAINLINE
OXFORDSHIRE CC,CHILDREN'S & EDUCATION,"	LEAVING CARE CITY 1",PAYMENTS TO TRANSPORT OPERATORS,16/02/2024,000009559768324,21.30,TRAINLINE
OXFORDSHIRE CC,CUSTOMER AND CULTURE,HEADINGTON LIBRARY,POSTAGE AND DELIVERY,16/02/2024,000009559768468,14.70,POST OFFICE COUNTER
OXFORDSHIRE CC,PUBLIC HEALTH,PUBLIC HEALTH GENERAL,EQUIPMENT,16/02/2024,000009559768642,224.99,POSTURITE LTD
OXFORDSHIRE CC,CUSTOMER AND CULTURE,ANGLO SAXON EXHIBTION,FURNITURE,16/02/2024,000009559768880,210.00,IKEA LTD SHOP ONLINE
OXFORDSHIRE CC,ADULTS,THAME E&A HOME,CATERING PROVISIONS,16/02/2024,000009559768908,11.30,TESCO STORES 4377
OXFORDSHIRE CC,CHILDREN'S & EDUCATION,NRPF & HOMELESSNESS,HIRE OF ACCOMMODATION AND FACILITIES,16/02/2024,000009559768940,14.00,TRAVELODGE
OXFORDSHIRE CC,CUSTOMER AND CULTURE,MUSEUMS COLLECTIONS,OTHER PREMISES RELATED COSTS,16/02/2024,000009559768872,609.82,WWW.SHELVINGDIRECT.CO.
OXFORDSHIRE CC,CUSTOMER AND CULTURE,THAME LIBRARY,"NEWSPAPERS, PERIODICALS AND PUBLICATIONS",16/02/2024,000009559768690,5.80,SAINSBURYS S/MKTS
OXFORDSHIRE CC,SOCIAL AND COMMUNITY SERVICES,CSS - ABINGDON,CATERING PROVISIONS,16/02/2024,000009559768152,10.99,AMAZON  203-6269124-50
OXFORDSHIRE CC,CUSTOMER AND CULTURE,MUSEUMS COLLECTIONS,OTHER PREMISES RELATED COSTS,16/02/2024,000009559768888,113.60,TRAVIS PERKINS
OXFORDSHIRE CC,CHILDREN'S & EDUCATION,QUALITY ASSURANCE CITY TEAM,PAYMENTS TO TRANSPORT OPERATORS,16/02/2024,000009559768916,37.18,TRAINLINE
OXFORDSHIRE CC,CUSTOMER AND CULTURE,HARD FM,PREMISES REPAIRS,16/02/2024,000009559768160,6.52,CJ CLARKE TIMBER MERCH
OXFORDSHIRE CC,ADULTS,CSS BICESTER,DAY ACTIVITIES,16/02/2024,000009559768220,19.99,AMAZON  202-3706327-83
OXFORDSHIRE CC,CUSTOMER AND CULTURE,MUSEUMS COLLECTIONS,CATERING PROVISIONS,16/02/2024,000009559768506,4.62,MILK AND MORE (RECUR
OXFORDSHIRE CC,ENVIRONMENT AND PLACE,P&S OPERATIONAL REV,OTHER TRAINING COURSES AND QUALIFICATION,16/02/2024,000009559768592,222.00,LANDOR LINKS LTD
OXFORDSHIRE CC,CUSTOMER AND CULTURE,HARD FM,PREMISES REPAIRS,16/02/2024,000009559768166,6.49,SCREWFIX DIR LTD
OXFORDSHIRE CC,ADULTS,CSS BICESTER,MATERIALS,16/02/2024,000009559768224,23.85,AMAZON  202-4648676-09
OXFORDSHIRE CC,CHILDREN'S & EDUCATION,"	LEAVING CARE SOUTH",OTHER TRANSPORT ARRANGEMENTS,16/02/2024,000009559768896,123.00,WWW.ANYVAN.COM
OXFORDSHIRE CC,CUSTOMER AND CULTURE,HARD FM,PREMISES REPAIRS,16/02/2024,000009559768920,58.00,SP TOOLS4TRADE.CO.UK
OXFORDSHIRE CC,CHILDREN'S & EDUCATION,CHILDREN IN CARE NON-STAFFING - CENTRL 2,PAYMENT TO GOVERNMENT DEPARTMENTS,16/02/2024,000009559768200,-11.00,OXFORDSHIRE CC (M)
OXFORDSHIRE CC,CUSTOMER AND CULTURE,HOLTON SITE,CATERING PROVISIONS,16/02/2024,000009559768232,17.50,MILK AND MORE (RECUR
OXFORDSHIRE CC,CUSTOMER AND CULTURE,SAMUELSON HOUSE,CATERING PROVISIONS,16/02/2024,000009559768310,53.55,MILK AND MORE (RECUR
OXFORDSHIRE CC,ADULTS,CSS - OXFORD,CATERING PROVISIONS,16/02/2024,000009559768344,3.70,ALDI STORES 775-142
OXFORDSHIRE CC,CHILDREN'S & EDUCATION,PAUSE PROGRAMME,CATERING PROVISIONS,16/02/2024,000009559768386,9.20,COSTA THAME
OXFORDSHIRE CC,CUSTOMER AND CULTURE,REACTIVE MAINTENANCE,MATERIALS,16/02/2024,000009559768416,78.58,AMZNMKTPLACE
OXFORDSHIRE CC,CHILDREN'S & EDUCATION,"	LOOKED AFTER CITY 2",OTHER TRANSPORT ARRANGEMENTS,16/02/2024,000009559768438,2.00,FIRST WEST YORKSHIRE
OXFORDSHIRE CC,CUSTOMER AND CULTURE,MUSEUMS COLLECTIONS,OTHER PREMISES RELATED COSTS,16/02/2024,000009559768878,454.54,WWW.SHELVINGDIRECT.CO.
OXFORDSHIRE CC,ADULTS,THAME E&A HOME,VEHICLE EQUIPMENT AND EXPENSES - OTHER,16/02/2024,000009559768902,2.30,RINGGO PARKING
OXFORDSHIRE CC,CHILDREN'S & EDUCATION,NRPF & HOMELESSNESS,HIRE OF ACCOMMODATION AND FACILITIES,16/02/2024,000009559768930,14.00,TRAVELODGE
OXFORDSHIRE CC,ADULTS,CSS - OXFORD,IT SOFTWARE,16/02/2024,000009559768496,302.74,MPLC UK
OXFORDSHIRE CC,CHILDREN'S & EDUCATION,"	LOOKED AFTER CITY 2",VEHICLE FUEL,16/02/2024,000009559768296,42.78,SAINSBURYS SUPERMA
OXFORDSHIRE CC,ADULTS,CSS - BANBURY,MATERIALS,16/02/2024,000009559768744,33.99,AMZNMKTPLACE
OXFORDSHIRE CC,CUSTOMER AND CULTURE,BICESTER LIBRARY,MATERIALS,16/02/2024,000009559768356,179.20,BICESTER LOCAL
OXFORDSHIRE CC,CUSTOMER AND CULTURE,HARD FM,PREMISES REPAIRS,16/02/2024,000009559768378,37.00,WICKES OXFORD
OXFORDSHIRE CC,CHILDREN'S & EDUCATION,WITNEY,CATERING PROVISIONS,16/02/2024,000009559768364,63.85,SAINSBURY'S S/MKT
OXFORDSHIRE CC,RESOURCES,SKILLS & LEARNING,SUBSCRIPTIONS,16/02/2024,000009559768510,180.00,PPMA PAYMENT
OXFORDSHIRE CC,ADULTS,CSS WITNEY,CATERING PROVISIONS,16/02/2024,000009559768538,16.79,AMAZON  204-0748789-43
OXFORDSHIRE CC,ADULTS,CSS WITNEY,CATERING PROVISIONS,16/02/2024,000009559768556,35.70,MILK AND MORE (RECUR
OXFORDSHIRE CC,PUBLIC HEALTH,PUBLIC HEALTH GENERAL,EQUIPMENT,16/02/2024,000009559768648,104.28,AMZNMKTPLACE
OXFORDSHIRE CC,ADULTS,CSS - BANBURY,POSTAGE AND DELIVERY,16/02/2024,000009559768748,1.50,FEE2PAYONLINE
OXFORDSHIRE CC,ENVIRONMENT AND PLACE,FLEET OPERATIONS,CATERING PROVISIONS,16/02/2024,000009559768316,20.00,MILK AND MORE (RECUR
OXFORDSHIRE CC,CHILDREN'S & EDUCATION,FAMILY SOLUTIONS PLUS NON-STAFF � SOUTH,CATERING PROVISIONS,16/02/2024,000009559768516,8.55,CO-OPERATIVE FOOD
OXFORDSHIRE CC,ADULTS,CSS WITNEY,CATERING PROVISIONS,16/02/2024,000009559768542,29.65,AMAZON  204-1580983-19
OXFORDSHIRE CC,CORPORATE CORE,,STATIONERY,16/02/2024,000009559768728,304.39,LYRECO UK LTD
OXFORDSHIRE CC,CHILDREN'S & EDUCATION,"	LOOKED AFTER NORTH",VEHICLE FUEL,16/02/2024,000009559768754,48.49,SHELL CHING 272
OXFORDSHIRE CC,CHILDREN'S & EDUCATION,CHILDREN IN CARE NON-STAFFING - NORTH,HIRE OF ACCOMMODATION AND FACILITIES,16/02/2024,000009559768176,75.00,THE GEORGE HOTEL
OXFORDSHIRE CC,ADULTS,CSS - OXFORD,CATERING PROVISIONS,16/02/2024,000009559768340,44.21,ALDI STORES 775-142
OXFORDSHIRE CC,ENVIRONMENT AND PLACE,ROW MAINT,EQUIPMENT,16/02/2024,000009559768398,47.71,SHELL DUCKLINGTON
OXFORDSHIRE CC,CHILDREN'S & EDUCATION,OXFORDSHIRE,CATERING PROVISIONS,16/02/2024,000009559768522,.22,CO-OPERATIVE FOOD
OXFORDSHIRE CC,CORPORATE CORE,,STATIONERY,16/02/2024,000009559768710,53.10,LYRECO UK LTD
OXFORDSHIRE CC,CORPORATE CORE,,STATIONERY,16/02/2024,000009559768734,33.74,LYRECO UK LTD
OXFORDSHIRE CC,CHILDREN'S & EDUCATION,FAMILY SOLUTIONS PLUS NON-STAFF - NORTH,PAYMENTS TO TRANSPORT OPERATORS,16/02/2024,000009559768824,12.12,TRAINLINE
OXFORDSHIRE CC,CHILDREN'S & EDUCATION,40 THE MOORS,CATERING,16/02/2024,000009559768852,67.10,OXY ORIENTAL
OXFORDSHIRE CC,CHILDREN'S & EDUCATION,FAMILY SOLUTIONS PLUS NON-STAFF - NORTH,PAYMENT TO GOVERNMENT DEPARTMENTS,16/02/2024,000009559768830,22.00,OXFORDSHIRE CC WEB1
OXFORDSHIRE CC,ADULTS,NRPF & HOMELESSNESS,HIRE OF ACCOMMODATION AND FACILITIES,16/02/2024,000009559768422,746.00,PREMIER INN
OXFORDSHIRE CC,ENVIRONMENT AND PLACE,NAT TRAILS GENERAL,CATERING PROVISIONS,16/02/2024,000009559768444,3.50,CO OPERATIVE FOOD
OXFORDSHIRE CC,ADULTS,CSS WITNEY,CATERING PROVISIONS,16/02/2024,000009559768548,5.99,AMAZON  204-7357283-81
OXFORDSHIRE CC,CORPORATE CORE,,STATIONERY,16/02/2024,000009559768716,151.28,LYRECO UK LTD
OXFORDSHIRE CC,CHILDREN'S & EDUCATION,"	LOOKED AFTER NORTH",VEHICLE FUEL,16/02/2024,000009559768764,50.39,SHELL UK LTD
OXFORDSHIRE CC,CHILDREN'S & EDUCATION,WITNEY,CATERING PROVISIONS,16/02/2024,000009559768786,25.81,LIDL GB WITNEY
OXFORDSHIRE CC,CUSTOMER AND CULTURE,FINDS LIAISON OFFICER,"SUPPLIES, STATIONERY AND MATERIALS",16/02/2024,000009559768860,8.49,AMAZON  202-7087292-37
OXFORDSHIRE CC,CHILDREN'S & EDUCATION,EYNSHAM,OTHER COMMUNICATIONS,16/02/2024,000009559768140,10.99,NETFLIX.COM
OXFORDSHIRE CC,CHILDREN'S & EDUCATION,CHILDREN IN CARE NON-STAFFING - CENTRL 2,PAYMENTS TO TRANSPORT OPERATORS,16/02/2024,000009559768190,8.86,TRAINLINE
OXFORDSHIRE CC,CHILDREN'S & EDUCATION,THAME E&A HOME,CATERING PROVISIONS,16/02/2024,000009559768406,10.85,WAITROSE 206
OXFORDSHIRE CC,CHILDREN'S & EDUCATION,"	LOOKED AFTER CITY 2",OTHER TRANSPORT ARRANGEMENTS,16/02/2024,000009559768428,2.00,FIRST WEST YORKSHIRE
OXFORDSHIRE CC,CUSTOMER AND CULTURE,CH REFURB PROJECT,EQUIPMENT,16/02/2024,000009559768452,180.29,G JOHNS AND SONS LIMIT
OXFORDSHIRE CC,ADULTS,CSS - OXFORD,CATERING PROVISIONS,16/02/2024,000009559768500,90.00,TESCO STORES 2994
OXFORDSHIRE CC,CHILDREN'S & EDUCATION,PAUSE PROGRAMME,OTHER TRANSPORT ARRANGEMENTS,15/02/2024,000009554248240,1.50,VALE OF WH PARKING FEE
OXFORDSHIRE CC,CUSTOMER AND CULTURE,LIBRARY COLLECTIONS,MATERIALS,15/02/2024,000009554247850,153.60,WF EDUCATION GROUP LTD
OXFORDSHIRE CC,CHILDREN'S & EDUCATION,FAMILY SOLUTIONS PLUS NON-STAFF - NORTH,PAYMENT TO GOVERNMENT DEPARTMENTS,15/02/2024,000009554248130,33.00,OXFORDSHIRE CC WEB1
OXFORDSHIRE CC,CHILDREN'S & EDUCATION,OTFC TEAM,OTHER TRANSPORT ARRANGEMENTS,15/02/2024,000009554248110,2.00,EDEN CENTRE
OXFORDSHIRE CC,ADULTS,CSS - ABINGDON,MATERIALS,15/02/2024,000009554247698,14.76,AMAZON  205-8305024-50
OXFORDSHIRE CC,CHILDREN'S & EDUCATION,FAMILY SOLUTIONS PLUS NON-STAFF � SOUTH,MATERIALS,15/02/2024,000009554247836,6.49,JOIEBABY.COM
OXFORDSHIRE CC,CUSTOMER AND CULTURE,REACTIVE MAINTENANCE,PREMISES REPAIRS,15/02/2024,000009554247854,380.00,DUNELM SOFTFURNISHINGS
OXFORDSHIRE CC,CHILDREN'S & EDUCATION,PAUSE PROGRAMME,CATERING,15/02/2024,000009554247842,2.80,STARBUCKS
OXFORDSHIRE CC,CHILDREN'S & EDUCATION,CHILDREN IN CARE NON-STAFFING - SOUTH,CLOTHING AND UNIFORMS,15/02/2024,000009554247770,70.15,NEXT RETAIL LTD
OXFORDSHIRE CC,ADULTS,CSS - OXFORD,CATERING PROVISIONS,15/02/2024,000009554247806,3.78,ALDI STORES 775-142
OXFORDSHIRE CC,CUSTOMER AND CULTURE,"MARKETING, COMMUNICATIONS & ENGAGEMENT","PUBLICITY, PROMOTIONS AND ADVERTISEMENT",15/02/2024,000009554247968,500.00,FACEBK  58U6UXK9Z2
OXFORDSHIRE CC,CHILDREN'S & EDUCATION,OTFC TEAM,CATERING PROVISIONS,15/02/2024,000009554248102,18.80,TESCO STORES 2640
OXFORDSHIRE CC,CHILDREN'S & EDUCATION,"	OCCG GRANT",ENTERTAINMENT EXPENSES,15/02/2024,000009554248114,13.98,DOMINOS BANBURY 28071
OXFORDSHIRE CC,CHILDREN'S & EDUCATION,40 THE MOORS,FIXTURES & FITTINGS,15/02/2024,000009554248140,10.07,TEMU.COM
OXFORDSHIRE CC,ADULTS,CSS - BANBURY,VEHICLE FUEL,15/02/2024,000009554248160,90.95,TESCO PFS 3920
OXFORDSHIRE CC,CUSTOMER AND CULTURE,HARD FM,PREMISES REPAIRS,15/02/2024,000009554247858,48.00,WICKES BANBURY
OXFORDSHIRE CC,CHILDREN'S & EDUCATION,UASC 16&17,EQUIPMENT,15/02/2024,000009554247776,150.23,AMAZON  206-8879351-78
OXFORDSHIRE CC,CHILDREN'S & EDUCATION,40 THE MOORS,CATERING PROVISIONS,15/02/2024,000009554247796,18.13,TESCO STORES 2788
OXFORDSHIRE CC,CHILDREN'S & EDUCATION,FIELDWORK UASC,EQUIPMENT,15/02/2024,000009554247780,105.77,AMAZON  206-8879351-78
OXFORDSHIRE CC,CHILDREN'S & EDUCATION,40 THE MOORS,CATERING PROVISIONS,15/02/2024,000009554247798,6.20,TESCO STORES 2788
OXFORDSHIRE CC,CHILDREN'S & EDUCATION,"	LEAVING CARE CITY 2",PAYMENTS TO TRANSPORT OPERATORS,15/02/2024,000009554247896,11.40,GWR OXFORD TO
OXFORDSHIRE CC,CHILDREN'S & EDUCATION,"	LOOKED AFTER CITY 2",OTHER TRANSPORT ARRANGEMENTS,15/02/2024,000009554247872,2.00,OXFORD BUS COMPANY
OXFORDSHIRE CC,ENVIRONMENT AND PLACE,NAT TRAILS GENERAL,CATERING PROVISIONS,15/02/2024,000009554247884,3.15,CO OPERATIVE FOOD
OXFORDSHIRE CC,CHILDREN'S & EDUCATION,"	LOOKED AFTER CITY 2",OTHER TRANSPORT ARRANGEMENTS,15/02/2024,000009554247876,2.00,STGCOACH/CTYLINK
OXFORDSHIRE CC,ADULTS,CSS WITNEY,CATERING PROVISIONS,15/02/2024,000009554247888,39.63,HOME BARGAINS
OXFORDSHIRE CC,CHILDREN'S & EDUCATION,THAME E&A HOME,TELEPHONE - EQUIPMENT,15/02/2024,000009554247864,20.00,GIFFGAFF
OXFORDSHIRE CC,CHILDREN'S & EDUCATION,"	LOOKED AFTER CITY 2",OTHER TRANSPORT ARRANGEMENTS,15/02/2024,000009554247878,2.00,STGCOACH/CTYLINK
OXFORDSHIRE CC,CHILDREN'S & EDUCATION,"	LEAVING CARE CITY 2",OTHER TRANSPORT ARRANGEMENTS,15/02/2024,000009554247892,2.00,READING TRANSPORT LIMI
OXFORDSHIRE CC,ADULTS,FAMILY SOLUTIONS PLUS NON-STAFF - SOUTH,MATERIALS,15/02/2024,000009554247868,160.00,WWW.ARGOS.CO.UK
OXFORDSHIRE CC,CHILDREN'S & EDUCATION,"	LOOKED AFTER CITY 2",OTHER TRANSPORT ARRANGEMENTS,15/02/2024,000009554247880,2.00,OXFORD BUS COMPANY
OXFORDSHIRE CC,ADULTS,CSS - OXFORD,MATERIALS,15/02/2024,000009554247912,27.98,AMAZON  026-5530521-26
OXFORDSHIRE CC,CUSTOMER AND CULTURE,HISTORY SERVICE,EQUIPMENT,15/02/2024,000009554247932,317.18,SP CONSERVATION RESO
OXFORDSHIRE CC,CUSTOMER AND CULTURE,BUSINESS INTELLECTUAL PROPERTY CENTRE,PAYMENTS TO TRANSPORT OPERATORS,15/02/2024,000009554247902,15.29,TRAINLINE
OXFORDSHIRE CC,ADULTS,CSS - OXFORD,DISABILITY AIDS AND EQUIPMENT,15/02/2024,000009554247920,49.40,AMAZON  026-9582113-32
OXFORDSHIRE CC,ADULTS,CSS WANTAGE,MATERIALS,15/02/2024,000009554247942,5.99,AMZNMKTPLACE
OXFORDSHIRE CC,CHILDREN'S & EDUCATION,"	LEAVING CARE CITY 2",PAYMENTS TO TRANSPORT OPERATORS,15/02/2024,000009554247898,3.20,GWR TILEHURST SST
OXFORDSHIRE CC,ADULTS,CSS - OXFORD,CATERING PROVISIONS,15/02/2024,000009554247916,12.48,AMAZON  026-6395370-34
OXFORDSHIRE CC,ADULTS,CSS WITNEY,CATERING PROVISIONS,15/02/2024,000009554247938,16.55,AMAZON  204-9345705-41
OXFORDSHIRE CC,CUSTOMER AND CULTURE,OPERATIONS,MATERIALS,15/02/2024,000009554247906,4.63,AMAZON  203-1875105-98
OXFORDSHIRE CC,ADULTS,CSS - OXFORD,MATERIALS,15/02/2024,000009554247924,24.97,AMAZON  026-9911650-50
OXFORDSHIRE CC,CHILDREN'S & EDUCATION,FAMILY SOLUTIONS PLUS NON-STAFF - NORTH,PAYMENTS TO TRANSPORT OPERATORS,15/02/2024,000009554248048,25.06,TRAINLINE
OXFORDSHIRE CC,CHILDREN'S & EDUCATION,"	LEAVING CARE NORTH",PAYMENTS TO TRANSPORT OPERATORS,15/02/2024,000009554248066,70.70,BRIGHTON & HOVE BUSES
OXFORDSHIRE CC,CHILDREN'S & EDUCATION,CHILDREN IN CARE NON-STAFFING - SOUTH,CATERING PROVISIONS,15/02/2024,000009554247768,79.10,MARKS&SPENCER PLC
OXFORDSHIRE CC,CHILDREN'S & EDUCATION,UASC 16&17,OTHER EXPENSES,15/02/2024,000009554247706,10.99,SAINSBURY'S S/MKT
OXFORDSHIRE CC,CORPORATE CORE,,STATIONERY,15/02/2024,000009554248032,74.21,LYRECO UK LTD
OXFORDSHIRE CC,CHILDREN'S & EDUCATION,UASC 16&17,MATERIALS,15/02/2024,000009554247710,225.00,SPORTSDIRECT.COM
OXFORDSHIRE CC,CHILDREN'S & EDUCATION,DIDCOT MOVE-ON HOME,MATERIALS,15/02/2024,000009554247846,2.00,THE WORKS
OXFORDSHIRE CC,CORPORATE CORE,,STATIONERY,15/02/2024,000009554248036,26.42,LYRECO UK LTD
OXFORDSHIRE CC,CHILDREN'S & EDUCATION,FAMILY SOLUTIONS PLUS NON-STAFF - NORTH,PAYMENTS TO TRANSPORT OPERATORS,15/02/2024,000009554248052,25.06,TRAINLINE
OXFORDSHIRE CC,CHILDREN'S & EDUCATION,UASC 16&17,CLEANING MATERIALS,15/02/2024,000009554248070,25.27,AMAZON  204-9191273-27
OXFORDSHIRE CC,CHILDREN'S & EDUCATION,CHILDREN IN CARE NON-STAFFING - CENTRL 1,PAYMENT TO GOVERNMENT DEPARTMENTS,15/02/2024,000009554247716,53.50,HM PASSPORT OFFICE
OXFORDSHIRE CC,CUSTOMER AND CULTURE,REACTIVE MAINTENANCE,PREMISES REPAIRS,15/02/2024,000009554247862,110.99,SCREWFIX DIR LTD
OXFORDSHIRE CC,CORPORATE CORE,,STATIONERY,15/02/2024,000009554248040,49.01,LYRECO UK LTD
OXFORDSHIRE CC,CHILDREN'S & EDUCATION,FAMILY SOLUTIONS PLUS NON-STAFF - NORTH,PAYMENTS TO TRANSPORT OPERATORS,15/02/2024,000009554248058,25.06,TRAINLINE
OXFORDSHIRE CC,CUSTOMER AND CULTURE,LIBRARY BUSINESS SERVICES,POSTAGE AND DELIVERY,15/02/2024,000009554248078,30.00,POST OFFICE COUNTER
OXFORDSHIRE CC,CHILDREN'S & EDUCATION,"	LEAVING CARE SOUTH",PAYMENTS TO TRANSPORT OPERATORS,15/02/2024,000009554248006,91.60,GWR OXFORD TO
OXFORDSHIRE CC,CHILDREN'S & EDUCATION,FAMILY SOLUTIONS PLUS NON-STAFF - NORTH,PAYMENTS TO TRANSPORT OPERATORS,15/02/2024,000009554248046,25.06,TRAINLINE
OXFORDSHIRE CC,CHILDREN'S & EDUCATION,40 THE MOORS,CATERING PROVISIONS,15/02/2024,000009554248144,12.77,TEMU.COM
OXFORDSHIRE CC,ADULTS,CSS - ABINGDON,MATERIALS,15/02/2024,000009554248164,5.07,AMZNMKTPLACE
OXFORDSHIRE CC,ADULTS,CSS - OXFORD,CATERING PROVISIONS,15/02/2024,000009554247808,30.94,ALDI STORES 775-142
OXFORDSHIRE CC,CUSTOMER AND CULTURE,BICESTER LIBRARY,EQUIPMENT,15/02/2024,000009554248026,11.80,BICESTER SHOE REPAIRS
OXFORDSHIRE CC,CUSTOMER AND CULTURE,RFID PROJECT,MATERIALS,15/02/2024,000009554248084,75.00,EXPONDO GMBH
OXFORDSHIRE CC,CUSTOMER AND CULTURE,LIBRARY BUSINESS SERVICES,MATERIALS,15/02/2024,000009554248088,7.50,WH SMITH WITNEY
OXFORDSHIRE CC,CHILDREN'S & EDUCATION,NTS UASC AGENCY,MATERIALS,15/02/2024,000009554248132,5.95,AMZNMKTPLACE
OXFORDSHIRE CC,CHILDREN'S & EDUCATION,THAME E&A HOME,ENTERTAINMENT EXPENSES,15/02/2024,000009554247816,7.70,REBOUND REVOLUTION
OXFORDSHIRE CC,RESOURCES,ICT OPERATIONS & MAI,IT SOFTWARE,15/02/2024,000009554248094,147.87,FELT.COM
OXFORDSHIRE CC,CHILDREN'S & EDUCATION,OTFC TEAM,CATERING,15/02/2024,000009554248098,37.35,ZIZZI HIGH WYCOMBE
OXFORDSHIRE CC,CHILDREN'S & EDUCATION,40 THE MOORS,CATERING PROVISIONS,15/02/2024,000009554248146,47.55,AMAZON  204-5086067-02
OXFORDSHIRE CC,ADULTS,CSS - ABINGDON,OTHER TRANSPORT ARRANGEMENTS,15/02/2024,000009554248168,5.00,OXPENS CAR PARK
OXFORDSHIRE CC,CHILDREN'S & EDUCATION,UASC 16&17,OTHER EXPENSES,15/02/2024,000009554247702,49.99,WWW.ARGOS.CO.UK
OXFORDSHIRE CC,RESOURCES,HYER PROJECT,GENERAL MAINTENANCE,15/02/2024,000009554247722,"1,194.00",LKTELECTRICALSERVICES
OXFORDSHIRE CC,CHILDREN'S & EDUCATION,WITNEY,CATERING PROVISIONS,15/02/2024,000009554247822,20.99,LIDL GB WITNEY
OXFORDSHIRE CC,CHILDREN'S & EDUCATION,40 THE MOORS,CATERING PROVISIONS,15/02/2024,000009554248136,8.23,TEMU.COM
OXFORDSHIRE CC,CORPORATE CORE,STRAT&COMMS TRAINING,TRAINING RELATED EXPENDITURE,15/02/2024,000009554248152,708.00,THE HUB EVENTS LTD
OXFORDSHIRE CC,ADULTS,EYNSHAM,ENTERTAINMENT EXPENSES,15/02/2024,000009554248174,19.20,PARTYMAN WORLD OF PLAY
OXFORDSHIRE CC,ADULTS,EYNSHAM,ENTERTAINMENT EXPENSES,15/02/2024,000009554248178,13.95,PARTYMAN WORLD OF PLAY
OXFORDSHIRE CC,CHILDREN'S & EDUCATION,FSP NON-STAFFING - CENTRAL,PAYMENT TO GOVERNMENT DEPARTMENTS,15/02/2024,000009554248226,35.00,OXFORDSHIRE CC WEB1
OXFORDSHIRE CC,CUSTOMER AND CULTURE,"MARKETING, COMMUNICATIONS & ENGAGEMENT","PUBLICITY, PROMOTIONS AND ADVERTISEMENT",15/02/2024,000009554247972,129.06,SNAP INC SNAP SNAP ADS
OXFORDSHIRE CC,CHILDREN'S & EDUCATION,OTFC TEAM,CATERING,15/02/2024,000009554248106,5.05,STARBUCKS
OXFORDSHIRE CC,ADULTS,CSS WITNEY,CATERING PROVISIONS,15/02/2024,000009554248122,9.45,CO-OP GROUP 070582
OXFORDSHIRE CC,ADULTS,CSS - ABINGDON,HARDWARE AND CROCKERY,15/02/2024,000009554248232,19.98,TOOLSTATION LTD
OXFORDSHIRE CC,CHILDREN'S & EDUCATION,40 THE MOORS,CLOTHING AND UNIFORMS,15/02/2024,000009554247744,9.00,SCHUH LIMITED
OXFORDSHIRE CC,CHILDREN'S & EDUCATION,OTFC TEAM,MATERIALS,15/02/2024,000009554248108,1.00,POUNDLAND LTD - 1706
OXFORDSHIRE CC,CHILDREN'S & EDUCATION,PAUSE PROGRAMME,CATERING,15/02/2024,000009554248236,6.80,COSTA COFFEE 43011690
OXFORDSHIRE CC,ADULTS,CSS WANTAGE,EQUIPMENT,15/02/2024,000009554247686,6.99,AMAZON  202-4162767-59
OXFORDSHIRE CC,PUBLIC HEALTH,CHILDREN IN CARE NON-STAFFING - NORTH,ENTERTAINMENT EXPENSES,15/02/2024,000009554247692,108.00,SQ  ESCAPE HUNT MILTON
OXFORDSHIRE CC,CHILDREN'S & EDUCATION,40 THE MOORS,LAUNDRY AND DRY CLEANING,15/02/2024,000009554247748,20.00,THE OXFORD SNOB
OXFORDSHIRE CC,ADULTS,INCOME TEAM,PAYMENT TO GOVERNMENT DEPARTMENTS,15/02/2024,000009554247734,1.50,FIND A WILL
OXFORDSHIRE CC,CHILDREN'S & EDUCATION,"	LEAVING CARE SOUTH",EDUCATIONAL AND VOCATIONAL TRAINING ,15/02/2024,000009554247752,155.00,PROCISION OXFORD FA
OXFORDSHIRE CC,RESOURCES,CORPORATE FINANCE,PAYMENTS TO TRANSPORT OPERATORS,15/02/2024,000009554247812,85.30,WWW.GWR.COM
OXFORDSHIRE CC,CHILDREN'S & EDUCATION,"	SEN/ICT EQUIPMENT",IT SOFTWARE,15/02/2024,000009554247950,-180.00,TEXTHELP
OXFORDSHIRE CC,CHILDREN'S & EDUCATION,NRPF & HOMELESSNESS,HIRE OF ACCOMMODATION AND FACILITIES,14/02/2024,000009548963004,14.00,TRAVELODGE
OXFORDSHIRE CC,CHILDREN'S & EDUCATION,OTFC TEAM,OTHER TRANSPORT ARRANGEMENTS,14/02/2024,000009548962902,8.30,OXPENS CAR PARK
OXFORDSHIRE CC,CHILDREN'S & EDUCATION,PAUSE PROGRAMME,CATERING PROVISIONS,14/02/2024,000009548963034,2.30,GREGGS GREATER LEYS
OXFORDSHIRE CC,ADULTS,CSS WANTAGE,CATERING PROVISIONS,14/02/2024,000009548962674,-53.55,ASDA GROCERIES ONLINE
OXFORDSHIRE CC,CHILDREN'S & EDUCATION,FSP NON-STAFFING - CENTRAL,CATERING PROVISIONS,14/02/2024,000009548962742,178.49,AMAZON  204-8179702-74
OXFORDSHIRE CC,CHILDREN'S & EDUCATION,OTFC TEAM,DRUGS AND MEDICAL SUPPLIES,14/02/2024,000009548962904,2.79,SUPERDRUG STORES PLC
OXFORDSHIRE CC,CHILDREN'S & EDUCATION,CHILDREN IN CARE NON-STAFFING - SOUTH,MATERIALS,14/02/2024,000009548962302,14.99,WWW.ARGOS.CO.UK
OXFORDSHIRE CC,CHILDREN'S & EDUCATION,"	LEAVING CARE NORTH",PAYMENTS TO TRANSPORT OPERATORS,14/02/2024,000009548962466,47.20,GWR OXFORD TO
OXFORDSHIRE CC,ENTERPRISEVC,,CAR LEASING - PRIVATE RENTALS,14/02/2024,000009548962838,114.43,ENTERPRISE RENT-A-CAR
OXFORDSHIRE CC,ENTERPRISEVC,,CAR LEASING - PRIVATE RENTALS,14/02/2024,000009548962860,39.22,ENTERPRISE RENT-A-CAR
OXFORDSHIRE CC,CHILDREN'S & EDUCATION,NTS UASC AGENCY,CATERING PROVISIONS,14/02/2024,000009548962920,12.99,AMAZON  202-8543570-43
OXFORDSHIRE CC,CHILDREN'S & EDUCATION,40 THE MOORS,OTHER TRANSPORT ARRANGEMENTS,14/02/2024,000009548962948,4.00,STGCOACH/CTYLINK
OXFORDSHIRE CC,CHILDREN'S & EDUCATION,NTS UASC AGENCY,MATERIALS,14/02/2024,000009548962924,12.02,AMZNMKTPLACE
OXFORDSHIRE CC,ADULTS,CSS WALLINGFORD,MATERIALS,14/02/2024,000009548962094,25.98,AMAZON  203-0503610-71
OXFORDSHIRE CC,CHILDREN'S & EDUCATION,KINGFISHER,CATERING PROVISIONS,14/02/2024,000009548962120,50.00,TESCO GIFT CARD
OXFORDSHIRE CC,CHILDREN'S & EDUCATION,HOUSE PROJECT,MATERIALS,14/02/2024,000009548962886,28.90,AMZNMKTPLACE
OXFORDSHIRE CC,RESOURCES,ICT OPERATIONS & MAI,PURCHASE OF IT EQUIPMENT,14/02/2024,000009548962966,"8,741.00",AMZNMKTPLACE
OXFORDSHIRE CC,CHILDREN'S & EDUCATION,REACTIVE MAINTENANCE,PREMISES REPAIRS,14/02/2024,000009548962988,41.99,SCREWFIX DIR LTD
OXFORDSHIRE CC,ADULTS,CSS WALLINGFORD,MATERIALS,14/02/2024,000009548962096,7.80,AMAZON  203-6631934-31
OXFORDSHIRE CC,CHILDREN'S & EDUCATION,UASC 16&17,MATERIALS,14/02/2024,000009548962132,299.99,CYCLE KING
OXFORDSHIRE CC,CHILDREN'S & EDUCATION,CHILDREN IN CARE NON-STAFFING - CENTRL 2,OTHER TRANSPORT ARRANGEMENTS,14/02/2024,000009548962168,4.50,OXFORDBUS.CO.UK
OXFORDSHIRE CC,CHILDREN'S & EDUCATION,"	LEAVING CARE CITY 1",OTHER EXPENSES,14/02/2024,000009548962198,18.99,AMZNMKTPLACE
OXFORDSHIRE CC,CHILDREN'S & EDUCATION,"	LEAVING CARE NORTH",CATERING,14/02/2024,000009548962472,6.25,COSTA COFFEE 43010835
OXFORDSHIRE CC,ADULTS,CSS - OXFORD,CATERING PROVISIONS,14/02/2024,000009548962590,-23.96,TESCO STORES 2994
OXFORDSHIRE CC,CUSTOMER AND CULTURE,MUSEUMS COLLECTIONS,EQUIPMENT,14/02/2024,000009548962624,47.76,PREMIER FARNELL
OXFORDSHIRE CC,CUSTOMER AND CULTURE,LIBRARY COLLECTIONS,"BOOKS, DVDS AND CDS",14/02/2024,000009548962330,"2,026.50",OVERDRIVE DIST
OXFORDSHIRE CC,CHILDREN'S & EDUCATION,DIDCOT MOVE-ON HOME,FURNITURE,14/02/2024,000009548962440,11.20,DUNELM SOFT FURNISHIN
OXFORDSHIRE CC,RESOURCES,SKILLS & LEARNING,MATERIALS,14/02/2024,000009548962602,120.99,ONE4ALL
OXFORDSHIRE CC,CHILDREN'S & EDUCATION,UASC 16&17,MATERIALS,14/02/2024,000009548962138,54.99,CYCLE KING
OXFORDSHIRE CC,CHILDREN'S & EDUCATION,CHILDREN IN CARE NON-STAFFING - CENTRL 2,PAYMENTS TO TRANSPORT OPERATORS,14/02/2024,000009548962170,17.01,TRAINLINE
OXFORDSHIRE CC,CHILDREN'S & EDUCATION,"	OCCG GRANT",CATERING PROVISIONS,14/02/2024,000009548962314,29.15,ASDA STORE 4442
OXFORDSHIRE CC,CHILDREN'S & EDUCATION,"	LEAVING CARE CITY 1",CATERING PROVISIONS,14/02/2024,000009548962344,2.00,TESCO STORES 2990
OXFORDSHIRE CC,CHILDREN'S & EDUCATION,DIDCOT MOVE-ON HOME,CATERING PROVISIONS,14/02/2024,000009548962446,6.30,SAINSBURYS S/MKTS
OXFORDSHIRE CC,CHILDREN'S & EDUCATION,"	LEAVING CARE SOUTH",CATERING,14/02/2024,000009548962758,7.50,SQ  HUNTERS CAKE CAFE
OXFORDSHIRE CC,CORPORATE CORE,,STATIONERY,14/02/2024,000009548962790,467.02,LYRECO UK LTD
OXFORDSHIRE CC,CHILDREN'S & EDUCATION,"	LEAVING CARE CITY 1",OTHER EXPENSES,14/02/2024,000009548962148,27.32,AMZNMKTPLACE
OXFORDSHIRE CC,CHILDREN'S & EDUCATION,CHILDREN IN CARE NON-STAFFING - CENTRL 1,PHOTOCOPYING,14/02/2024,000009548962176,29.00,JESSIES ART SHED
OXFORDSHIRE CC,CHILDREN'S & EDUCATION,DIDCOT MOVE-ON HOME,CATERING PROVISIONS,14/02/2024,000009548962214,15.17,SAINSBURYS SMKT
OXFORDSHIRE CC,CHILDREN'S & EDUCATION,40 THE MOORS,CATERING PROVISIONS,14/02/2024,000009548962252,41.48,AMAZON  205-3489966-85
OXFORDSHIRE CC,CHILDREN'S & EDUCATION,"	LOOKED AFTER CITY 2",HARDWARE AND CROCKERY,14/02/2024,000009548962274,270.40,HOMEBASE.CO.UK
OXFORDSHIRE CC,CHILDREN'S & EDUCATION,"	LEAVING CARE CITY 1",MATERIALS,14/02/2024,000009548962358,-.29,AMAZON PRIME
OXFORDSHIRE CC,CHILDREN'S & EDUCATION,"	LEAVING CARE NORTH",PAYMENTS TO TRANSPORT OPERATORS,14/02/2024,000009548962458,15.70,BANBURY STATION T/O
OXFORDSHIRE CC,CUSTOMER AND CULTURE,THAME LIBRARY,"NEWSPAPERS, PERIODICALS AND PUBLICATIONS",14/02/2024,000009548962772,5.80,SAINSBURYS S/MKTS
OXFORDSHIRE CC,CORPORATE CORE,,STATIONERY,14/02/2024,000009548962800,56.75,LYRECO UK LTD
OXFORDSHIRE CC,CUSTOMER AND CULTURE,ALTERNATIVES TO CARE,FURNITURE,14/02/2024,000009548963020,29.05,AMAZON  206-3960464-42
OXFORDSHIRE CC,CHILDREN'S & EDUCATION,CHILDREN IN CARE NON-STAFFING - CENTRL 2,OTHER TRANSPORT ARRANGEMENTS,14/02/2024,000009548962162,4.50,OXFORDBUS.CO.UK
OXFORDSHIRE CC,CHILDREN'S & EDUCATION,40 THE MOORS,CATERING PROVISIONS,14/02/2024,000009548962258,15.88,AMAZON  205-8714221-86
OXFORDSHIRE CC,CHILDREN'S & EDUCATION,"	OCCG GRANT",STATIONERY,14/02/2024,000009548962282,2.00,CEWE  BOOTS OXFORD COW
OXFORDSHIRE CC,CHILDREN'S & EDUCATION,"	OCCG GRANT",OTHER EXPENSES,14/02/2024,000009548962308,24.50,POUNDLAND LTD - 1586
OXFORDSHIRE CC,CUSTOMER AND CULTURE,LIBRARY COLLECTIONS,"BOOKS, DVDS AND CDS",14/02/2024,000009548962336,25.88,OVERDRIVE DIST
OXFORDSHIRE CC,CHILDREN'S & EDUCATION,"	LEAVING CARE SOUTH",MATERIALS,14/02/2024,000009548962752,598.00,AO RETAIL LIMITED
OXFORDSHIRE CC,CORPORATE CORE,,STATIONERY,14/02/2024,000009548962784,115.06,LYRECO UK LTD
OXFORDSHIRE CC,CORPORATE CORE,,STATIONERY,14/02/2024,000009548962816,283.67,LYRECO UK LTD
OXFORDSHIRE CC,RESOURCES,ICT OPERATIONS & MAI,IT SERVICES,14/02/2024,000009548962998,20.43,"GITHUB, INC."
OXFORDSHIRE CC,CHILDREN'S & EDUCATION,40 THE MOORS,CATERING PROVISIONS,14/02/2024,000009548962264,8.19,TESCO STORES 2788
OXFORDSHIRE CC,CHILDREN'S & EDUCATION,"	OCCG GRANT",MATERIALS,14/02/2024,000009548962290,7.00,POUNDLAND LTD - 1586
OXFORDSHIRE CC,ADULTS,CSS WANTAGE,CATERING PROVISIONS,14/02/2024,000009548962668,38.10,ICELAND
OXFORDSHIRE CC,CUSTOMER AND CULTURE,"MARKETING, COMMUNICATIONS & ENGAGEMENT","PUBLICITY, PROMOTIONS AND ADVERTISEMENT",14/02/2024,000009548962708,129.27,SNAP INC SNAP SNAP ADS
OXFORDSHIRE CC,ENTERPRISEVC,,CAR LEASING - PRIVATE RENTALS,14/02/2024,000009548962828,110.64,ENTERPRISE RENT-A-CAR
OXFORDSHIRE CC,CHILDREN'S & EDUCATION,"	HOME SUPPORT",DISABILITY AIDS AND EQUIPMENT,14/02/2024,000009548962242,32.50,AMZNMKTPLACE
OXFORDSHIRE CC,CHILDREN'S & EDUCATION,40 THE MOORS,CATERING PROVISIONS,14/02/2024,000009548962268,14.58,TESCO STORES 2788
OXFORDSHIRE CC,CUSTOMER AND CULTURE,LIBRARY COLLECTIONS,"BOOKS, DVDS AND CDS",14/02/2024,000009548962322,"1,945.86",OVERDRIVE DIST
OXFORDSHIRE CC,CHILDREN'S & EDUCATION,"	LEAVING CARE CITY 1",CATERING PROVISIONS,14/02/2024,000009548962352,15.00,TESCO GIFT CARD
OXFORDSHIRE CC,ADULTS,CSS WANTAGE,CATERING PROVISIONS,14/02/2024,000009548962664,195.77,ASDA GROCERIES ONLINE
OXFORDSHIRE CC,ADULTS,BUSINESS SUPPORT SERVICE,FURNITURE,14/02/2024,000009548962720,145.00,IKEA LTD SHOP ONLINE
OXFORDSHIRE CC,ADULTS,CSS WANTAGE,CATERING PROVISIONS,14/02/2024,000009548963010,9.03,SAINSBURYS S/MKTS
OXFORDSHIRE CC,CHILDREN'S & EDUCATION,PAUSE PROGRAMME,CATERING PROVISIONS,14/02/2024,000009548963038,2.35,SPAR GREATER LEYS
OXFORDSHIRE CC,CHILDREN'S & EDUCATION,"	LEAVING CARE CITY 2",VEHICLES AND PLANT - REPAIRS AND MAIN,14/02/2024,000009548962536,5.00,CELL PHONE REPAIRS LIM
OXFORDSHIRE CC,CUSTOMER AND CULTURE,BICESTER LIBRARY,SECURITY COSTS,14/02/2024,000009548962570,246.00,CHRIS LEWIS GROUP
OXFORDSHIRE CC,CHILDREN'S & EDUCATION,CHILDREN IN CARE NON-STAFFING - CENTRL 1,PAYMENT TO GOVERNMENT DEPARTMENTS,14/02/2024,000009548962182,44.00,OXFORDSHIRE CC WEB1
OXFORDSHIRE CC,CHILDREN'S & EDUCATION,"	MALTFIELD HOUSE",CATERING PROVISIONS,14/02/2024,000009548962780,139.19,TESCO STORES 2008
OXFORDSHIRE CC,CORPORATE CORE,,STATIONERY,14/02/2024,000009548962812,93.10,LYRECO UK LTD
OXFORDSHIRE CC,CHILDREN'S & EDUCATION,OTFC TEAM,CATERING,14/02/2024,000009548962898,6.40,"MAYA'S COFFEE LTD, WES"
OXFORDSHIRE CC,CHILDREN'S & EDUCATION,OTFC TEAM,CATERING,14/02/2024,000009548962912,14.40,BOOST JUICE BARS
OXFORDSHIRE CC,ADULTS,CSS - OXFORD,CATERING PROVISIONS,14/02/2024,000009548962584,329.59,TESCO STORES 2994
OXFORDSHIRE CC,CUSTOMER AND CULTURE,HARD FM,PREMISES REPAIRS,14/02/2024,000009548962506,65.52,UK SPARES
OXFORDSHIRE CC,CUSTOMER AND CULTURE,CENTRAL LIBRARY,PROFESSIONAL SUBSCRIPTIONS,14/02/2024,000009548962620,75.00,WWW.OFCOM.ORG.UK
OXFORDSHIRE CC,CUSTOMER AND CULTURE,"MARKETING, COMMUNICATIONS & ENGAGEMENT","PUBLICITY, PROMOTIONS AND ADVERTISEMENT",14/02/2024,000009548962702,500.00,FACEBK  THD3JZ39Z2
OXFORDSHIRE CC,CHILDREN'S & EDUCATION,THAME E&A HOME,ENTERTAINMENT EXPENSES,14/02/2024,000009548962380,35.00,JUMP INC BICESTER
OXFORDSHIRE CC,CHILDREN'S & EDUCATION,THAME E&A HOME,CATERING PROVISIONS,14/02/2024,000009548962388,15.83,SAINSBURYS S/MKTS
OXFORDSHIRE CC,CHILDREN'S & EDUCATION,UASC 16&17,HIRED AND CONTRACTED SERVICES,14/02/2024,000009548962416,55.00,EVERGREEN HAIR AND BE
OXFORDSHIRE CC,CUSTOMER AND CULTURE,HARD FM,MATERIALS,14/02/2024,000009548962516,318.00,M & M SKIP HIRE
OXFORDSHIRE CC,CUSTOMER AND CULTURE,LIBRARY COLLECTIONS,STATIONERY,14/02/2024,000009548962574,670.20,WF EDUCATION GROUP LTD
OXFORDSHIRE CC,ENTERPRISEVC,,CAR LEASING - PRIVATE RENTALS,14/02/2024,000009548962834,114.43,ENTERPRISE RENT-A-CAR
OXFORDSHIRE CC,ENTERPRISEVC,,CAR LEASING - PRIVATE RENTALS,14/02/2024,000009548962830,155.28,ENTERPRISE RENT-A-CAR
OXFORDSHIRE CC,CHILDREN'S & EDUCATION,OTFC TEAM,CATERING,14/02/2024,000009548962908,33.20,NANDOS (OXFORD WESTGAT
OXFORDSHIRE CC,CHILDREN'S & EDUCATION,UASC 16&17,HIRED AND CONTRACTED SERVICES,14/02/2024,000009548962418,-55.00,EVERGREEN HAIR AND BE
OXFORDSHIRE CC,CHILDREN'S & EDUCATION,"	LOOKED AFTER CITY 2",PAYMENTS TO TRANSPORT OPERATORS,14/02/2024,000009548962524,26.34,TRAINLINE
OXFORDSHIRE CC,ENTERPRISEVC,,CAR LEASING - PRIVATE RENTALS,14/02/2024,000009548962842,182.23,ENTERPRISE RENT-A-CAR
OXFORDSHIRE CC,ENTERPRISEVC,,CAR LEASING - PRIVATE RENTALS,14/02/2024,000009548962866,75.22,ENTERPRISE RENT-A-CAR
OXFORDSHIRE CC,ADULTS,CSS - BANBURY,ENTERTAINMENT EXPENSES,14/02/2024,000009548962970,8.01,SPICEBALL LEISURE CENT
OXFORDSHIRE CC,ADULTS,CSS WALLINGFORD,PURCHASE OF IT EQUIPMENT,14/02/2024,000009548962076,24.98,AMAZON.CO.UK L31227HY5
OXFORDSHIRE CC,CHILDREN'S & EDUCATION,"	LEAVING CARE SOUTH",VEHICLE FUEL,14/02/2024,000009548962434,33.83,ESSO ACORN SSTN
OXFORDSHIRE CC,CHILDREN'S & EDUCATION,"	LEAVING CARE CITY 2",VEHICLES AND PLANT - REPAIRS AND MAIN,14/02/2024,000009548962532,119.99,CELL PHONE REPAIRS LIM
OXFORDSHIRE CC,CHILDREN'S & EDUCATION,C&I BASE CHERWELL,MATERIALS,14/02/2024,000009548962558,39.95,SP LOOP EARPLUGS
OXFORDSHIRE CC,ENTERPRISEVC,,CAR LEASING - PRIVATE RENTALS,14/02/2024,000009548962848,107.81,ENTERPRISE RENT-A-CAR
OXFORDSHIRE CC,ENTERPRISEVC,,CAR LEASING - PRIVATE RENTALS,14/02/2024,000009548962872,132.41,ENTERPRISE RENT-A-CAR
OXFORDSHIRE CC,CHILDREN'S & EDUCATION,WITNEY,CATERING PROVISIONS,14/02/2024,000009548962952,8.75,MARKS&SPENCER PLC
OXFORDSHIRE CC,ADULTS,CSS - ABINGDON,MATERIALS,14/02/2024,000009548962978,20.82,AMZNMKTPLACE
OXFORDSHIRE CC,CHILDREN'S & EDUCATION,FAMILY SOLUTIONS PLUS STAFFING - SOUTH,FURNITURE,14/02/2024,000009548962928,33.54,POSTURITE LTD
OXFORDSHIRE CC,CHILDREN'S & EDUCATION,EYNSHAM,CATERING,14/02/2024,000009548962084,1.30,TESCO PFS 2488
OXFORDSHIRE CC,CHILDREN'S & EDUCATION,"	OCCG GRANT",MATERIALS,14/02/2024,000009548962294,11.00,WWW.ARGOS.CO.UK
OXFORDSHIRE CC,ENTERPRISEVC,,CAR LEASING - PRIVATE RENTALS,14/02/2024,000009548962852,108.19,ENTERPRISE RENT-A-CAR
OXFORDSHIRE CC,ENTERPRISEVC,,CAR LEASING - PRIVATE RENTALS,14/02/2024,000009548962878,147.50,ENTERPRISE RENT-A-CAR
OXFORDSHIRE CC,CHILDREN'S & EDUCATION,WITNEY,CATERING PROVISIONS,14/02/2024,000009548962956,2.15,CO-OP GROUP 070582
OXFORDSHIRE CC,CHILDREN'S & EDUCATION,40 THE MOORS,ENTERTAINMENT EXPENSES,14/02/2024,000009548962940,4.75,KIDLINGTON LEISURE CEN
OXFORDSHIRE CC,CHILDREN'S & EDUCATION,THAME E&A HOME,MATERIALS,13/02/2024,000009544745710,6.00,HOBBYCRAFT
OXFORDSHIRE CC,ADULTS,CSS WANTAGE,VEHICLE FUEL,13/02/2024,000009544746278,27.00,SAINSBURYS PETROL
OXFORDSHIRE CC,CHILDREN'S & EDUCATION,EYNSHAM,CATERING,13/02/2024,000009544746304,.90,TESCO PFS 2488
OXFORDSHIRE CC,CUSTOMER AND CULTURE,"MARKETING, COMMUNICATIONS & ENGAGEMENT","PUBLICITY, PROMOTIONS AND ADVERTISEMENT",13/02/2024,000009544745918,500.00,GOOGLE ADS4896546035
OXFORDSHIRE CC,CHILDREN'S & EDUCATION,NTS UASC AGENCY,MATERIALS,13/02/2024,000009544746106,28.76,AMZNMKTPLACE
OXFORDSHIRE CC,CORPORATE CORE,,STATIONERY,13/02/2024,000009544746016,25.57,LYRECO UK LTD
OXFORDSHIRE CC,CHILDREN'S & EDUCATION,DIDCOT MOVE-ON HOME,CATERING PROVISIONS,13/02/2024,000009544745614,12.09,SAINSBURYS S/MKTS
OXFORDSHIRE CC,CHILDREN'S & EDUCATION,THAME E&A HOME,DRUGS AND MEDICAL SUPPLIES,13/02/2024,000009544745646,26.88,"BOOTS,THAME"
OXFORDSHIRE CC,ADULTS,CSS WANTAGE,CATERING PROVISIONS,13/02/2024,000009544745882,4.84,SAINSBURYS S/MKTS
OXFORDSHIRE CC,CHILDREN'S & EDUCATION,"BICESTER CC, LAUNTON RD",CATERING PROVISIONS,13/02/2024,000009544746092,5.50,TESCO STORES 3143
OXFORDSHIRE CC,ADULTS,CSS - OXFORD,CATERING PROVISIONS,13/02/2024,000009544745352,34.87,ALDI STORES 775-142
OXFORDSHIRE CC,CHILDREN'S & EDUCATION,THAME E&A HOME,HIRE OF ACCOMMODATION AND FACILITIES,13/02/2024,000009544745384,43.00,PREMIER INN
OXFORDSHIRE CC,CHILDREN'S & EDUCATION,"	DISABILITIES TEAM-C",PAYMENTS TO TRANSPORT OPERATORS,13/02/2024,000009544745420,108.62,TRAINLINE
OXFORDSHIRE CC,ADULTS,CSS - ABINGDON,CATERING PROVISIONS,13/02/2024,000009544746198,59.22,TESCO STORES 2008
OXFORDSHIRE CC,CHILDREN'S & EDUCATION,QUALITY ASSURANCE NORTH TEAM,PAYMENTS TO TRANSPORT OPERATORS,13/02/2024,000009544746222,101.58,TRAINLINE
OXFORDSHIRE CC,CHILDREN'S & EDUCATION,HOUSE PROJECT,CATERING PROVISIONS,13/02/2024,000009544746230,6.50,CO-OP GROUP 350035
OXFORDSHIRE CC,CHILDREN'S & EDUCATION,FAMILY SOLUTIONS PLUS NON-STAFF - NORTH,MATERIALS,13/02/2024,000009544746078,10.00,WWW.ARGOS.CO.UK
OXFORDSHIRE CC,CORPORATE CORE,,STATIONERY,13/02/2024,000009544746022,2.16,LYRECO UK LTD
OXFORDSHIRE CC,CHILDREN'S & EDUCATION,UASC 16&17,CLEANING MATERIALS,13/02/2024,000009544746052,36.44,AMAZON.CO.UK 9N5DF7ZM5
OXFORDSHIRE CC,CHILDREN'S & EDUCATION,DIDCOT MOVE-ON HOME,DRUGS AND MEDICAL SUPPLIES,13/02/2024,000009544745592,9.20,BOOTS 2138
OXFORDSHIRE CC,PUBLIC HEALTH,PUBLIC HEALTH GENERAL,PAYMENTS TO TRANSPORT OPERATORS,13/02/2024,000009544745662,87.32,TRAINLINE
OXFORDSHIRE CC,CHILDREN'S & EDUCATION,NTS UASC AGENCY,CATERING PROVISIONS,13/02/2024,000009544746118,293.70,AMAZON  202-5619613-72
OXFORDSHIRE CC,CHILDREN'S & EDUCATION,UASC POST 18,POSTAGE AND DELIVERY,13/02/2024,000009544745940,14.70,POST OFFICE COUNTER
OXFORDSHIRE CC,CUSTOMER AND CULTURE,THAME LIBRARY,"NEWSPAPERS, PERIODICALS AND PUBLICATIONS",13/02/2024,000009544745970,5.80,SAINSBURYS S/MKTS
OXFORDSHIRE CC,CORPORATE CORE,,STATIONERY,13/02/2024,000009544746010,32.22,LYRECO UK LTD
OXFORDSHIRE CC,CHILDREN'S & EDUCATION,FAMILY SOLUTIONS PLUS NON-STAFF - NORTH,MATERIALS,13/02/2024,000009544746084,13.50,WWW.ARGOS.CO.UK
OXFORDSHIRE CC,CUSTOMER AND CULTURE,"MARKETING, COMMUNICATIONS & ENGAGEMENT","PUBLICITY, PROMOTIONS AND ADVERTISEMENT",13/02/2024,000009544745924,132.52,SNAP INC SNAP SNAP ADS
OXFORDSHIRE CC,RESOURCES,ICT OPERATIONS & MAI,PURCHASE OF IT EQUIPMENT,13/02/2024,000009544746160,14.99,AMZNMKTPLACE
OXFORDSHIRE CC,CHILDREN'S & EDUCATION,NTS UASC AGENCY,HARDWARE AND CROCKERY,13/02/2024,000009544746124,406.87,OXFORD FENCING SUPPLIE
OXFORDSHIRE CC,CHILDREN'S & EDUCATION,BANBURY CC,CATERING PROVISIONS,13/02/2024,000009544746168,5.80,ALDI 10 775
OXFORDSHIRE CC,CHILDREN'S & EDUCATION,THAME E&A HOME,CATERING,13/02/2024,000009544745950,20.30,GEO COFFEE ROASTING
OXFORDSHIRE CC,CORPORATE CORE,,STATIONERY,13/02/2024,000009544745986,114.74,LYRECO UK LTD
OXFORDSHIRE CC,CUSTOMER AND CULTURE,OPERATIONS,EQUIPMENT,13/02/2024,000009544745834,34.24,AMAZON  203-8333602-54
OXFORDSHIRE CC,CHILDREN'S & EDUCATION,THAME E&A HOME,CATERING,13/02/2024,000009544745954,2.90,GEO COFFEE ROASTING
OXFORDSHIRE CC,CORPORATE CORE,,STATIONERY,13/02/2024,000009544745998,41.12,LYRECO UK LTD
OXFORDSHIRE CC,CHILDREN'S & EDUCATION,40 THE MOORS,CATERING PROVISIONS,13/02/2024,000009544745932,123.53,SAINSBURYS.CO.UK
OXFORDSHIRE CC,CHILDREN'S & EDUCATION,THAME E&A HOME,CATERING,13/02/2024,000009544745960,11.90,GEO COFFEE ROASTING
OXFORDSHIRE CC,CORPORATE CORE,,STATIONERY,13/02/2024,000009544746004,39.20,LYRECO UK LTD
OXFORDSHIRE CC,CUSTOMER AND CULTURE,WALLINGFORD LIBRARY,CATERING PROVISIONS,13/02/2024,000009544746036,1.55,WAITROSE 675
OXFORDSHIRE CC,CHILDREN'S & EDUCATION,FAMILY SOLUTIONS PLUS NON-STAFF - NORTH,PAYMENT TO GOVERNMENT DEPARTMENTS,13/02/2024,000009544746070,44.00,OXFORDSHIRE CC WEB1
OXFORDSHIRE CC,CHILDREN'S & EDUCATION,NRPF & HOMELESSNESS,HIRE OF ACCOMMODATION AND FACILITIES,13/02/2024,000009544746260,471.98,TRAVELODGE
OXFORDSHIRE CC,ADULTS,CSS WALLINGFORD,CATERING PROVISIONS,13/02/2024,000009544745252,10.80,WAITROSE 675
OXFORDSHIRE CC,ADULTS,UASC 16&17,OTHER TRANSPORT ARRANGEMENTS,13/02/2024,000009544745684,46.98,TRAINLINE
OXFORDSHIRE CC,CUSTOMER AND CULTURE,TREE MAINT OPS,EQUIPMENT,13/02/2024,000009544746176,22.80,OXON FASTENING SYSTEMS
OXFORDSHIRE CC,PUBLIC HEALTH,CHILDREN IN CARE NON-STAFFING - SOUTH,PAYMENTS TO TRANSPORT OPERATORS,13/02/2024,000009544745266,88.24,ET CAR HIRE
OXFORDSHIRE CC,CHILDREN'S & EDUCATION,EYNSHAM,CATERING,13/02/2024,000009544745302,7.50,MAYFIELD EGGS
OXFORDSHIRE CC,CUSTOMER AND CULTURE,HARD FM,PREMISES REPAIRS,13/02/2024,000009544745332,8.59,OXON FASTENING SYSTEMS
OXFORDSHIRE CC,CHILDREN'S & EDUCATION,CHILDREN IN CARE NON-STAFFING - CENTRL 1,PAYMENTS TO TRANSPORT OPERATORS,13/02/2024,000009544745434,66.12,TRAINLINE
OXFORDSHIRE CC,CUSTOMER AND CULTURE,WALLINGFORD LIBRARY,POSTAGE AND DELIVERY,13/02/2024,000009544746028,3.00,HOUSE OF CARDS
OXFORDSHIRE CC,CUSTOMER AND CULTURE,COWLEY LIBRARY,MATERIALS,13/02/2024,000009544746250,6.59,AMZNMKTPLACE
OXFORDSHIRE CC,PUBLIC HEALTH,CHILDREN IN CARE NON-STAFFING - SOUTH,PAYMENTS TO TRANSPORT OPERATORS,13/02/2024,000009544745272,37.49,TRAINLINE
OXFORDSHIRE CC,PUBLIC HEALTH,WITNEY,CATERING PROVISIONS,13/02/2024,000009544745314,21.81,AMAZON  205-6648239-80
OXFORDSHIRE CC,PUBLIC HEALTH,CHILDREN IN CARE NON-STAFFING - SOUTH,PAYMENTS TO TRANSPORT OPERATORS,13/02/2024,000009544745280,93.35,EASYJET
OXFORDSHIRE CC,CHILDREN'S & EDUCATION,EYNSHAM,CATERING PROVISIONS,13/02/2024,000009544745728,5.25,CO-OPERATIVE FOOD
OXFORDSHIRE CC,ADULTS,FAMILY SOLUTIONS PLUS NON-STAFF - SOUTH,SUBSCRIPTIONS,13/02/2024,000009544745758,174.00,JERICHO CA
OXFORDSHIRE CC,CHILDREN'S & EDUCATION,"	LOOKED AFTER CITY 2",PAYMENTS TO TRANSPORT OPERATORS,13/02/2024,000009544745762,36.50,CROSS COUNTRY RAIL
OXFORDSHIRE CC,PUBLIC HEALTH,WITNEY,CATERING PROVISIONS,13/02/2024,000009544745318,15.03,SAINSBURYS S/MKTS
OXFORDSHIRE CC,PUBLIC HEALTH,CHILDREN IN CARE NON-STAFFING - SOUTH,PAYMENTS TO TRANSPORT OPERATORS,13/02/2024,000009544745288,178.35,EASYJET
OXFORDSHIRE CC,SOCIAL AND COMMUNITY SERVICES,CSS - ABINGDON,CATERING PROVISIONS,13/02/2024,000009544745324,82.30,AMAZON  203-3914842-04
OXFORDSHIRE CC,CHILDREN'S & EDUCATION,CHILDREN IN CARE NON-STAFFING - CENTRL 2,PAYMENT TO GOVERNMENT DEPARTMENTS,13/02/2024,000009544745446,-11.00,OXFORDSHIRE CC (M)
OXFORDSHIRE CC,CUSTOMER AND CULTURE,ALTERNATIVES TO CARE,FURNITURE,13/02/2024,000009544746284,24.72,AMAZON  206-5112437-44
OXFORDSHIRE CC,ADULTS,CSS - ABINGDON,CATERING PROVISIONS,13/02/2024,000009544746312,34.48,ALDI STORES
OXFORDSHIRE CC,CHILDREN'S & EDUCATION,"	LEAVING CARE CITY 1",OTHER EXPENSES,13/02/2024,000009544745482,43.99,AMZNMKTPLACE
OXFORDSHIRE CC,ADULTS,CSS - OXFORD,CATERING PROVISIONS,13/02/2024,000009544745510,3.96,ALDI STORES 775-142
OXFORDSHIRE CC,CHILDREN'S & EDUCATION,"	OCCG GRANT",OTHER EXPENSES,13/02/2024,000009544745548,44.98,B&M 236 - COWLEY
OXFORDSHIRE CC,CHILDREN'S & EDUCATION,"	MALTFIELD HOUSE",CATERING PROVISIONS,13/02/2024,000009544745584,1.75,SAINSBURYS S/MKTS
OXFORDSHIRE CC,CHILDREN'S & EDUCATION,THAME E&A HOME,CATERING PROVISIONS,13/02/2024,000009544745488,225.05,TESCO STORES 2038
OXFORDSHIRE CC,ADULTS,CSS WANTAGE,CATERING PROVISIONS,13/02/2024,000009544746270,37.79,HOME BARGAINS
OXFORDSHIRE CC,CUSTOMER AND CULTURE,ALTERNATIVES TO CARE,FURNITURE,13/02/2024,000009544746298,12.00,AMAZON  206-7225279-03
OXFORDSHIRE CC,ADULTS,CSS WALLINGFORD,CATERING PROVISIONS,13/02/2024,000009544745244,6.20,WAITROSE 675
OXFORDSHIRE CC,CHILDREN'S & EDUCATION,THAME E&A HOME,EDUCATIONAL AND VOCATIONAL TRAINING ,13/02/2024,000009544745368,49.46,EB  LEARN THROUGH LIVE
OXFORDSHIRE CC,CHILDREN'S & EDUCATION,"	LEAVING CARE CITY 2",OTHER EXPENSES,13/02/2024,000009544745404,49.99,WWW.ARGOS.CO.UK
OXFORDSHIRE CC,ADULTS,CSS - BANBURY,FURNITURE,13/02/2024,000009544746186,19.00,DUNELM SOFT FURNISHIN
OXFORDSHIRE CC,CUSTOMER AND CULTURE,COWLEY LIBRARY,MATERIALS,13/02/2024,000009544746242,29.95,AMZNMKTPLACE
OXFORDSHIRE CC,CHILDREN'S & EDUCATION,"	LOOKED AFTER CITY 2",PAYMENTS TO TRANSPORT OPERATORS,13/02/2024,000009544745764,124.40,CROSS COUNTRY RAIL
OXFORDSHIRE CC,ADULTS,CSS WITNEY,CATERING PROVISIONS,13/02/2024,000009544745796,28.38,CO-OP GROUP 070582
OXFORDSHIRE CC,CUSTOMER AND CULTURE,OPERATIONS,EQUIPMENT,13/02/2024,000009544745828,46.49,AUDIOMATE
OXFORDSHIRE CC,CHILDREN'S & EDUCATION,CHILDREN IN CARE NON-STAFFING - SOUTH,PAYMENTS TO TRANSPORT OPERATORS,13/02/2024,000009544745440,94.99,WWW.HOLIDAYEXTRAS.COM-
OXFORDSHIRE CC,CHILDREN'S & EDUCATION,DIDCOT MOVE-ON HOME,CATERING PROVISIONS,13/02/2024,000009544745610,19.68,SAINSBURYS S/MKTS
OXFORDSHIRE CC,CHILDREN'S & EDUCATION,THAME E&A HOME,DRUGS AND MEDICAL SUPPLIES,13/02/2024,000009544745640,27.37,SUPERDRUG STORES PLC
OXFORDSHIRE CC,CUSTOMER AND CULTURE,HARD FM,PREMISES REPAIRS,13/02/2024,000009544745342,35.00,WICKES OXFORD
OXFORDSHIRE CC,CHILDREN'S & EDUCATION,THAME E&A HOME,PAYMENTS TO TRANSPORT OPERATORS,13/02/2024,000009544745376,42.89,TRAINLINE
OXFORDSHIRE CC,CHILDREN'S & EDUCATION,"	LEAVING CARE CITY 2",OTHER EXPENSES,13/02/2024,000009544745412,469.95,WWW.ARGOS.CO.UK
OXFORDSHIRE CC,CHILDREN'S & EDUCATION,"	LEAVING CARE CITY 1",OTHER EXPENSES,13/02/2024,000009544745466,25.95,AMZNMKTPLACE
OXFORDSHIRE CC,CHILDREN'S & EDUCATION,THAME E&A HOME,CATERING PROVISIONS,13/02/2024,000009544745496,-1.32,TESCO STORES 2038
OXFORDSHIRE CC,CHILDREN'S & EDUCATION,"	LEAVING CARE CITY 1",CATERING,13/02/2024,000009544745568,5.80,VILLAGE CAFE
OXFORDSHIRE CC,CHILDREN'S & EDUCATION,"	LOOKED AFTER CITY 2",PAYMENTS TO TRANSPORT OPERATORS,13/02/2024,000009544745770,102.00,CROSS COUNTRY UK
OXFORDSHIRE CC,ADULTS,CSS WITNEY,ENTERTAINMENT EXPENSES,13/02/2024,000009544745804,5.50,CINEWORLD WIT CP
OXFORDSHIRE CC,ADULTS,CSS - BANBURY,CATERING PROVISIONS,13/02/2024,000009544746192,88.10,SAINSBURYS.CO.UK
OXFORDSHIRE CC,CHILDREN'S & EDUCATION,REACTIVE MAINTENANCE,PREMISES REPAIRS,13/02/2024,000009544746214,26.50,WICKES BICESTER
OXFORDSHIRE CC,CHILDREN'S & EDUCATION,CHILDREN IN CARE NON-STAFFING - SOUTH,HIRE OF ACCOMMODATION AND FACILITIES,13/02/2024,000009544745442,57.99,PREMIER INN
OXFORDSHIRE CC,CHILDREN'S & EDUCATION,"	LEAVING CARE CITY 1",OTHER EXPENSES,13/02/2024,000009544745476,94.59,AMZNMKTPLACE
OXFORDSHIRE CC,ADULTS,CSS - OXFORD,MATERIALS,13/02/2024,000009544745504,33.25,ALDI STORES 775-142
OXFORDSHIRE CC,CHILDREN'S & EDUCATION,FAMILY SOLUTIONS PLUS NON-STAFF - NORTH,PAYMENTS TO TRANSPORT OPERATORS,13/02/2024,000009544746086,25.67,TRAINLINE
OXFORDSHIRE CC,CUSTOMER AND CULTURE,ALTERNATIVES TO CARE,FURNITURE,13/02/2024,000009544746290,66.74,AMAZON  206-5230229-42
OXFORDSHIRE CC,CHILDREN'S & EDUCATION,"	MALTFIELD HOUSE",CATERING PROVISIONS,13/02/2024,000009544745578,41.54,LIDL GB WITNEY
OXFORDSHIRE CC,ENVIRONMENT AND PLACE,NAT TRAILS GENERAL,VEHICLES AND PLANT - REPAIRS AND MAIN,13/02/2024,000009544745776,48.00,ALL TYRES (OXFORD) LIM
OXFORDSHIRE CC,CHILDREN'S & EDUCATION,DIDCOT MOVE-ON HOME,DOMESTIC AND CLEANING EQUIPMENT,13/02/2024,000009544745600,3.00,SAINSBURYS S/MKTS
OXFORDSHIRE CC,CHILDREN'S & EDUCATION,"	LEAVING CARE NORTH",FURNITURE,13/02/2024,000009544745674,25.58,AMZNMKTPLACE
OXFORDSHIRE CC,ADULTS,CSS BICESTER,CATERING PROVISIONS,13/02/2024,000009544745358,133.65,TESCO STORES 2162
OXFORDSHIRE CC,CHILDREN'S & EDUCATION,FAMILY SOLUTIONS PLUS NON-STAFF - NORTH,MATERIALS,13/02/2024,000009544745392,4.79,SQ  GROUP CARDS
OXFORDSHIRE CC,CHILDREN'S & EDUCATION,CHILDREN IN CARE NON-STAFFING - CENTRL 1,OTHER TRANSPORT ARRANGEMENTS,13/02/2024,000009544745428,20.50,OXFORDBUS.CO.UK
OXFORDSHIRE CC,ADULTS,CSS - ABINGDON,CATERING PROVISIONS,13/02/2024,000009544746202,317.77,SAVONA PROVISIONS LTD
OXFORDSHIRE CC,CUSTOMER AND CULTURE,"MARKETING, COMMUNICATIONS & ENGAGEMENT",SUBSCRIPTIONS,13/02/2024,000009544745914,695.16,MAILCHIMP
OXFORDSHIRE CC,CHILDREN'S & EDUCATION,UASC 16&17,OTHER MISC INC,12/02/2024,000009536657538,-12.00,
OXFORDSHIRE CC,CHILDREN'S & EDUCATION,"	LEAVING CARE CITY 1",OTHER EXPENSES,12/02/2024,000009536656510,10.99,AMZNMKTPLACE
OXFORDSHIRE CC,CHILDREN'S & EDUCATION,DISABILITIES TEAM S,PAYMENT TO GOVERNMENT DEPARTMENTS,12/02/2024,000009536656528,53.50,HM PASSPORT OFFICE
OXFORDSHIRE CC,CUSTOMER AND CULTURE,HOLTON SITE,CATERING PROVISIONS,12/02/2024,000009536656548,44.36,AMAZON.CO.UK 7249914O5
OXFORDSHIRE CC,CHILDREN'S & EDUCATION,"	DISABILITIES TEAM-C",HIRE OF ACCOMMODATION AND FACILITIES,12/02/2024,000009536656524,147.54,PREMIER INN
OXFORDSHIRE CC,CUSTOMER AND CULTURE,HOME LIBRARY SERVICE,PAYMENTS TO TRANSPORT OPERATORS,12/02/2024,000009536656544,99.61,ENTERPRISE RENT A CAR
OXFORDSHIRE CC,CHILDREN'S & EDUCATION,"	LEAVING CARE CITY 1",OTHER EXPENSES,12/02/2024,000009536656514,13.69,AMZNMKTPLACE
OXFORDSHIRE CC,CUSTOMER AND CULTURE,HOME LIBRARY SERVICE,PAYMENTS TO TRANSPORT OPERATORS,12/02/2024,000009536656540,37.10,ENTERPRISE RENT A CAR
OXFORDSHIRE CC,CHILDREN'S & EDUCATION,CHILDREN IN CARE NON-STAFFING - CENTRL 2,OTHER TRANSPORT ARRANGEMENTS,12/02/2024,000009536657542,29.99,LONDON LUTON AIRPORT
OXFORDSHIRE CC,CHILDREN'S & EDUCATION,CHILDREN IN CARE NON-STAFFING - CENTRL 1,PAYMENTS TO TRANSPORT OPERATORS,12/02/2024,000009536657556,83.45,TRAINLINE
OXFORDSHIRE CC,CHILDREN'S & EDUCATION,"	OCCG GRANT",BIRTHDAY ALLOWANCE,12/02/2024,000009536656802,15.00,SPORTSDIRECT 218
OXFORDSHIRE CC,CHILDREN'S & EDUCATION,UASC POST 18,MATERIALS,12/02/2024,000009536656816,120.00,THAMES WATER
OXFORDSHIRE CC,CUSTOMER AND CULTURE,REGISTRAR,MATERIALS,12/02/2024,000009536656820,15.55,AMAZON.CO.UK G25VX41J5
OXFORDSHIRE CC,RESOURCES,ORGANISATIONAL DEV'T,OTHER TRANSPORT ARRANGEMENTS,12/02/2024,000009536657180,2.00,OXFORD BUS COMPANY
OXFORDSHIRE CC,CHILDREN'S & EDUCATION,CHILDREN IN CARE NON-STAFFING - NORTH,PAYMENTS TO TRANSPORT OPERATORS,12/02/2024,000009536657570,-3.10,TRAINLINE
OXFORDSHIRE CC,CHILDREN'S & EDUCATION,CHILDREN IN CARE NON-STAFFING - CENTRL 2,PAYMENTS TO TRANSPORT OPERATORS,12/02/2024,000009536657552,39.53,TRAINLINE
OXFORDSHIRE CC,CHILDREN'S & EDUCATION,CHILDREN IN CARE NON-STAFFING - CENTRL 2,PAYMENTS TO TRANSPORT OPERATORS,12/02/2024,000009536657566,-73.48,EASYJET
OXFORDSHIRE CC,CHILDREN'S & EDUCATION,"	LOOKED AFTER CITY 2",OTHER TRANSPORT ARRANGEMENTS,12/02/2024,000009536657132,45.97,UBER    TRIP
OXFORDSHIRE CC,CHILDREN'S & EDUCATION,"	LEAVING CARE CITY 2",CATERING,12/02/2024,000009536657150,13.96,MCDONALDS
OXFORDSHIRE CC,CUSTOMER AND CULTURE,HEADINGTON LIBRARY,"NEWSPAPERS, PERIODICALS AND PUBLICATIONS",12/02/2024,000009536657164,101.55,NEWSTEAM GROUP
OXFORDSHIRE CC,CHILDREN'S & EDUCATION,CHILDREN IN CARE NON-STAFFING - CENTRL 1,PAYMENT TO GOVERNMENT DEPARTMENTS,12/02/2024,000009536657546,11.00,OXFORDSHIRE CC WEB1
OXFORDSHIRE CC,CHILDREN'S & EDUCATION,CHILDREN IN CARE NON-STAFFING - CENTRL 2,PAYMENTS TO TRANSPORT OPERATORS,12/02/2024,000009536657558,124.48,EASYJET
OXFORDSHIRE CC,CHILDREN'S & EDUCATION,UASC 16&17,OTHER EXPENSES,12/02/2024,000009536656810,35.99,PUREGYM LIMITED
OXFORDSHIRE CC,CHILDREN'S & EDUCATION,UASC 16&17,OTHER EXPENSES,12/02/2024,000009536656806,35.99,PUREGYM LIMITED
OXFORDSHIRE CC,CHILDREN'S & EDUCATION,40 THE MOORS,CATERING PROVISIONS,12/02/2024,000009536656826,49.49,ASDA SUPERSTORE
OXFORDSHIRE CC,CHILDREN'S & EDUCATION,"	LOOKED AFTER CITY 2",OTHER TRANSPORT ARRANGEMENTS,12/02/2024,000009536657128,2.00,UBER    TRIP
OXFORDSHIRE CC,CHILDREN'S & EDUCATION,CHILDREN IN CARE NON-STAFFING - CENTRL 2,PAYMENTS TO TRANSPORT OPERATORS,12/02/2024,000009536657550,24.24,TRAINLINE
OXFORDSHIRE CC,CHILDREN'S & EDUCATION,CHILDREN IN CARE NON-STAFFING - CENTRL 2,PAYMENTS TO TRANSPORT OPERATORS,12/02/2024,000009536657562,122.48,EASYJET
OXFORDSHIRE CC,CHILDREN'S & EDUCATION,THAME E&A HOME,RESIDENTIAL ACTIVITIES,12/02/2024,000009536657062,5.99,SUPERDRUG STORES PLC
OXFORDSHIRE CC,CHILDREN'S & EDUCATION,"	LEAVING CARE CITY 1",CATERING PROVISIONS,12/02/2024,000009536656856,10.00,TESCO GIFT CARD
OXFORDSHIRE CC,CHILDREN'S & EDUCATION,THAME E&A HOME,CATERING PROVISIONS,12/02/2024,000009536656650,229.07,TESCO STORES 2038
OXFORDSHIRE CC,CHILDREN'S & EDUCATION,EYNSHAM,STATIONERY,12/02/2024,000009536657360,15.28,AMAZON  206-8018676-45
OXFORDSHIRE CC,CHILDREN'S & EDUCATION,EYNSHAM,CLOTHING AND UNIFORMS,12/02/2024,000009536657350,203.50,PRICE AND BUCKLAND
OXFORDSHIRE CC,CHILDREN'S & EDUCATION,EYNSHAM,STATIONERY,12/02/2024,000009536657368,6.58,AMAZON  206-8018676-45
OXFORDSHIRE CC,CHILDREN'S & EDUCATION,EYNSHAM,STATIONERY,12/02/2024,000009536657372,8.40,AMAZON  206-4368199-25
OXFORDSHIRE CC,CHILDREN'S & EDUCATION,KINGFISHER,CATERING PROVISIONS,12/02/2024,000009536656454,50.00,TESCO GIFT CARD
OXFORDSHIRE CC,CHILDREN'S & EDUCATION,EYNSHAM,RESIDENTIAL ACTIVITIES,12/02/2024,000009536656752,83.70,THE PARTYMAN COMPANY L
OXFORDSHIRE CC,CHILDREN'S & EDUCATION,KINGFISHER,OTHER TRANSPORT ARRANGEMENTS,12/02/2024,000009536656764,-25.50,STGCOACH/CTYLINK
OXFORDSHIRE CC,SOCIAL AND COMMUNITY SERVICES,CSS - ABINGDON,CATERING PROVISIONS,12/02/2024,000009536656464,2.50,AMAZON  203-8636811-39
OXFORDSHIRE CC,CHILDREN'S & EDUCATION,KINGFISHER,OTHER TRANSPORT ARRANGEMENTS,12/02/2024,000009536656758,25.50,STGCOACH/CTYLINK
OXFORDSHIRE CC,CHILDREN'S & EDUCATION,EYNSHAM,OTHER TRANSPORT ARRANGEMENTS,12/02/2024,000009536656762,25.50,STGCOACH/CTYLINK
OXFORDSHIRE CC,CHILDREN'S & EDUCATION,"	LEAVING CARE CITY 1",OTHER EXPENSES,12/02/2024,000009536656506,500.00,SOHA HOUSING
OXFORDSHIRE CC,CORPORATE CORE,,STATIONERY,12/02/2024,000009536657446,41.45,LYRECO UK LTD
OXFORDSHIRE CC,ENTERPRISEVC,,CAR LEASING - PRIVATE RENTALS,12/02/2024,000009536657460,"-1,716.00",ENTERPRISE RENT-A-CAR
OXFORDSHIRE CC,CHILDREN'S & EDUCATION,UASC 16&17,RESIDENTIAL ACTIVITIES,12/02/2024,000009536657480,25.00,RESULTS HEALTH CLUBS L
OXFORDSHIRE CC,CHILDREN'S & EDUCATION,EYNSHAM,ENTERTAINMENT EXPENSES,12/02/2024,000009536656754,24.70,EA DIGITICKETS CORAL R
OXFORDSHIRE CC,CHILDREN'S & EDUCATION,"	SEN/ICT EQUIPMENT",IT SOFTWARE,12/02/2024,000009536656770,430.80,TEAMVIEWER GMBH
OXFORDSHIRE CC,CHILDREN'S & EDUCATION,UASC 16&17,SUBSCRIPTIONS,12/02/2024,000009536656488,35.99,PUREGYM LIMITED
OXFORDSHIRE CC,CHILDREN'S & EDUCATION,"	LEAVING CARE CITY 1",OTHER EXPENSES,12/02/2024,000009536656496,14.99,AMZNMKTPLACE
OXFORDSHIRE CC,ENTERPRISEVC,,CAR LEASING - PRIVATE RENTALS,12/02/2024,000009536657454,"-1,716.00",ENTERPRISE RENT-A-CAR
OXFORDSHIRE CC,ADULTS,CSS - BANBURY,CATERING PROVISIONS,12/02/2024,000009536657470,5.50,AMAZON  205-4019374-87
OXFORDSHIRE CC,CORPORATE CORE,,STATIONERY,12/02/2024,000009536657442,10.42,LYRECO UK LTD
OXFORDSHIRE CC,CHILDREN'S & EDUCATION,"	LEAVING CARE CITY 1",OTHER EXPENSES,12/02/2024,000009536656500,14.04,AMZNMKTPLACE
OXFORDSHIRE CC,ENTERPRISEVC,,CAR LEASING - PRIVATE RENTALS,12/02/2024,000009536657456,"-1,490.34",ENTERPRISE RENT-A-CAR
OXFORDSHIRE CC,CHILDREN'S & EDUCATION,"	OCCG GRANT",OTHER EXPENSES,12/02/2024,000009536657476,36.29,B&M 515 - ABINGDON
OXFORDSHIRE CC,CORPORATE CORE,,STATIONERY,12/02/2024,000009536657448,141.83,LYRECO UK LTD
OXFORDSHIRE CC,CHILDREN'S & EDUCATION,HOUSE PROJECT,PRINTING,12/02/2024,000009536657464,30.00,SQ  OFFICE OF CARE LEA
OXFORDSHIRE CC,CHILDREN'S & EDUCATION,PAUSE PROGRAMME,CATERING PROVISIONS,12/02/2024,000009536657922,3.40,NASHS BAKERY
OXFORDSHIRE CC,CHILDREN'S & EDUCATION,PAUSE PROGRAMME,CATERING PROVISIONS,12/02/2024,000009536657928,1.95,DELTEYS
OXFORDSHIRE CC,CHILDREN'S & EDUCATION,40 THE MOORS,CATERING PROVISIONS,12/02/2024,000009536657270,30.00,TESCO STORES 2788
OXFORDSHIRE CC,CHILDREN'S & EDUCATION,WITNEY,CATERING PROVISIONS,12/02/2024,000009536657572,101.28,ASDA STORES
OXFORDSHIRE CC,CUSTOMER AND CULTURE,"MARKETING, COMMUNICATIONS & ENGAGEMENT","PUBLICITY, PROMOTIONS AND ADVERTISEMENT",12/02/2024,000009536657280,500.00,FACEBK  2S7KEZ39Z2
OXFORDSHIRE CC,CHILDREN'S & EDUCATION,40 THE MOORS,CATERING PROVISIONS,12/02/2024,000009536657266,55.77,TESCO STORES 2788
OXFORDSHIRE CC,CUSTOMER AND CULTURE,"MARKETING, COMMUNICATIONS & ENGAGEMENT","PUBLICITY, PROMOTIONS AND ADVERTISEMENT",12/02/2024,000009536657284,74.23,SNAP INC SNAP SNAP ADS
OXFORDSHIRE CC,CUSTOMER AND CULTURE,"MARKETING, COMMUNICATIONS & ENGAGEMENT","PUBLICITY, PROMOTIONS AND ADVERTISEMENT",12/02/2024,000009536657278,42.78,SNAP INC SNAP SNAP ADS
OXFORDSHIRE CC,CHILDREN'S & EDUCATION,FAMILY SOLUTIONS PLUS NON-STAFF - NORTH,MATERIALS,12/02/2024,000009536657574,-19.99,WWW.ARGOS.CO.UK
OXFORDSHIRE CC,CHILDREN'S & EDUCATION,WITNEY,CATERING PROVISIONS,12/02/2024,000009536657632,6.40,MARKS&SPENCER PLC
OXFORDSHIRE CC,CHILDREN'S & EDUCATION,HOUSE PROJECT,CATERING PROVISIONS,12/02/2024,000009536657750,8.12,SAINSBURYS S/MKTS
OXFORDSHIRE CC,"COMMUNICATIONS, STRATEGY AND INSIGHT",STRATEGIC LEADERSHIP TEAM,HIRE OF ACCOMMODATION AND FACILITIES,12/02/2024,000009536657602,157.00,PREMIER INN
OXFORDSHIRE CC,CHILDREN'S & EDUCATION,FSP NON-STAFFING - CENTRAL,FURNITURE,12/02/2024,000009536657342,135.94,WWW.ONLINE4BABY.COM
OXFORDSHIRE CC,CHILDREN'S & EDUCATION,FSP NON-STAFFING - CENTRAL,CATERING PROVISIONS,12/02/2024,000009536657344,72.00,AMAZON  204-1710631-88
OXFORDSHIRE CC,CHILDREN'S & EDUCATION,EYNSHAM,STATIONERY,12/02/2024,000009536657366,24.00,AMAZON  206-8018676-45
OXFORDSHIRE CC,CHILDREN'S & EDUCATION,EYNSHAM,STATIONERY,12/02/2024,000009536657356,9.58,AMAZON  206-3384167-78
OXFORDSHIRE CC,CHILDREN'S & EDUCATION,FAMILY HELP SOUTH,MATERIALS,12/02/2024,000009536657044,11.99,AMAZON  026-2252593-68
OXFORDSHIRE CC,CHILDREN'S & EDUCATION,FAMILY HELP SOUTH,MATERIALS,12/02/2024,000009536657052,113.98,AMAZON  026-9955100-72
OXFORDSHIRE CC,CHILDREN'S & EDUCATION,WITNEY,CATERING PROVISIONS,12/02/2024,000009536657022,11.60,MARKS&SPENCER PLC SACA
OXFORDSHIRE CC,PUBLIC HEALTH,WITNEY,CATERING PROVISIONS,12/02/2024,000009536656416,19.85,ALDI 41 775
OXFORDSHIRE CC,CHILDREN'S & EDUCATION,EYNSHAM,CATERING,12/02/2024,000009536656402,7.50,MAYFIELDEGGS
OXFORDSHIRE CC,ADULTS,START WELL STAFFING,PAYMENTS TO TRANSPORT OPERATORS,12/02/2024,000009536656412,19.96,TRAINLINE
OXFORDSHIRE CC,PUBLIC HEALTH,WITNEY,CATERING PROVISIONS,12/02/2024,000009536656422,4.98,ALDI 41 775
OXFORDSHIRE CC,PUBLIC HEALTH,WITNEY,CATERING PROVISIONS,12/02/2024,000009536656428,8.30,ALDI 41 775
OXFORDSHIRE CC,CHILDREN'S & EDUCATION,KINGFISHER,TELEPHONE - EQUIPMENT,12/02/2024,000009536656452,29.99,TESCO ONLINE
OXFORDSHIRE CC,CHILDREN'S & EDUCATION,WITNEY,MATERIALS,12/02/2024,000009536657026,27.00,THEWORKS
OXFORDSHIRE CC,CHILDREN'S & EDUCATION,FAMILY HELP SOUTH,MATERIALS,12/02/2024,000009536657048,137.94,AMAZON  026-9064478-80
OXFORDSHIRE CC,CHILDREN'S & EDUCATION,EYNSHAM,CATERING PROVISIONS,12/02/2024,000009536657078,12.97,SAINSBURYS S/MKTS
OXFORDSHIRE CC,CHILDREN'S & EDUCATION,THAME E&A HOME,RESIDENTIAL ACTIVITIES,12/02/2024,000009536656918,40.50,EVERYONE ACTIVE-DOM
OXFORDSHIRE CC,CUSTOMER AND CULTURE,THAME LIBRARY,"NEWSPAPERS, PERIODICALS AND PUBLICATIONS",12/02/2024,000009536657408,7.80,SAINSBURYS SUPERMA
OXFORDSHIRE CC,CORPORATE CORE,,STATIONERY,12/02/2024,000009536657426,60.58,LYRECO UK LTD
OXFORDSHIRE CC,CHILDREN'S & EDUCATION,"	LEAVING CARE NORTH",MATERIALS,12/02/2024,000009536657830,129.00,CURRYS ONLINE
OXFORDSHIRE CC,CHILDREN'S & EDUCATION,DIDCOT MOVE-ON HOME,CATERING PROVISIONS,12/02/2024,000009536656682,53.81,SAINSBURYS SMKT
OXFORDSHIRE CC,CHILDREN'S & EDUCATION,40 THE MOORS,CLEANING MATERIALS,12/02/2024,000009536656724,11.99,AMAZON  206-8652686-84
OXFORDSHIRE CC,CUSTOMER AND CULTURE,COMMUNITY PARTNERSHIP TEAM,CATERING PROVISIONS,12/02/2024,000009536656634,9.80,TESCO STORES 2008
OXFORDSHIRE CC,CHILDREN'S & EDUCATION,THAME E&A HOME,CATERING,12/02/2024,000009536656658,4.50,SUMUP   BUBBLE BOUTEAQ
OXFORDSHIRE CC,CHILDREN'S & EDUCATION,THAME E&A HOME,OTHER TRANSPORT ARRANGEMENTS,12/02/2024,000009536656646,4.40,OXPENS CAR PARK
OXFORDSHIRE CC,CHILDREN'S & EDUCATION,THAME E&A HOME,CATERING PROVISIONS,12/02/2024,000009536656664,7.99,TESCO SUBSCRIPTION
OXFORDSHIRE CC,CHILDREN'S & EDUCATION,THAME E&A HOME,MATERIALS,12/02/2024,000009536656654,3.00,POUNDLAND LTD - 2035
OXFORDSHIRE CC,ADULTS,CSS - OXFORD,CATERING PROVISIONS,12/02/2024,000009536656674,112.47,ALDI STORES 775-142
OXFORDSHIRE CC,CHILDREN'S & EDUCATION,THAME E&A HOME,CATERING PROVISIONS,12/02/2024,000009536656914,20.00,TESCO STORES 2994
OXFORDSHIRE CC,CUSTOMER AND CULTURE,THAME LIBRARY,"NEWSPAPERS, PERIODICALS AND PUBLICATIONS",12/02/2024,000009536657406,5.80,SAINSBURYS S/MKTS
OXFORDSHIRE CC,CORPORATE CORE,,STATIONERY,12/02/2024,000009536657422,58.34,LYRECO UK LTD
OXFORDSHIRE CC,ADULTS,START WELL STAFFING,PAYMENTS TO TRANSPORT OPERATORS,12/02/2024,000009536656406,28.93,TRAINLINE
OXFORDSHIRE CC,CHILDREN'S & EDUCATION,C&I BASE ST ANDREWS,"SUPPLIES, STATIONERY AND MATERIALS",12/02/2024,000009536656730,3.30,AMAZON  205-5969705-34
OXFORDSHIRE CC,CHILDREN'S & EDUCATION,THAME E&A HOME,OTHER EXPENSES,12/02/2024,000009536656652,43.00,CELL PHONE REPAIRS LIM
OXFORDSHIRE CC,ADULTS,CSS - OXFORD,CATERING PROVISIONS,12/02/2024,000009536656672,12.91,ALDI STORES 775-142
OXFORDSHIRE CC,RESOURCES,CENTRAL BUYING TEAM,MATERIALS,12/02/2024,000009536657384,"1,200.00",AMAZON PRIME BQ5UO29B5
OXFORDSHIRE CC,CORPORATE CORE,,STATIONERY,12/02/2024,000009536657432,165.80,LYRECO UK LTD
OXFORDSHIRE CC,CORPORATE CORE,,STATIONERY,12/02/2024,000009536657438,20.69,LYRECO UK LTD
OXFORDSHIRE CC,CHILDREN'S & EDUCATION,"	LEAVING CARE CITY 2",CATERING,12/02/2024,000009536657088,10.37,MCDONALDS
OXFORDSHIRE CC,CUSTOMER AND CULTURE,SCHOOLS FM CATERING AREA 2,CATERING PROVISIONS,12/02/2024,000009536657108,10.96,AMAZON  202-9527373-01
OXFORDSHIRE CC,CHILDREN'S & EDUCATION,THAME E&A HOME,MATERIALS,12/02/2024,000009536657082,9.99,AMZNMKTPLACE
OXFORDSHIRE CC,CUSTOMER AND CULTURE,MUSEUMS COLLECTIONS,"SUPPLIES, STATIONERY AND MATERIALS",12/02/2024,000009536657646,42.00,3D PEOPLE
OXFORDSHIRE CC,CUSTOMER AND CULTURE,MUSIC UNALLOCABLE,DISABILITY AIDS AND EQUIPMENT,12/02/2024,000009536657682,62.98,ONBUY.COM
OXFORDSHIRE CC,CUSTOMER AND CULTURE,"MARKETING, COMMUNICATIONS & ENGAGEMENT","PUBLICITY, PROMOTIONS AND ADVERTISEMENT",12/02/2024,000009536657292,82.65,SNAP INC SNAP SNAP ADS
OXFORDSHIRE CC,CUSTOMER AND CULTURE,KIDLINGTON LIBRARY,"NEWSPAPERS, PERIODICALS AND PUBLICATIONS",12/02/2024,000009536657332,104.40,OXFORD HOUSE CAF?
OXFORDSHIRE CC,CUSTOMER AND CULTURE,"MARKETING, COMMUNICATIONS & ENGAGEMENT","PUBLICITY, PROMOTIONS AND ADVERTISEMENT",12/02/2024,000009536657288,500.00,FACEBK  9HRUMYB9Z2
OXFORDSHIRE CC,CUSTOMER AND CULTURE,CENTRAL LIBRARY,FURNITURE,12/02/2024,000009536657320,278.30,AMAZON  206-1426382-27
OXFORDSHIRE CC,CHILDREN'S & EDUCATION,"	OCCG GRANT",FURNITURE,12/02/2024,000009536657482,-78.00,DUNELM SOFTFURNISHINGS
OXFORDSHIRE CC,CHILDREN'S & EDUCATION,THAME E&A HOME,CATERING PROVISIONS,12/02/2024,000009536657084,7.00,KHAIR DIN GROCERIES AN
OXFORDSHIRE CC,CUSTOMER AND CULTURE,HISTORY SERVICE,FURNITURE,12/02/2024,000009536657640,55.57,WWW.VISTAPLAN.CO.UK
OXFORDSHIRE CC,CHILDREN'S & EDUCATION,"	LEAVING CARE CITY 2",CATERING,12/02/2024,000009536657094,6.99,MCDONALDS
OXFORDSHIRE CC,ADULTS,CSS - BANBURY,CATERING PROVISIONS,12/02/2024,000009536657688,26.19,TESCO STORES 2064
OXFORDSHIRE CC,CHILDREN'S & EDUCATION,"	LEAVING CARE CITY 1",PAYMENTS TO TRANSPORT OPERATORS,12/02/2024,000009536656850,35.16,TRAINLINE
OXFORDSHIRE CC,CHILDREN'S & EDUCATION,DIDCOT MOVE-ON HOME,CATERING PROVISIONS,12/02/2024,000009536656876,3.34,SAINSBURYS S/MKTS
OXFORDSHIRE CC,ENVIRONMENT AND PLACE,NETWORK & ASSET MGT,TRAINING RELATED EXPENDITURE,12/02/2024,000009536656570,405.72,TRAVELODGE
OXFORDSHIRE CC,CHILDREN'S & EDUCATION,DIDCOT MOVE-ON HOME,CATERING PROVISIONS,12/02/2024,000009536656880,15.19,ALDI 99 775
OXFORDSHIRE CC,CHILDREN'S & EDUCATION,"	MALTFIELD HOUSE",CATERING PROVISIONS,12/02/2024,000009536656870,-48.00,ASDA GEORGE COM LEEDS
OXFORDSHIRE CC,CUSTOMER AND CULTURE,SCHOOLS FM CATERING AREA 2,MATERIALS,12/02/2024,000009536656576,37.99,AMZNMKTPLACE
OXFORDSHIRE CC,ADULTS,THAME E&A HOME,FURNITURE,12/02/2024,000009536657228,"1,305.00",NEXT
OXFORDSHIRE CC,CUSTOMER AND CULTURE,HISTORY SERVICE,FURNITURE,12/02/2024,000009536657186,6.68,AMAZON  205-7164319-67
OXFORDSHIRE CC,ADULTS,CSS WANTAGE,ENTERTAINMENT EXPENSES,12/02/2024,000009536657238,9.90,WWW.BETTER.ORG.UK
OXFORDSHIRE CC,ADULTS,THAME E&A HOME,FURNITURE,12/02/2024,000009536657232,"1,305.00",NEXT
OXFORDSHIRE CC,CHILDREN'S & EDUCATION,THAME E&A HOME,CATERING PROVISIONS,12/02/2024,000009536656996,15.07,SAINSBURYS S/MKTS
OXFORDSHIRE CC,CUSTOMER AND CULTURE,SCHOOLS FM CATERING AREA 1,CATERING PROVISIONS,12/02/2024,000009536657004,11.35,ALDI 112 775
OXFORDSHIRE CC,CHILDREN'S & EDUCATION,"	LEAVING CARE NORTH",FURNITURE,12/02/2024,000009536656968,104.98,STUDIO.CO.UK
OXFORDSHIRE CC,ADULTS,CSS WANTAGE,EQUIPMENT,12/02/2024,000009536656384,11.30,HOME BARGAINS
OXFORDSHIRE CC,ADULTS,CSS WANTAGE,CATERING PROVISIONS,12/02/2024,000009536656388,7.00,ASDA STORES
OXFORDSHIRE CC,ADULTS,CSS WANTAGE,CATERING PROVISIONS,12/02/2024,000009536656376,35.92,AMAZON  202-0551922-87
OXFORDSHIRE CC,ADULTS,CSS WANTAGE,EQUIPMENT,12/02/2024,000009536656380,22.00,B&M 250 - WANTAGE
OXFORDSHIRE CC,ADULTS,CSS WANTAGE,CATERING PROVISIONS,12/02/2024,000009536656392,10.05,ASDA STORES
OXFORDSHIRE CC,ADULTS,CSS WANTAGE,CATERING PROVISIONS,12/02/2024,000009536656386,6.80,SAINSBURYS S/MKT
OXFORDSHIRE CC,CHILDREN'S & EDUCATION,EYNSHAM,CATERING,12/02/2024,000009536656396,223.89,TESCO STORES 2008
OXFORDSHIRE CC,CHILDREN'S & EDUCATION,THAME E&A HOME,CATERING PROVISIONS,12/02/2024,000009536657710,19.97,SAINSBURYS S/MKTS
OXFORDSHIRE CC,CHILDREN'S & EDUCATION,QUALITY ASSURANCE SOUTH TEAM,HIRE OF ACCOMMODATION AND FACILITIES,12/02/2024,000009536657736,59.01,TRAVELODGE
OXFORDSHIRE CC,CHILDREN'S & EDUCATION,THAME E&A HOME,SUBSCRIPTIONS,12/02/2024,000009536657700,42.00,FUSION LIFESTYLE
OXFORDSHIRE CC,CHILDREN'S & EDUCATION,"	OCCG GRANT",CATERING PROVISIONS,12/02/2024,000009536657904,13.00,TESCO STORES 2064
OXFORDSHIRE CC,CHILDREN'S & EDUCATION,THAME E&A HOME,CATERING,12/02/2024,000009536657704,10.00,VINYS CAFE
OXFORDSHIRE CC,ENVIRONMENT AND PLACE,NAT TRAILS GENERAL,PAYMENTS TO VOLUNTARY BODIES,12/02/2024,000009536657886,50.00,PAYPAL  RIVERTHAMES RI
OXFORDSHIRE CC,CHILDREN'S & EDUCATION,HOUSE PROJECT,PAYMENT TO GOVERNMENT DEPARTMENTS,12/02/2024,000009536657746,341.00,WWW.OXFORD.GOV.UK
OXFORDSHIRE CC,CHILDREN'S & EDUCATION,NRPF & HOMELESSNESS,HIRE OF ACCOMMODATION AND FACILITIES,12/02/2024,000009536657898,703.00,PREMIER INN
OXFORDSHIRE CC,CHILDREN'S & EDUCATION,HOUSE PROJECT,OTHER TRANSPORT ARRANGEMENTS,12/02/2024,000009536657740,7.80,WESTGATE OXFORD CAR PA
OXFORDSHIRE CC,ADULTS,CSS WANTAGE,MATERIALS,12/02/2024,000009536657858,25.00,WWW.ARGOS.CO.UK
OXFORDSHIRE CC,ADULTS,CSS WANTAGE,CATERING PROVISIONS,12/02/2024,000009536657876,29.07,SAINSBURYS S/MKTS
OXFORDSHIRE CC,ADULTS,CSS WANTAGE,MATERIALS,12/02/2024,000009536657868,3.00,B&M 250 - WANTAGE
OXFORDSHIRE CC,CHILDREN'S & EDUCATION,"	LEAVING CARE CITY 2",CATERING,09/02/2024,000009529189102,6.47,PENNY BLACK
OXFORDSHIRE CC,CUSTOMER AND CULTURE,SCHOOLS FM CATERING AREA 4,CATERING PROVISIONS,09/02/2024,000009529188878,6.00,CO-OPERATIVE FOOD
OXFORDSHIRE CC,CHILDREN'S & EDUCATION,"	LEAVING CARE CITY 2",PAYMENTS TO TRANSPORT OPERATORS,09/02/2024,000009529189110,76.10,GWR OXFORD TO
OXFORDSHIRE CC,"COMMUNICATIONS, STRATEGY AND INSIGHT",CHAIRMANS ALLOWANCE,PAYMENT TO GOVERNMENT DEPARTMENTS,09/02/2024,000009529188890,60.00,THAME TOWN COUNCIL
OXFORDSHIRE CC,CUSTOMER AND CULTURE,LIBRARY COLLECTIONS,"BOOKS, DVDS AND CDS",09/02/2024,000009529188602,167.07,OVERDRIVE DIST
OXFORDSHIRE CC,CHILDREN'S & EDUCATION,"	OCCG GRANT",CATERING,09/02/2024,000009529189874,21.34,MCDONALDS
OXFORDSHIRE CC,CHILDREN'S & EDUCATION,UASC 16&17,MATERIALS,09/02/2024,000009529188192,339.97,CYCLE KING
OXFORDSHIRE CC,CUSTOMER AND CULTURE,CENTRAL LIBRARY,"SUPPLIES, STATIONERY AND MATERIALS",09/02/2024,000009529189572,30.07,AMAZON  203-1531259-40
OXFORDSHIRE CC,CUSTOMER AND CULTURE,LIBRARY COLLECTIONS,"SUPPLIES, STATIONERY AND MATERIALS",09/02/2024,000009529188252,"1,230.00",THE READING AGENCY
OXFORDSHIRE CC,CHILDREN'S & EDUCATION,OTFC TEAM,CATERING,09/02/2024,000009529189694,4.00,BOBA BROS
OXFORDSHIRE CC,CUSTOMER AND CULTURE,SCHOOLS FM CATERING AREA 1,CATERING PROVISIONS,09/02/2024,000009529189722,25.40,CO OPERATIVE FOOD
OXFORDSHIRE CC,CHILDREN'S & EDUCATION,QUALITY ASSURANCE CITY TEAM,HIRE OF ACCOMMODATION AND FACILITIES,09/02/2024,000009529189940,52.00,PREMIER INN
OXFORDSHIRE CC,CHILDREN'S & EDUCATION,CHILDREN IN CARE NON-STAFFING - SOUTH,OTHER EXPENSES,09/02/2024,000009529189884,100.00,ASDA STORES LTD
OXFORDSHIRE CC,CHILDREN'S & EDUCATION,"	LEAVING CARE CITY 1",PAYMENTS TO TRANSPORT OPERATORS,09/02/2024,000009529188648,33.51,TRAINLINE
OXFORDSHIRE CC,CHILDREN'S & EDUCATION,FSP NON-STAFFING - CENTRAL,PAYMENT TO GOVERNMENT DEPARTMENTS,09/02/2024,000009529189962,22.00,OXFORDSHIRE CC WEB1
OXFORDSHIRE CC,CUSTOMER AND CULTURE,MUSIC UNALLOCABLE,DISABILITY AIDS AND EQUIPMENT,09/02/2024,000009529189894,3.98,ONBUY.COM
OXFORDSHIRE CC,CUSTOMER AND CULTURE,COUNTY HALL,STATIONERY,09/02/2024,000009529189950,51.99,AMAZON  026-3713787-84
OXFORDSHIRE CC,CHILDREN'S & EDUCATION,FSP NON-STAFFING - CENTRAL,PAYMENT TO GOVERNMENT DEPARTMENTS,09/02/2024,000009529189966,11.00,OXFORDSHIRE CC WEB1
OXFORDSHIRE CC,ENVIRONMENT AND PLACE,FLEET OPERATIONS,CATERING PROVISIONS,09/02/2024,000009529188632,20.00,MILK AND MORE (RECUR
OXFORDSHIRE CC,CHILDREN'S & EDUCATION,QUALITY ASSURANCE CITY TEAM,HIRE OF ACCOMMODATION AND FACILITIES,09/02/2024,000009529189936,38.00,PREMIER INN
OXFORDSHIRE CC,CHILDREN'S & EDUCATION,FSP NON-STAFFING - CENTRAL,PAYMENT TO GOVERNMENT DEPARTMENTS,09/02/2024,000009529189970,131.00,HM PASSPORT OFFICE
OXFORDSHIRE CC,CHILDREN'S & EDUCATION,"	LEAVING CARE CITY 1",MATERIALS,09/02/2024,000009529188638,.99,AMAZON PRIME H38UI1QF4
OXFORDSHIRE CC,CHILDREN'S & EDUCATION,OTFC TEAM,CATERING,09/02/2024,000009529189702,26.88,CHERWELL BANBURY
OXFORDSHIRE CC,CHILDREN'S & EDUCATION,"	LEAVING CARE NORTH",CLOTHING AND UNIFORMS,09/02/2024,000009529189640,52.94,AMAZON  204-6974949-75
OXFORDSHIRE CC,ADULTS,CSS BICESTER,CATERING EQUIPMENT,09/02/2024,000009529188278,12.25,POUNDLAND - 2826
OXFORDSHIRE CC,CORPORATE CORE,,STATIONERY,09/02/2024,000009529189614,63.72,LYRECO UK LTD
OXFORDSHIRE CC,CHILDREN'S & EDUCATION,NRPF & HOMELESSNESS,HIRE OF ACCOMMODATION AND FACILITIES,09/02/2024,000009529189738,361.98,TRAVELODGE
OXFORDSHIRE CC,CUSTOMER AND CULTURE,CATERING MANAGEMENT SOFT FM,CATERING PROVISIONS,09/02/2024,000009529188058,37.65,ALDI STORES
OXFORDSHIRE CC,CUSTOMER AND CULTURE,CATERING MANAGEMENT SOFT FM,CATERING PROVISIONS,09/02/2024,000009529188058,37.64,ALDI STORES
OXFORDSHIRE CC,ADULTS,CSS WANTAGE,ENTERTAINMENT EXPENSES,09/02/2024,000009529189380,14.60,HOLLYWOOD BOWL
OXFORDSHIRE CC,CHILDREN'S & EDUCATION,"	LEAVING CARE NORTH","SUPPLIES, STATIONERY AND MATERIALS",09/02/2024,000009529189644,25.00,CS MORRISONS GIFT CARD
OXFORDSHIRE CC,CUSTOMER AND CULTURE,TRANSPORT GENERAL,GENERAL MAINTENANCE,09/02/2024,000009529188284,59.76,AMAZON.CO.UK OM09L2EK5
OXFORDSHIRE CC,CORPORATE CORE,,STATIONERY,09/02/2024,000009529189620,15.92,LYRECO UK LTD
OXFORDSHIRE CC,CUSTOMER AND CULTURE,HOLTON SITE,CATERING PROVISIONS,09/02/2024,000009529188290,17.50,MILK AND MORE (RECUR
OXFORDSHIRE CC,CHILDREN'S & EDUCATION,FAMILY HELP SOUTH,MATERIALS,09/02/2024,000009529188908,28.93,AMAZON  026-4617448-32
OXFORDSHIRE CC,CHILDREN'S & EDUCATION,FAMILY HELP SOUTH,MATERIALS,09/02/2024,000009529188934,22.77,AMAZON  026-9955100-72
OXFORDSHIRE CC,CHILDREN'S & EDUCATION,"	LEAVING CARE CITY 2",PAYMENT TO GOVERNMENT DEPARTMENTS,09/02/2024,000009529189114,82.50,HM PASSPORT OFFICE
OXFORDSHIRE CC,CUSTOMER AND CULTURE,CH REFURB PROJECT,EQUIPMENT,09/02/2024,000009529189070,342.00,CHAMBERS ELECTRONICS
OXFORDSHIRE CC,CHILDREN'S & EDUCATION,PAUSE PROGRAMME,"NEWSPAPERS, PERIODICALS AND PUBLICATIONS",09/02/2024,000009529190012,3.99,SQ  TURNA SUPERMARKET
OXFORDSHIRE CC,CHILDREN'S & EDUCATION,"	LEAVING CARE NORTH",CATERING PROVISIONS,09/02/2024,000009529189976,498.98,AMAZON  204-6165067-42
OXFORDSHIRE CC,CHILDREN'S & EDUCATION,PAUSE PROGRAMME,CATERING PROVISIONS,09/02/2024,000009529190018,14.22,SAINSBURYS S/MKTS
OXFORDSHIRE CC,CHILDREN'S & EDUCATION,DIDCOT MOVE-ON HOME,CATERING PROVISIONS,09/02/2024,000009529188700,2.55,SAINSBURYS S/MKTS
OXFORDSHIRE CC,CHILDREN'S & EDUCATION,THAME E&A HOME,CLOTHING AND UNIFORMS,09/02/2024,000009529188744,72.96,SP GAFF AND GO
OXFORDSHIRE CC,CHILDREN'S & EDUCATION,DIDCOT MOVE-ON HOME,CATERING PROVISIONS,09/02/2024,000009529188708,5.18,SAINSBURYS S/MKTS
OXFORDSHIRE CC,CHILDREN'S & EDUCATION,THAME E&A HOME,CLOTHING AND UNIFORMS,09/02/2024,000009529188754,89.92,SHEIN.COM
OXFORDSHIRE CC,CHILDREN'S & EDUCATION,"	LEAVING CARE NORTH",MATERIALS,09/02/2024,000009529189980,149.00,CURRYS ONLINE
OXFORDSHIRE CC,CHILDREN'S & EDUCATION,PAUSE PROGRAMME,OTHER TRANSPORT ARRANGEMENTS,09/02/2024,000009529190028,2.40,RINGGO PARKING
OXFORDSHIRE CC,CUSTOMER AND CULTURE,LIBRARY COLLECTIONS,"BOOKS, DVDS AND CDS",09/02/2024,000009529188594,791.89,OVERDRIVE DIST
OXFORDSHIRE CC,CUSTOMER AND CULTURE,HISTORY SERVICE,"BOOKS, DVDS AND CDS",09/02/2024,000009529189850,15.00,PAYPAL  RIVERTHAMES RI
OXFORDSHIRE CC,ADULTS,CSS WANTAGE,CATERING PROVISIONS,09/02/2024,000009529189990,16.85,SAINSBURYS S/MKTS
OXFORDSHIRE CC,CUSTOMER AND CULTURE,SAMUELSON HOUSE,CATERING PROVISIONS,09/02/2024,000009529188560,53.55,MILK AND MORE (RECUR
OXFORDSHIRE CC,CUSTOMER AND CULTURE,HARD FM,PREMISES REPAIRS,09/02/2024,000009529188900,33.50,WICKES OXFORD
OXFORDSHIRE CC,CUSTOMER AND CULTURE,HISTORY SERVICE,EQUIPMENT,09/02/2024,000009529189270,109.56,WWW.PRESERVATIONEQUIPM
OXFORDSHIRE CC,CORPORATE CORE,,STATIONERY,09/02/2024,000009529189610,3.42,LYRECO UK LTD
OXFORDSHIRE CC,CHILDREN'S & EDUCATION,NTS UASC AGENCY,CATERING PROVISIONS,09/02/2024,000009529189800,21.45,AMAZON  202-1087690-58
OXFORDSHIRE CC,RESOURCES,CHILDREN & FAMILY LEGAL TEAM,LEGAL COSTS,09/02/2024,000009529189840,33.00,OXFORDSHIRE CC WEB1
OXFORDSHIRE CC,CUSTOMER AND CULTURE,HARD FM,HARDWARE AND CROCKERY,09/02/2024,000009529189008,9.38,B AND Q
OXFORDSHIRE CC,CHILDREN'S & EDUCATION,"	OCCG GRANT",FURNITURE,09/02/2024,000009529189278,43.98,AMAZON  203-3972104-53
OXFORDSHIRE CC,CHILDREN'S & EDUCATION,NTS UASC AGENCY,CATERING PROVISIONS,09/02/2024,000009529189808,24.98,AMAZON  202-2127251-56
OXFORDSHIRE CC,ADULTS,ADULTS AT RISK,HIRE OF ACCOMMODATION AND FACILITIES,09/02/2024,000009529188982,511.00,ATHENA OXFORD LTD
OXFORDSHIRE CC,CUSTOMER AND CULTURE,HARD FM,HARDWARE AND CROCKERY,09/02/2024,000009529189014,449.60,WICKES BICESTER
OXFORDSHIRE CC,RESOURCES,INCOME TEAM,PAYMENT TO GOVERNMENT DEPARTMENTS,09/02/2024,000009529189056,614.17,WWW.MONEYCLAIM.GOV
OXFORDSHIRE CC,RESOURCES,ORGANISATIONAL DEV'T,SUBSCRIPTIONS,09/02/2024,000009529189254,170.00,WWW.MINDTOOLS.COM
OXFORDSHIRE CC,CHILDREN'S & EDUCATION,FAMILY SOLUTIONS PLUS NON-STAFF - NORTH,CATERING,09/02/2024,000009529189782,58.65,WETHERSPOON HOTEL
OXFORDSHIRE CC,CHILDREN'S & EDUCATION,EYNSHAM,RESIDENTIAL ACTIVITIES,09/02/2024,000009529189822,3.91,MCDONALDS
OXFORDSHIRE CC,CHILDREN'S & EDUCATION,THAME E&A HOME,VEHICLES AND PLANT - REPAIRS AND MAIN,09/02/2024,000009529188992,-78.00,1ST CHOICE DOMESTICS L
OXFORDSHIRE CC,CUSTOMER AND CULTURE,SCHOOLS FM CATERING AREA 2,CATERING PROVISIONS,09/02/2024,000009529189024,109.97,AMAZON  202-1782154-84
OXFORDSHIRE CC,ENVIRONMENT AND PLACE,SCH&SOC CARE TRANSP,MATERIALS,09/02/2024,000009529189408,684.00,THE WINDMILL SPECIAL N
OXFORDSHIRE CC,CUSTOMER AND CULTURE,OXFORDSHIRE MUSEUM,LICENCES,09/02/2024,000009529189290,159.00,TVLICENSING.CO.UK
OXFORDSHIRE CC,CUSTOMER AND CULTURE,HARD FM,PREMISES REPAIRS,09/02/2024,000009529188146,225.41,HOWDENS - BANBURY D293
OXFORDSHIRE CC,CHILDREN'S & EDUCATION,"	SEN/ICT EQUIPMENT",IT SOFTWARE,09/02/2024,000009529189396,180.00,TEXTHELP
OXFORDSHIRE CC,CHILDREN'S & EDUCATION,"	LEAVING CARE CITY 1",OTHER EXPENSES,09/02/2024,000009529188202,10.97,AMZNMKTPLACE
OXFORDSHIRE CC,ENVIRONMENT AND PLACE,ASSET MANAGEMENT & PROGRAMME STAFFING,HIRE OF ACCOMMODATION AND FACILITIES,09/02/2024,000009529188234,91.99,PREMIER INN
OXFORDSHIRE CC,ADULTS,CSS WITNEY,MATERIALS,09/02/2024,000009529189366,9.98,AMZNMKTPLACE
OXFORDSHIRE CC,ADULTS,CSS WITNEY,MATERIALS,09/02/2024,000009529189372,102.00,GIFTSTICKER
OXFORDSHIRE CC,CHILDREN'S & EDUCATION,40 THE MOORS,CLEANING MATERIALS,09/02/2024,000009529188472,74.80,AMAZON  206-7181405-96
OXFORDSHIRE CC,CHILDREN'S & EDUCATION,CHILDREN IN CARE NON-STAFFING - NORTH,PAYMENTS TO TRANSPORT OPERATORS,09/02/2024,000009529189672,11.31,TRAINLINE
OXFORDSHIRE CC,CUSTOMER AND CULTURE,"MARKETING, COMMUNICATIONS & ENGAGEMENT","PUBLICITY, PROMOTIONS AND ADVERTISEMENT",09/02/2024,000009529189532,500.00,FACEBK  RXYB7YT9Z2
OXFORDSHIRE CC,ADULTS,CSS WITNEY,CATERING PROVISIONS,09/02/2024,000009529189348,35.70,MILK AND MORE (RECUR
OXFORDSHIRE CC,CHILDREN'S & EDUCATION,CHILDREN IN CARE NON-STAFFING - NORTH,PAYMENTS TO TRANSPORT OPERATORS,09/02/2024,000009529189676,12.33,TRAINLINE
OXFORDSHIRE CC,CHILDREN'S & EDUCATION,OTFC TEAM,OTHER TRANSPORT ARRANGEMENTS,09/02/2024,000009529189708,1.90,CAR PARK CHARGES
OXFORDSHIRE CC,CUSTOMER AND CULTURE,"MARKETING, COMMUNICATIONS & ENGAGEMENT","PUBLICITY, PROMOTIONS AND ADVERTISEMENT",09/02/2024,000009529189536,41.68,SNAP INC SNAP SNAP ADS
OXFORDSHIRE CC,CUSTOMER AND CULTURE,HARD FM,PREMISES REPAIRS,09/02/2024,000009529188166,16.50,HOMEBASE LTD 091
OXFORDSHIRE CC,CHILDREN'S & EDUCATION,"	LEAVING CARE CITY 1",OTHER EXPENSES,09/02/2024,000009529188208,34.52,AMZNMKTPLACE
OXFORDSHIRE CC,ADULTS,CSS WITNEY,CATERING PROVISIONS,09/02/2024,000009529189358,9.59,AMAZON  204-9724593-72
OXFORDSHIRE CC,CUSTOMER AND CULTURE,LIBRARY BUSINESS SERVICES,EQUIPMENT,09/02/2024,000009529189686,11.49,AMAZON  203-3061371-86
OXFORDSHIRE CC,CHILDREN'S & EDUCATION,FAMILY SOLUTIONS PLUS NON-STAFF - NORTH,PAYMENTS TO TRANSPORT OPERATORS,09/02/2024,000009529189714,11.31,TRAINLINE
OXFORDSHIRE CC,CUSTOMER AND CULTURE,"MARKETING, COMMUNICATIONS & ENGAGEMENT","PUBLICITY, PROMOTIONS AND ADVERTISEMENT",09/02/2024,000009529189524,500.00,GOOGLE ADS4896546035
OXFORDSHIRE CC,CHILDREN'S & EDUCATION,40 THE MOORS,CLEANING MATERIALS,09/02/2024,000009529188446,45.98,AMAZON  206-1941806-15
OXFORDSHIRE CC,CHILDREN'S & EDUCATION,40 THE MOORS,STATIONERY,09/02/2024,000009529188478,37.97,AMAZON  206-1840344-84
OXFORDSHIRE CC,RESOURCES,INCOME TEAM,PAYMENT TO GOVERNMENT DEPARTMENTS,09/02/2024,000009529189062,624.36,WWW.MONEYCLAIM.GOV
OXFORDSHIRE CC,CUSTOMER AND CULTURE,MUSEUMS COLLECTIONS,CATERING PROVISIONS,09/02/2024,000009529189226,4.62,MILK AND MORE (RECUR
OXFORDSHIRE CC,CUSTOMER AND CULTURE,HISTORY SERVICE,FURNITURE,09/02/2024,000009529189262,3.47,AMAZON.CO.UK HY6C05CO5
OXFORDSHIRE CC,ADULTS,CSS WANTAGE,ENTERTAINMENT EXPENSES,09/02/2024,000009529189388,10.95,HOLLYWOOD BOWL
OXFORDSHIRE CC,CUSTOMER AND CULTURE,HARD FM,PREMISES REPAIRS,09/02/2024,000009529188156,65.94,HOWDENS - BANBURY D293
OXFORDSHIRE CC,CHILDREN'S & EDUCATION,DISABILITIES TEAM S,HIRE OF ACCOMMODATION AND FACILITIES,09/02/2024,000009529188248,45.00,BKG HOTEL AT BOOKING.C
OXFORDSHIRE CC,CUSTOMER AND CULTURE,CENTRAL LIBRARY,FURNITURE,09/02/2024,000009529189566,53.59,AMAZON  206-4973554-16
OXFORDSHIRE CC,CHILDREN'S & EDUCATION,40 THE MOORS,STATIONERY,09/02/2024,000009529188456,14.25,AMAZON  206-4204904-07
OXFORDSHIRE CC,CHILDREN'S & EDUCATION,40 THE MOORS,CATERING EQUIPMENT,09/02/2024,000009529188484,8.79,AMAZON  206-3556114-37
OXFORDSHIRE CC,CHILDREN'S & EDUCATION,40 THE MOORS,STATIONERY,09/02/2024,000009529188464,4.99,AMAZON  206-4979567-19
OXFORDSHIRE CC,ADULTS,CSS - OXFORD,CATERING PROVISIONS,09/02/2024,000009529188382,125.97,ALDI STORES 775-142
OXFORDSHIRE CC,ADULTS,INCOME TEAM,PAYMENT TO GOVERNMENT DEPARTMENTS,09/02/2024,000009529188406,1.50,FIND A WILL
OXFORDSHIRE CC,CHILDREN'S & EDUCATION,NTS UASC AGENCY,CATERING PROVISIONS,09/02/2024,000009529189812,12.98,AMAZON  202-2511842-07
OXFORDSHIRE CC,CUSTOMER AND CULTURE,THAME LIBRARY,"NEWSPAPERS, PERIODICALS AND PUBLICATIONS",09/02/2024,000009529189590,5.80,SAINSBURYS S/MKTS
OXFORDSHIRE CC,CHILDREN'S & EDUCATION,FAMILY HELP SOUTH,MATERIALS,09/02/2024,000009529188916,25.59,AMAZON  026-5675065-53
OXFORDSHIRE CC,CHILDREN'S & EDUCATION,THAME E&A HOME,RESIDENTIAL ACTIVITIES,09/02/2024,000009529188946,7.24,SAINSBURYS S/MKTS
OXFORDSHIRE CC,CHILDREN'S & EDUCATION,PAUSE PROGRAMME,CATERING,09/02/2024,000009529188974,11.99,BURGER KING
